Workbook

Sheet Read Me

Sheet Data Dictionary
A1: Term | B1: Who reports it? | C1: Definition
A2: Agency | B2: All | C2: The transit agency's name.
A3: City | B3: All | C3: The city in which the agency is headquartered.
A4: State | B4: All | C4: The state in which the agency is headquartered.
A5: Legacy NTD ID | B5: All | C5: A four-digit identifying number for each agency used in the legacy NTD system.
A6: NTD ID | B6: All | C6: A five-digit identifying number for each agency used in the current NTD system.
A7: Organization Type | B7: All | C7: Description of the agency's legal entity.
A8: Reporter Type | B8: All | C8: The type of NTD report that the agency completed this year.
A9: Primary UZA Population | B9: DOES NOT APPLY TO: Rural General Public Transit Sub-recipients, Intercity Bus Sub-recipients | C9: The population of the urbanized area primarily served by the agency.
A10: Agency VOMS | B10: DOES NOT APPLY TO: Building Reporters, Planning Reporters, Separate Service Reporters, Tribal Subsidy Reporters, Intercity Bus Sub-recipients | C10: The number of revenue vehicles operated across the whole agency to meet the annual maximum service requirement. This is the revenue vehicle count during the peak season of the year; on the week and day that maximum service is provided. Vehicles operated in maximum service (VOMS) exclude atypical days and one-time special events.
A11: Mode | B11: DOES NOT APPLY TO: Planning Reporters, Tribal Subsidy Reporters, Intercity Bus Sub-recipients | C11: A system for carrying transit passengers described by specific right-of-way (ROW), technology and operational features.
A12: Type of Service | B12: DOES NOT APPLY TO: Planning Reporters, Tribal Subsidy Reporters, Intercity Bus Sub-recipients | C12: Describes how public transportation services are provided by the transit agency: directly operated (DO) or purchased transportation (PT) services.
A13: Mode VOMS | B13: DOES NOT APPLY TO: Building Reporters, Planning Reporters, Separate Service Reporters, Tribal Subsidy Reporters, Intercity Bus Sub-recipients | C13: The number of revenue vehicles operated by the given mode and type of service to meet the annual maximum service requirement. This is the revenue vehicle count during the peak season of the year; on the week and day that maximum service is provided. Vehicles operated in maximum service (VOMS) exclude atypical days and one-time special events.
A14: Rural General Public Transit | C14: Reporter type for agencies that do not operate in an urban area and are not Tribes.
A15: Intercity Bus | C15: Reporter type for private bus lines providing non-transit service connecting wide-ranging areas.
A16: Building Reporter | C16: Reporter type for agencies that are building a new transit service but not yet operating it.
A17: Planning Reporter | C17: Reporter type for entities that expend funds in planning transit but do not operate service.
A18: Separate Service | C18: Reporter type for agencies that have a contractual relationship with another NTD reporter to provide service but do not report any service themselves.
A19: Tribal Subsidy | C19: Reporter type for Tribes that subsidize service but do not operate service or pay the full cost of service.
A20: Full Reporter | C20: Reporter type for agencies that operate urban service and complete the most detailed level of NTD report. Urban agencies that operate more than 30 vehicles or operate Fixed Guideway service are required to complete Full Reports; other urban agencies may do so if they wish.
A21: Reduced Reporter | C21: Reporter type for agencies that operate urban service but complete a simplified NTD report. Urban agencies that operate 30 or fewer vehicles and do not operate Fixed Guideway service are eligible to complete Reduced Reports. This is sometimes called a Small Systems Report.
A22: Urbanized Area (UZA) | C22: An area defined by the U. S. Census Bureau that includes: - One or more incorporated cities, villages, and towns (central place) - The adjacent densely settled surrounding territory (urban fringe) that together has a minimum of 50,000 persons The urban fringe generally consists of contiguous territory having a density of at least 1,000 persons per square mile. Urbanized areas do not conform to congressional districts or any other political boundaries.
A23: Alaska Railroad (AR) | C23: The passenger service portion of the Alaska Railroad Corporation. The service encompasses only car miles for passenger cars; car miles for freight cars are specifically excluded.
A24: Bus (MB) | C24: A transit mode comprised of rubber-tired passenger vehicles operating on fixed routes and schedules over roadways. Vehicles are powered by: - Diesel - Gasoline - Battery - Alternative fuel engines contained within the vehicle
A25: Bus Rapid Transit (RB) | C25: Fixed-route bus mode: - In which the majority of each line operates in a separated right-of-way dedicated for public transportation use during peak periods; and - That includes features that emulate the services provided by rail fixed guideway public transportation systems, including: o Defined stations o Traffic signal priority for public transportation vehicles o Short headway bidirectional services for a substantial part of weekdays and weekend days o Pre-board ticketing, platform level boarding, and separate branding This mode may include portions of service that are fixed-guideway and non-fixed-guideway.
A26: Cable Car (CC) | C26: A transit mode that is an electric railway with individually controlled transit vehicles attached to a moving cable located below the street surface and powered by engines or motors at a central location, not onboard the vehicle.
A27: Commuter Bus (CB) | C27: Fixed-route bus systems that are primarily connecting outlying areas with a central city through bus service that operates with at least five miles of continuous closed-door service. This service may operate motorcoaches (aka over-the-road buses), and usually features peak scheduling, multiple-trip tickets, and limited stops in the central city.
A28: Commuter Rail (CR) | C28: A transit mode that is an electric or diesel propelled railway for urban passenger train service consisting of local short distance travel operating between a central city and adjacent suburbs. Service must be operated on a regular basis by or under contract with a transit operator for the purpose of transporting passengers within urbanized areas (UZAs), or between urbanized areas and outlying areas. Such rail service, using either locomotive hauled or self-propelled railroad passenger cars, is generally characterized by: - Multi-trip tickets - Specific station to station fares - Railroad employment practices - Usually only one or two stations in the central business district It does not include: - Heavy rail (HR) rapid transit - Light rail (LR)/streetcar transit service Intercity rail service is excluded, except for that portion of such service that is operated by or under contract with a public transit agency for predominantly commuter services. Predominantly commuter service means that for any given trip segment (i.e., distance between any two stations), more than 50 percent of the average daily ridership makes a return trip on the same day. Only the predominantly commuter service portion of an intercity route is eligible for inclusion when determining commuter rail (CR) route miles.
A29: Demand Response (DR) | C29: A transit mode comprised of automobiles, vans or small buses operating in response to calls from passengers or their agents to the transit operator, who then dispatches a vehicle to pick up the passengers and transport them to their destinations. A demand response (DR) operation is characterized by the following: - The vehicles do not operate over a fixed route or on a fixed schedule except, perhaps, on a temporary basis to satisfy a special need; and - Typically, the vehicle may be dispatched to pick up several passengers at different pick-up points before taking them to their respective destinations and may even be interrupted en route to these destinations to pick up other passengers. The following types of operations fall under the above definitions provided they are not on a scheduled fixed route basis: - Many origins—many destinations - Many origins—one destination - One origin—many destinations - One origin—one destination
A30: Demand Response Taxi (DT) | C30: A special form of the demand response mode operated through taxicab providers. The mode is always purchased transportation type of service. In order to be reportable, there must be a system in place through which passengers can share rides.
A31: Ferryboat (FB) | C31: A transit mode comprised of vessels carrying passengers and/or vehicles over a body of water that are generally steam or diesel powered. Intercity ferryboat (FB) service is excluded, except for that portion of such service that is operated by or under contract with a public transit agency for predominantly commuter services. Predominantly commuter service means that for any given trip segment (i.e., distance between any two piers), more than 50 percent of the average daily ridership makes a return trip on the ferryboat on the same day. Only the predominantly commuter service portion of an intercity route is eligible for inclusion when determining ferryboat (FB) route miles.
A32: Heavy Rail (HR) | C32: A transit mode that is an electric railway with the capacity for a heavy volume of traffic. It is characterized by: - High speed and rapid acceleration passenger rail cars operating singly or in multi-car trains on fixed rails - Separate rights-of-way (ROW) from which all other vehicular and foot traffic are excluded - Sophisticated signaling - Raised platform loading
A33: Hybrid Rail (YR) | C33: Rail systems primarily operating routes on the National system of railroads, but not operating with the characteristics of commuter rail. This service typically operates light rail-type vehicles as diesel multipleunit trains (DMU’s). These trains do not meet Federal Railroad Administration standards, and so must operate with temporal separation from freight rail traffic.
A34: Inclined Plane (IP) | C34: A transit mode that is a railway operating over exclusive right-of-way (ROW) on steep grades (slopes) with powerless vehicles propelled by moving cables attached to the vehicles and powered by engines or motors at a central location not onboard the vehicle. The special tramway types of vehicles have passenger seats that remain horizontal while the undercarriage (truck) is angled parallel to the slope.
A35: Light Rail (LR) | C35: A transit mode that is typically an electric railway with a light volume traffic capacity compared to heavy rail (HR). It is characterized by: - Passenger rail cars operating singly (or in short, usually two car, trains) on fixed rails in shared or exclusive right-of-way (ROW) - Low or high platform loading - Vehicle power drawn from an overhead electric line via a trolley or a pantograph
A36: Monorail/Automated Guideway (MG) | C36: Monorail and Automated Guideway modes operate on exclusive guideway without using steel wheels on rails.
A37: Streetcar Rail (SR) | C37: This mode is for rail transit systems operating entire routes predominantly on streets in mixed-traffic. This service typically operates with single-car trains powered by overhead catenaries and with frequent stops.
A38: Trolleybus (TB) | C38: A transit mode comprised of electric rubber-tired passenger vehicles, manually steered and operating singly on city streets. Vehicles are propelled by a motor drawing current through overhead wires via trolleys, from a central power source not onboard the vehicle.
A39: Vanpool (VP) | C39: A transit mode comprised of vans, small buses and other vehicles operating as a ride sharing arrangement, providing transportation to a group of individuals traveling directly between their homes and a regular destination within the same geographical area.
A40: Jitney (JT) | C40: A transit mode comprising passenger cars or vans operating on fixed routes (sometimes with minor deviations) as demand warrants without fixed schedules or fixed stops.
A41: Aerial Tramway (TR) | C41: A transit mode that is an electric system of aerial cables with suspended powerless passenger vehicles. The vehicles are propelled by separate cables attached to the vehicle suspension system and powered by engines or motors at a central location not on-board the vehicle.
A42: Publico (PB) | C42: A transit mode comprised of passenger vans or small buses operating with fixed routes but no fixed schedules in Puerto Rico. Publicos (PB) are a privately owned and operated public transit service which is market oriented and unsubsidized, but regulated through a public service commission, state or local government. Publicos (PB) are operated under franchise agreements, fares are regulated by route and there are special insurance requirements. Vehicle capacity varies from 8 to 24, and the vehicles may be owned or leased by the operator.
A43: Questionable (Q) | C43: FTA marks a data point as Questionable when there is reason to believe it is incorrect, but the reporting agency has been unable to correct the data or offer an explanation for its anomalous appearance.
A44: Waived (W) | C44: FTA marks a data point as Waived when the reporting agency has not reported the data point according to NTD reporting requirements, but has received a waiver to report the data as-is for one year.
A45: Miles of Track/Roadway | B45: ONLY APPLIES TO: Full Reporters | C45: Miles of track/roadway are measured without regard to whether or not traffic can flow in both directions. Multiple tracks/lanes in the same right-of-way are counted individually. All track is counted, including yard track and sidings.
A46: Track Types | B46: ONLY APPLIES TO: Full Reporters | C46: Tangent- Revenue Service, Curve- Revenue Service, Total Revenue Service, Revenue Service- No Capital Replacement Responsibility, Track Under Performance Restriction
A47: Single Turnout | B47: ONLY APPLIES TO: Full Reporters | C47: Number of single turnouts inventoried by the transit agency.
A48: Grade Crossings | B48: ONLY APPLIES TO: Full Reporters | C48: Number of grade crossings inventoried by the transit agency.
A49: Single Crossover | B49: ONLY APPLIES TO: Full Reporters | C49: Number of single crossovers inventoried by the transit agency.
A50: Double Diamond Crossover | B50: ONLY APPLIES TO: Full Reporters | C50: Number of double diamond crossovers for inventoried by the transit agency.
A51: Half Grand Unions | B51: ONLY APPLIES TO: Full Reporters | C51: Number of half grand unions inventoried by the transit agency.
A52: Miles Of Roadway | B52: ONLY APPLIES TO: Full Reporters | C52: Exclusive Fixed Guideway, Exclusive High-Intensity Busway, Controlled Access High-Intensity Busway or HOV
A53: Expected Years of Service | B53: ONLY APPLIES TO: Full Reporters | C53: Expected Years of Service represents the average number of service years for each element.
A54: Guideway Element | B54: ONLY APPLIES TO: Full Reporters | C54: Track miles are reported by distinct guideway elements, or structures and facilities over which transit service operates. These elements include roadway dedicated specifically to transit use, track, subway structures, tunnels, bridges, and propulsion power systems. Specifically, guideway elements are At-Grade/Ballast (including expressway), At-Grade/In-Street/Embedded, Elevated/Concrete, Elevated/Retained Fill, Elevated/Steel Viaduct or Bridge, Below-Grade/Cut-and-Cover Tunnel, Below-Grade/Retained Cut, Below-Grade/Bored or Blasted Tunnel, Below-Grade/Submerged Tube
A55: Miles Of Roadway | B55: ONLY APPLIES TO: Full Reporters | C55: Lane miles are reported by three distinct types of right-away which describes the public transit operation: Exclusive Fixed Guideway, Exclusive High-Intensity Busway, or Controlled Access High Intensity Busway or HOV.
A56: Exclusive Fixed Guideway | B56: ONLY APPLIES TO: Full Reporters | C56: Lane miles over which public transit operates that are exclusive to other traffic at all times, 24 hours per day, seven days per week.
A57: Exclusive High-Intensity Busway | B57: ONLY APPLIES TO: Full Reporters | C57: Lane miles over which transit operates that are HOV lanes at all times, 24 hours per day, seven days per week or alternatively may be HOV lanes for a portion of the week and exclusive to transit for the remainder of the week.
A58: Controlled Access High Intensity Busway Or HOV | B58: ONLY APPLIES TO: Full Reporters | C58: Lane miles over which transit operates that may be exclusive to transit or function as HOV for a certain number of hours but are open to general traffic for some part of the week.

Sheet Track by Mode
A1: Agency | B1: City | C1: State | D1: Legacy NTD ID | E1: NTD ID | F1: Organization Type | G1: Reporter Type | H1: Primary UZA Population | I1: Agency Voms | J1: Mode | K1: Type Of Service | L1: Mode Voms | M1: Track Types: | N1: Tangent - Revenue Service | O1: Tangent - Revenue Service Questionable | P1: Curve - Revenue Service | Q1: Curve - Revenue Service Questionable | R1: Total Revenue Service | S1: Revenue Service - No Capital Replacement Responsibility | T1: Revenue Service - No Capital Replacement Responsibility Questionable | U1: Non-Revenue Service | V1: Non-Revenue Service Questionable | W1: Track Under Performance Restriction | X1: Track Under Performance Restrictions Questionable | Y1: Number Of Elements: | Z1: Single Turnout | AA1: Single Turnout Questionable | AB1: Grade Crossings | AC1: Grade Crossings Questionable | AD1: Single Crossover | AE1: Single Crossover Questionable | AF1: Double Diamond Crossover | AG1: Double Diamond Crossover Questionable | AH1: Half Grand Unions | AI1: Half Grand Unions Questionable | AJ1: Any data questionable? | AL1: =IF(AL4=1,1,0) -> 1
A2: MTA New York City Transit | B2: New York | C2: NY | D2: 2008 | E2: 20008 | F2: Subsidiary Unit of a Transit Agency, Reporting Separately | G2: Full Reporter | H2: 18351295 | I2: 10856 | J2: HR | K2: DO | L2: 5364 | N2: 453 | P2: 184 | R2: 637 | S2: 0 | U2: 141 | W2: 14.44 | Z2: 1040 | AB2: 5 | AD2: 387 | AF2: 0 | AH2: 0 | AJ2: =IF(O2&Q2&T2&V2&X2&AA2&AC2&AE2&AG2&AI2<>"","Yes","No") -> No | AL2: Hide questionable data tags
A3: New Jersey Transit Corporation | B3: Newark | C3: NJ | D3: 2080 | E3: 20080 | F3: Other Publicly-Owned or Privately Chartered Corporation | G3: Full Reporter | H3: 18351295 | I3: 3873 | J3: CR | K3: DO | L3: 1185 | N3: 641.3 | P3: 249.8 | R3: 891.1 | S3: 346.7 | U3: 58.4 | W3: 4.08 | Z3: 420 | AB3: 319 | AD3: 271 | AF3: 7 | AH3: 0 | AJ3: =IF(O3&Q3&T3&V3&X3&AA3&AC3&AE3&AG3&AI3<>"","Yes","No") -> No | AL3: Show questionable data tags
A4: New Jersey Transit Corporation | B4: Newark | C4: NJ | D4: 2080 | E4: 20080 | F4: Other Publicly-Owned or Privately Chartered Corporation | G4: Full Reporter | H4: 18351295 | I4: 3873 | J4: LR | K4: PT | L4: 42 | N4: 20.84 | P4: 11.39 | R4: 32.23 | S4: 0 | U4: 3.05 | W4: 0.43 | Z4: 14 | AB4: 24 | AD4: 22 | AF4: 5 | AH4: 1 | AJ4: No | AL4: 1
A5: New Jersey Transit Corporation | B5: Newark | C5: NJ | D5: 2080 | E5: 20080 | F5: Other Publicly-Owned or Privately Chartered Corporation | G5: Full Reporter | H5: 18351295 | I5: 3873 | J5: YR | K5: PT | L5: 17 | N5: 23.29 | P5: 32.3 | R5: 55.59 | S5: 0 | U5: 1.7 | W5: 0.24 | Z5: 23 | AB5: 59 | AD5: 8 | AF5: 3 | AH5: 0 | AJ5: No
A6: New Jersey Transit Corporation | B6: Newark | C6: NJ | D6: 2080 | E6: 20080 | F6: Other Publicly-Owned or Privately Chartered Corporation | G6: Full Reporter | H6: 18351295 | I6: 3873 | J6: LR | K6: DO | L6: 14 | N6: 5.7 | P6: 6.1 | R6: 11.8 | S6: 0 | U6: 2.17 | W6: 1.37 | Z6: 12 | AB6: 15 | AD6: 11 | AF6: 5 | AH6: 0 | AJ6: No
A7: Los Angeles County Metropolitan Transportation Authority , dba: Metro | B7: Los Angeles | C7: CA | D7: 9154 | E7: 90154 | F7: Independent Public Agency or Authority of Transit Service | G7: Full Reporter | H7: 12150996 | I7: 3458 | J7: LR | K7: DO | L7: 196 | N7: 109.53 | P7: 62.2 | R7: 171.73 | S7: 0 | U7: 26.06 | W7: 3.55 | Z7: 229 | AB7: 197 | AD7: 78 | AF7: 14 | AH7: 0 | AJ7: No
A8: Los Angeles County Metropolitan Transportation Authority , dba: Metro | B8: Los Angeles | C8: CA | D8: 9154 | E8: 90154 | F8: Independent Public Agency or Authority of Transit Service | G8: Full Reporter | H8: 12150996 | I8: 3458 | J8: HR | K8: DO | L8: 68 | N8: 21.87 | P8: 9.97 | R8: 31.84 | S8: 0 | U8: 12.43 | W8: 0.33 | Z8: 63 | AB8: 0 | AD8: 0 | AF8: 11 | AH8: 0 | AJ8: No
A9: King County Department of Metro Transit, dba: King County Metro | B9: Seattle | C9: WA | D9: 1 | E9: 1 | F9: City, County or Local Government Unit or Department of Transportation | G9: Full Reporter | H9: 3059393 | I9: 3150 | J9: SR | K9: DO | L9: 10 | N9: 7.85 | P9: 0 | Q9: W | R9: 7.85 | S9: 7.85 | U9: 0.9 | W9: 0 | Z9: 0 | AB9: 55 | AD9: 0 | AF9: 0 | AH9: 0 | AJ9: Yes
A10: Washington Metropolitan Area Transit Authority | B10: Washington | C10: DC | D10: 3030 | E10: 30030 | F10: Independent Public Agency or Authority of Transit Service | G10: Full Reporter | H10: 4586770 | I10: 3139 | J10: HR | K10: DO | L10: 888 | N10: 139.9 | P10: 94.3 | R10: 234.2 | S10: 0 | U10: 61.1 | W10: 11.7 | Z10: 109 | AB10: 0 | AD10: 33 | AF10: 74 | AH10: 0 | AJ10: No
A11: Chicago Transit Authority | B11: Chicago | C11: IL | D11: 5066 | E11: 50066 | F11: Independent Public Agency or Authority of Transit Service | G11: Full Reporter | H11: 8608208 | I11: 2711 | J11: HR | K11: DO | L11: 1142 | N11: 171.04 | P11: 53.51 | R11: 224.55 | S11: 0 | U11: 40.59 | W11: 25.37 | Z11: 313 | AB11: 33 | AD11: 150 | AF11: 112 | AH11: 3 | AJ11: No
A12: Metropolitan Transit Authority of Harris County, Texas | B12: Houston | C12: TX | D12: 6008 | E12: 60008 | F12: Independent Public Agency or Authority of Transit Service | G12: Full Reporter | H12: 4944332 | I12: 2659 | J12: LR | K12: DO | L12: 54 | N12: 35.73 | P12: 13.54 | R12: 49.27 | S12: 0 | U12: 8.69 | W12: 0.35 | Z12: 20 | AB12: 165 | AD12: 18 | AF12: 16 | AH12: 1 | AJ12: No
A13: Massachusetts Bay Transportation Authority | B13: Boston | C13: MA | D13: 1003 | E13: 10003 | F13: Independent Public Agency or Authority of Transit Service | G13: Full Reporter | H13: 4181019 | I13: 2423 | J13: CR | K13: PT | L13: 436 | N13: 698.29 | P13: 26.99 | R13: 725.28 | S13: 0 | U13: 18.45 | W13: 5.52 | Z13: 648 | AB13: 304 | AD13: 100 | AF13: 5 | AH13: 0 | AJ13: No
A14: Massachusetts Bay Transportation Authority | B14: Boston | C14: MA | D14: 1003 | E14: 10003 | F14: Independent Public Agency or Authority of Transit Service | G14: Full Reporter | H14: 4181019 | I14: 2423 | J14: HR | K14: DO | L14: 336 | N14: 56.4 | P14: 20.06 | R14: 76.46 | S14: 0 | U14: 27.44 | W14: 9.49 | Z14: 170 | AB14: 0 | AD14: 61 | AF14: 15 | AH14: 2 | AJ14: No
A15: Massachusetts Bay Transportation Authority | B15: Boston | C15: MA | D15: 1003 | E15: 10003 | F15: Independent Public Agency or Authority of Transit Service | G15: Full Reporter | H15: 4181019 | I15: 2423 | J15: LR | K15: DO | L15: 151 | N15: 36.13 | P15: 15.06 | R15: 51.19 | S15: 0 | U15: 10.59 | W15: 4.38 | Z15: 156 | AB15: 53 | AD15: 45 | AF15: 3 | AH15: 13 | AJ15: No
A16: Southeastern Pennsylvania Transportation Authority | B16: Philadelphia | C16: PA | D16: 3019 | E16: 30019 | F16: Independent Public Agency or Authority of Transit Service | G16: Full Reporter | H16: 5441567 | I16: 2372 | J16: CR | K16: DO | L16: 349 | N16: 470.49 | P16: 4.71 | R16: 475.2 | S16: 238.01 | U16: 132.9 | W16: 26.13 | Z16: 68 | AB16: 287 | AD16: 151 | AF16: 0 | AH16: 0 | AJ16: No
A17: Southeastern Pennsylvania Transportation Authority | B17: Philadelphia | C17: PA | D17: 3019 | E17: 30019 | F17: Independent Public Agency or Authority of Transit Service | G17: Full Reporter | H17: 5441567 | I17: 2372 | J17: HR | K17: DO | L17: 285 | N17: 82.77 | P17: 5.95 | R17: 88.72 | S17: 0 | U17: 11.09 | W17: 6.8 | Z17: 7 | AB17: 0 | AD17: 49 | AF17: 0 | AH17: 0 | AJ17: No
A18: Southeastern Pennsylvania Transportation Authority | B18: Philadelphia | C18: PA | D18: 3019 | E18: 30019 | F18: Independent Public Agency or Authority of Transit Service | G18: Full Reporter | H18: 5441567 | I18: 2372 | J18: SR | K18: DO | L18: 121 | N18: 74.78 | P18: 9.02 | R18: 83.8 | S18: 0 | U18: 133.5 | W18: 2.87 | Z18: 18 | AB18: 49 | AD18: 12 | AF18: 0 | AH18: 0 | AJ18: No
A19: Maryland Transit Administration | B19: Baltimore | C19: MD | D19: 3034 | E19: 30034 | F19: State Government Unit or Department of Transportation | G19: Full Reporter | H19: 2203663 | I19: 1683 | J19: CR | K19: PT | L19: 159 | N19: 381.38 | P19: 98.97 | R19: 480.35 | S19: 0 | U19: 12.15 | W19: 209 | Z19: 66 | AB19: 1 | AD19: 67 | AF19: 0 | AH19: 0 | AJ19: No
A20: Maryland Transit Administration | B20: Baltimore | C20: MD | D20: 3034 | E20: 30034 | F20: State Government Unit or Department of Transportation | G20: Full Reporter | H20: 2203663 | I20: 1683 | J20: HR | K20: DO | L20: 54 | N20: 22.2 | P20: 7.66 | R20: 29.86 | S20: 0 | U20: 3.58 | W20: 12 | Z20: 0 | AB20: 1 | AD20: 15 | AF20: 15 | AH20: 0 | AJ20: No
A21: Maryland Transit Administration | B21: Baltimore | C21: MD | D21: 3034 | E21: 30034 | F21: State Government Unit or Department of Transportation | G21: Full Reporter | H21: 2203663 | I21: 1683 | J21: LR | K21: DO | L21: 38 | N21: 27.37 | P21: 29.2 | R21: 56.57 | S21: 0 | U21: 4.18 | W21: 22 | Z21: 0 | AB21: 44 | AD21: 20 | AF21: 13 | AH21: 0 | AJ21: No
A22: Denver Regional Transportation District | B22: Denver | C22: CO | D22: 8006 | E22: 80006 | F22: Independent Public Agency or Authority of Transit Service | G22: Full Reporter | H22: 2374203 | I22: 1457 | J22: LR | K22: DO | L22: 163 | N22: 62.5 | P22: 42.7 | R22: 105.2 | S22: 0 | U22: 11.3 | W22: 0.95 | Z22: 114 | AB22: 39 | AD22: 44 | AF22: 8 | AH22: 0 | AJ22: No
A23: Denver Regional Transportation District | B23: Denver | C23: CO | D23: 8006 | E23: 80006 | F23: Independent Public Agency or Authority of Transit Service | G23: Full Reporter | H23: 2374203 | I23: 1457 | J23: CR | K23: PT | L23: 20 | N23: 45.16 | P23: 19.87 | R23: 65.03 | S23: 0 | U23: 4.44 | W23: 0.63 | Z23: 45 | AB23: 29 | AD23: 27 | AF23: 0 | AH23: 0 | AJ23: No
A24: County of Miami-Dade , dba: Transportation & Public Work | B24: Miami | C24: FL | D24: 4034 | E24: 40034 | F24: City, County or Local Government Unit or Department of Transportation | G24: Full Reporter | H24: 5502379 | I24: 1396 | J24: HR | K24: DO | L24: 76 | N24: 34.16 | P24: 16.62 | R24: 50.78 | S24: 0 | U24: 8.21 | W24: 0 | Z24: 51 | AB24: 47 | AD24: 12 | AF24: 56 | AH24: 0 | AJ24: No
A25: County of Miami-Dade , dba: Transportation & Public Work | B25: Miami | C25: FL | D25: 4034 | E25: 40034 | F25: City, County or Local Government Unit or Department of Transportation | G25: Full Reporter | H25: 5502379 | I25: 1396 | J25: MG | K25: DO | L25: 21 | N25: 7.23 | P25: 1.57 | R25: 8.8 | S25: 0 | U25: 0.63 | W25: 0 | Z25: 0 | AB25: 0 | AD25: 4 | AF25: 0 | AH25: 0 | AJ25: No
A26: Metro-North Commuter Railroad Company, dba: MTA Metro-North Railroad | B26: New York | C26: NY | D26: 2078 | E26: 20078 | F26: Subsidiary Unit of a Transit Agency, Reporting Separately | G26: Full Reporter | H26: 18351295 | I26: 1168 | J26: CR | K26: DO | L26: 1157 | N26: 452 | P26: 307 | R26: 759 | S26: 296 | U26: 108 | W26: 13 | Z26: 1323 | AB26: 133 | AD26: 1269 | AF26: 0 | AH26: 0 | AJ26: No
A27: Utah Transit Authority | B27: Salt Lake City | C27: UT | D27: 8001 | E27: 80001 | F27: Independent Public Agency or Authority of Transit Service | G27: Full Reporter | H27: 1021243 | I27: 1113 | J27: LR | K27: DO | L27: 92 | N27: 58 | P27: 34 | R27: 92 | S27: 0 | U27: 20 | W27: 1.03 | Z27: 44 | AB27: 145 | AD27: 40 | AF27: 9 | AH27: 2 | AJ27: No
A28: Utah Transit Authority | B28: Salt Lake City | C28: UT | D28: 8001 | E28: 80001 | F28: Independent Public Agency or Authority of Transit Service | G28: Full Reporter | H28: 1021243 | I28: 1113 | J28: CR | K28: DO | L28: 50 | N28: 71 | P28: 32 | R28: 103 | S28: 0 | U28: 21 | W28: 0.52 | Z28: 60 | AB28: 65 | AD28: 1 | AF28: 1 | AH28: 0 | AJ28: No
A29: Northeast Illinois Regional Commuter Railroad Corporation, dba: Metra | B29: Chicago | C29: IL | D29: 5118 | E29: 50118 | F29: Independent Public Agency or Authority of Transit Service | G29: Full Reporter | H29: 8608208 | I29: 1062 | J29: CR | K29: DO | L29: 1062 | N29: 930 | P29: 169 | R29: 1099 | S29: 0 | U29: 93 | W29: 21.16 | Z29: 1600 | AB29: 503 | AD29: 110 | AF29: 0 | AH29: 0 | AJ29: No
A30: Dallas Area Rapid Transit | B30: Dallas | C30: TX | D30: 6056 | E30: 60056 | F30: Independent Public Agency or Authority of Transit Service | G30: Full Reporter | H30: 5121892 | I30: 1062 | J30: LR | K30: DO | L30: 109 | N30: 169.13 | P30: 20 | R30: 189.13 | S30: 0 | U30: 18.43 | W30: 0.37 | Z30: 49 | AB30: 136 | AD30: 74 | AF30: 22 | AH30: 0 | AJ30: No
A31: Dallas Area Rapid Transit | B31: Dallas | C31: TX | D31: 6056 | E31: 60056 | F31: Independent Public Agency or Authority of Transit Service | G31: Full Reporter | H31: 5121892 | I31: 1062 | J31: CR | K31: PT | L31: 23 | N31: 40 | P31: 7 | R31: 47 | S31: 0 | U31: 0 | W31: 0.04 | Z31: 71 | AB31: 45 | AD31: 12 | AF31: 0 | AH31: 0 | AJ31: No
A32: Dallas Area Rapid Transit | B32: Dallas | C32: TX | D32: 6056 | E32: 60056 | F32: Independent Public Agency or Authority of Transit Service | G32: Full Reporter | H32: 5121892 | I32: 1062 | J32: SR | K32: DO | L32: 2 | N32: 2 | P32: 1 | R32: 3 | S32: 0 | U32: 0.06 | W32: 0 | Z32: 2 | AB32: 6 | AD32: 2 | AF32: 0 | AH32: 0 | AJ32: No
A33: MTA Long Island Rail Road | B33: Jamaica | C33: NY | D33: 2100 | E33: 20100 | F33: Subsidiary Unit of a Transit Agency, Reporting Separately | G33: Full Reporter | H33: 18351295 | I33: 1026 | J33: CR | K33: DO | L33: 1026 | N33: 389.2 | P33: 112.65 | R33: 501.85 | S33: 0 | U33: 110.61 | W33: 61 | Z33: 232 | AB33: 365 | AD33: 196 | AF33: 2 | AH33: 0 | AJ33: No
A34: City and County of San Francisco, dba: San Francisco Municipal Transportation Agency | B34: San Francisco | C34: CA | D34: 9015 | E34: 90015 | F34: City, County or Local Government Unit or Department of Transportation | G34: Full Reporter | H34: 3281212 | I34: 1014 | J34: LR | K34: DO | L34: 146 | N34: 59.95 | P34: 2.02 | R34: 61.97 | S34: 0 | U34: 0 | W34: 61.97 | Z34: 55 | AB34: 24 | AD34: 34 | AF34: 7 | AH34: 7 | AJ34: No
A35: City and County of San Francisco, dba: San Francisco Municipal Transportation Agency | B35: San Francisco | C35: CA | D35: 9015 | E35: 90015 | F35: City, County or Local Government Unit or Department of Transportation | G35: Full Reporter | H35: 3281212 | I35: 1014 | J35: CC | K35: DO | L35: 27 | N35: 8.71 | P35: 0.37 | R35: 9.08 | S35: 0 | U35: 0.04 | W35: 9.08 | Z35: 6 | AB35: 5 | AD35: 10 | AF35: 0 | AH35: 0 | AJ35: No
A36: City and County of San Francisco, dba: San Francisco Municipal Transportation Agency | B36: San Francisco | C36: CA | D36: 9015 | E36: 90015 | F36: City, County or Local Government Unit or Department of Transportation | G36: Full Reporter | H36: 3281212 | I36: 1014 | J36: SR | K36: DO | L36: 23 | N36: 12.27 | P36: 0.41 | R36: 12.68 | S36: 0 | U36: 0 | W36: 10 | Z36: 16 | AB36: 7 | AD36: 6 | AF36: 0 | AH36: 1 | AJ36: No
A37: Tri-County Metropolitan Transportation District of Oregon | B37: Portland | C37: OR | D37: 8 | E37: 8 | F37: Independent Public Agency or Authority of Transit Service | G37: Full Reporter | H37: 1849898 | I37: 961 | J37: LR | K37: DO | L37: 116 | N37: 77.67 | P37: 42.34 | R37: 120.01 | S37: 0 | U37: 8.98 | W37: 5.55 | Z37: 143 | AB37: 212 | AD37: 39 | AF37: 6 | AH37: 0 | AJ37: No
A38: Tri-County Metropolitan Transportation District of Oregon | B38: Portland | C38: OR | D38: 8 | E38: 8 | F38: Independent Public Agency or Authority of Transit Service | G38: Full Reporter | H38: 1849898 | I38: 961 | J38: YR | K38: PT | L38: 4 | N38: 13.56 | P38: 5.64 | R38: 19.2 | S38: 0 | U38: 0.55 | W38: 0.64 | Z38: 11 | AB38: 27 | AD38: 5 | AF38: 0 | AH38: 0 | AJ38: No
A39: Port Authority of Allegheny County | B39: Pittsburgh | C39: PA | D39: 3022 | E39: 30022 | F39: Independent Public Agency or Authority of Transit Service | G39: Full Reporter | H39: 1733853 | I39: 933 | J39: LR | K39: DO | L39: 58 | N39: 25.3 | P39: 22.9 | R39: 48.2 | S39: 0 | U39: 2.51 | W39: 0 | Z39: 202 | AB39: 51 | AD39: 46 | AF39: 4 | AH39: 1 | AJ39: No
A40: Port Authority of Allegheny County | B40: Pittsburgh | C40: PA | D40: 3022 | E40: 30022 | F40: Independent Public Agency or Authority of Transit Service | G40: Full Reporter | H40: 1733853 | I40: 933 | J40: IP | K40: DO | L40: 2 | N40: 0.2 | P40: 0 | R40: 0.2 | S40: 0 | U40: 0 | W40: 0 | Z40: 0 | AB40: 0 | AD40: 0 | AF40: 0 | AH40: 0 | AJ40: No
A41: Metro Transit | B41: Minneapolis | C41: MN | D41: 5027 | E41: 50027 | F41: Subsidiary Unit of a Transit Agency, Reporting Separately | G41: Full Reporter | H41: 2650890 | I41: 854 | J41: LR | K41: DO | L41: 76 | N41: 31.3 | P41: 14.2 | R41: 45.5 | S41: 0 | U41: 5.5 | W41: 0 | Z41: 49 | AB41: 109 | AD41: 31 | AF41: 6 | AH41: 0 | AJ41: No
A42: Metro Transit | B42: Minneapolis | C42: MN | D42: 5027 | E42: 50027 | F42: Subsidiary Unit of a Transit Agency, Reporting Separately | G42: Full Reporter | H42: 2650890 | I42: 854 | J42: CR | K42: PT | L42: 20 | N42: 38.45 | P42: 0 | R42: 38.45 | S42: 38.45 | U42: 3.01 | W42: 0 | Z42: 9 | AB42: 36 | AD42: 0 | AF42: 0 | AH42: 0 | AJ42: No
A43: Metropolitan Atlanta Rapid Transit Authority | B43: Atlanta | C43: GA | D43: 4022 | E43: 40022 | F43: Independent Public Agency or Authority of Transit Service | G43: Full Reporter | H43: 4515419 | I43: 846 | J43: HR | K43: DO | L43: 212 | N43: 103.74 | P43: 0 | R43: 103.74 | S43: 0 | U43: 0 | W43: 3.5 | Z43: 195 | AB43: 0 | AD43: 22 | AF43: 15 | AH43: 0 | AJ43: No
A44: San Diego Metropolitan Transit System | B44: San Diego | C44: CA | D44: 9026 | E44: 90026 | F44: Independent Public Agency or Authority of Transit Service | G44: Full Reporter | H44: 2956746 | I44: 793 | J44: LR | K44: DO | L44: 97 | N44: 53 | P44: 51 | R44: 104 | S44: 0 | U44: 6.7 | W44: 1.39 | Z44: 28 | AB44: 96 | AD44: 61 | AF44: 7 | AH44: 0 | AJ44: No
A45: Capital Metropolitan Transportation Authority, dba: Capital Metro | B45: Austin | C45: TX | D45: 6048 | E45: 60048 | F45: Independent Public Agency or Authority of Transit Service | G45: Full Reporter | H45: 1362416 | I45: 758 | J45: YR | K45: PT | L45: 7 | N45: 45.5 | P45: 18.88 | R45: 64.38 | S45: 0 | U45: 0.2 | W45: 0.8 | Z45: 8 | AB45: 79 | AD45: 3 | AF45: 0 | AH45: 0 | AJ45: No
A46: Santa Clara Valley Transportation Authority | B46: San Jose | C46: CA | D46: 9013 | E46: 90013 | F46: Independent Public Agency or Authority of Transit Service | G46: Full Reporter | H46: 1664496 | I46: 642 | J46: LR | K46: DO | L46: 61 | N46: 72.95 | P46: 7.07 | R46: 80.02 | S46: 0 | U46: 3.5 | W46: 5.1 | Z46: 75 | AB46: 11 | AD46: 25 | AF46: 15 | AH46: 3 | AJ46: No
A47: San Francisco Bay Area Rapid Transit District | B47: Oakland | C47: CA | D47: 9003 | E47: 90003 | F47: Independent Public Agency or Authority of Transit Service | G47: Full Reporter | H47: 3281212 | I47: 566 | J47: HR | K47: DO | L47: 556 | N47: 125.92 | P47: 94 | R47: 219.92 | S47: 0 | U47: 36.08 | W47: 1.95 | Z47: 298 | AB47: 0 | AD47: 94 | AF47: 9 | AH47: 0 | AJ47: No
A48: San Francisco Bay Area Rapid Transit District | B48: Oakland | C48: CA | D48: 9003 | E48: 90003 | F48: Independent Public Agency or Authority of Transit Service | G48: Full Reporter | H48: 3281212 | I48: 566 | J48: YR | K48: DO | L48: 7 | N48: 10.57 | P48: 6.49 | R48: 17.06 | S48: 0 | U48: 2.11 | W48: 0 | Z48: 2 | AB48: 13 | AD48: 8 | AF48: 0 | AH48: 0 | AJ48: No
A49: San Francisco Bay Area Rapid Transit District | B49: Oakland | C49: CA | D49: 9003 | E49: 90003 | F49: Independent Public Agency or Authority of Transit Service | G49: Full Reporter | H49: 3281212 | I49: 566 | J49: MG | K49: PT | L49: 3 | N49: 2.6 | P49: 3.6 | R49: 6.2 | S49: 0 | U49: 0 | W49: 0 | Z49: 2 | AB49: 0 | AD49: 2 | AF49: 0 | AH49: 0 | AJ49: No
A50: Bi-State Development Agency of the Missouri-Illinois Metropolitan District, dba: d.b.a. (St. Louis) Metro | B50: St. Louis | C50: MO | D50: 7006 | E50: 70006 | F50: Independent Public Agency or Authority of Transit Service | G50: Full Reporter | H50: 2150706 | I50: 493 | J50: LR | K50: DO | L50: 58 | N50: 59.18 | P50: 32.45 | R50: 91.63 | S50: 0 | U50: 4.76 | W50: 1.6 | Z50: 58 | AB50: 39 | AD50: 47 | AF50: 5 | AH50: 0 | AJ50: No
A51: The Greater Cleveland Regional Transit Authority | B51: Cleveland | C51: OH | D51: 5015 | E51: 50015 | F51: Independent Public Agency or Authority of Transit Service | G51: Full Reporter | H51: 1780673 | I51: 472 | J51: HR | K51: DO | L51: 20 | N51: 23.71 | P51: 14.26 | R51: 37.97 | S51: 0 | U51: 4.82 | W51: 0.38 | Z51: 71 | AB51: 0 | AD51: 68 | AF51: 0 | AH51: 0 | AJ51: No
A52: The Greater Cleveland Regional Transit Authority | B52: Cleveland | C52: OH | D52: 5015 | E52: 50015 | F52: Independent Public Agency or Authority of Transit Service | G52: Full Reporter | H52: 1780673 | I52: 472 | J52: LR | K52: DO | L52: 13 | N52: 19.56 | P52: 6.04 | R52: 25.6 | S52: 0 | U52: 4.82 | W52: 0.51 | Z52: 8 | AB52: 25 | AD52: 41 | AF52: 1 | AH52: 0 | AJ52: No
A53: City of Charlotte North Carolina, dba: Charlotte Area Transit System | B53: Charlotte | C53: NC | D53: 4008 | E53: 40008 | F53: City, County or Local Government Unit or Department of Transportation | G53: Full Reporter | H53: 1249442 | I53: 404 | J53: LR | K53: DO | L53: 21 | N53: 22.82 | P53: 14.6 | R53: 37.42 | S53: 0 | U53: 3.52 | W53: 0 | Z53: 26 | AB53: 39 | AD53: 16 | AF53: 4 | AH53: 0 | AJ53: No
A54: City of Charlotte North Carolina, dba: Charlotte Area Transit System | B54: Charlotte | C54: NC | D54: 4008 | E54: 40008 | F54: City, County or Local Government Unit or Department of Transportation | G54: Full Reporter | H54: 1249442 | I54: 404 | J54: SR | K54: DO | L54: 2 | N54: 1.29 | P54: 1.21 | R54: 2.5 | S54: 0 | U54: 0.26 | W54: 0 | Z54: 0 | AB54: 0 | AD54: 2 | AF54: 1 | AH54: 1 | AJ54: No
A55: Transportation District Commission of Hampton Roads, dba: Hampton Roads Transit | B55: Hampton | C55: VA | D55: 3083 | E55: 30083 | F55: Independent Public Agency or Authority of Transit Service | G55: Full Reporter | H55: 1439666 | I55: 397 | J55: LR | K55: DO | L55: 6 | N55: 10.12 | P55: 4.34 | R55: 14.46 | S55: 0 | U55: 1.21 | W55: 0 | Z55: 14 | AB55: 40 | AD55: 5 | AF55: 0 | AH55: 0 | AJ55: No
A56: Central Puget Sound Regional Transit Authority, dba: Sound Transit | B56: Seattle | C56: WA | D56: 40 | E56: 40 | F56: Independent Public Agency or Authority of Transit Service | G56: Full Reporter | H56: 3059393 | I56: 384 | J56: CR | K56: PT | L56: 70 | N56: 98.91 | P56: 59.28 | R56: 158.19 | S56: 149.32 | U56: 0.7 | W56: 0 | Z56: 14 | AB56: 63 | AD56: 39 | AF56: 0 | AH56: 0 | AJ56: No
A57: Central Puget Sound Regional Transit Authority, dba: Sound Transit | B57: Seattle | C57: WA | D57: 40 | E57: 40 | F57: Independent Public Agency or Authority of Transit Service | G57: Full Reporter | H57: 3059393 | I57: 384 | J57: LR | K57: DO | L57: 54 | N57: 20.23 | P57: 21.49 | R57: 41.72 | S57: 0 | U57: 6.38 | W57: 0.07 | Z57: 4 | AB57: 37 | AD57: 6 | AF57: 10 | AH57: 0 | AJ57: No
A58: Central Puget Sound Regional Transit Authority, dba: Sound Transit | B58: Seattle | C58: WA | D58: 40 | E58: 40 | F58: Independent Public Agency or Authority of Transit Service | G58: Full Reporter | H58: 3059393 | I58: 384 | J58: SR | K58: DO | L58: 2 | N58: 1.91 | P58: 0.62 | R58: 2.53 | S58: 0 | U58: 0.17 | W58: 0 | Z58: 3 | AB58: 14 | AD58: 0 | AF58: 0 | AH58: 0 | AJ58: No
A59: Niagara Frontier Transportation Authority | B59: Buffalo | C59: NY | D59: 2004 | E59: 20004 | F59: Independent Public Agency or Authority of Transit Service | G59: Full Reporter | H59: 935906 | I59: 358 | J59: LR | K59: DO | L59: 23 | N59: 12 | P59: 0.8 | R59: 12.8 | S59: 0 | U59: 1 | W59: 0.84 | Z59: 0 | AB59: 8 | AD59: 1 | AF59: 4 | AH59: 0 | AJ59: No
A60: Southwest Ohio Regional Transit Authority, dba: Metro / Access | B60: Cincinnati | C60: OH | D60: 5012 | E60: 50012 | F60: Independent Public Agency or Authority of Transit Service | G60: Full Reporter | H60: 1624827 | I60: 348 | J60: SR | K60: PT | L60: 3 | N60: 3.6 | P60: 0 | R60: 3.6 | S60: 3.6 | U60: 0 | W60: 0 | Z60: 0 | AB60: 42 | AD60: 0 | AF60: 0 | AH60: 0 | AJ60: No
A61: City of Tucson | B61: Tucson | C61: AZ | D61: 9033 | E61: 90033 | F61: City, County or Local Government Unit or Department of Transportation | G61: Full Reporter | H61: 843168 | I61: 336 | J61: SR | K61: DO | L61: 6 | N61: 4.09 | P61: 3.55 | R61: 7.64 | S61: 0 | U61: 0.16 | W61: 0 | Z61: 10 | AB61: 42 | AD61: 2 | AF61: 1 | AH61: 0 | AJ61: No
A62: Port Authority Trans-Hudson Corporation | B62: Jersey City | C62: NJ | D62: 2098 | E62: 20098 | F62: Independent Public Agency or Authority of Transit Service | G62: Full Reporter | H62: 18351295 | I62: 304 | J62: HR | K62: DO | L62: 298 | N62: 29.95 | P62: 18.56 | R62: 48.51 | S62: 0 | U62: 10 | W62: 1 | Z62: 123 | AB62: 2 | AD62: 37 | AF62: 0 | AH62: 0 | AJ62: No
A63: Jacksonville Transportation Authority | B63: Jacksonville | C63: FL | D63: 4040 | E63: 40040 | F63: Independent Public Agency or Authority of Transit Service | G63: Full Reporter | H63: 1065219 | I63: 253 | J63: MG | K63: DO | L63: 5 | N63: 3.46 | P63: 1.71 | R63: 5.17 | S63: 0 | U63: 0.23 | W63: 0.42 | Z63: 0 | AB63: 0 | AD63: 0 | AF63: 0 | AH63: 0 | AJ63: No
A64: North County Transit District | B64: Oceanside | C64: CA | D64: 9030 | E64: 90030 | F64: Independent Public Agency or Authority of Transit Service | G64: Full Reporter | H64: 2956746 | I64: 233 | J64: CR | K64: PT | L64: 24 | N64: 63.3 | P64: 26 | R64: 89.3 | S64: 0 | U64: 6.4 | W64: 0.5 | Z64: 70 | AB64: 27 | AD64: 22 | AF64: 0 | AH64: 0 | AJ64: No
A65: North County Transit District | B65: Oceanside | C65: CA | D65: 9030 | E65: 90030 | F65: Independent Public Agency or Authority of Transit Service | G65: Full Reporter | H65: 2956746 | I65: 233 | J65: YR | K65: PT | L65: 8 | N65: 14.87 | P65: 17.93 | R65: 32.8 | S65: 0 | U65: 3.61 | W65: 0.4 | Z65: 34 | AB65: 41 | AD65: 2 | AF65: 0 | AH65: 0 | AJ65: No
A66: Sacramento Regional Transit District | B66: Sacramento | C66: CA | D66: 9019 | E66: 90019 | F66: Independent Public Agency or Authority of Transit Service | G66: Full Reporter | H66: 1723634 | I66: 232 | J66: LR | K66: DO | L66: 69 | N66: 54 | P66: 28.9 | R66: 82.9 | S66: 0 | U66: 1 | W66: 4.09 | Z66: 1 | AB66: 137 | AD66: 15 | AF66: 5 | AH66: 0 | AJ66: No
A67: Southern California Regional Rail Authority, dba: Metrolink | B67: Los Angeles | C67: CA | D67: 9151 | E67: 90151 | F67: Independent Public Agency or Authority of Transit Service | G67: Full Reporter | H67: 12150996 | I67: 195 | J67: CR | K67: PT | L67: 195 | N67: 365.03 | P67: 98.4 | R67: 463.43 | S67: 0 | U67: 238.3 | W67: 2.55 | Z67: 553 | AB67: 458 | AD67: 0 | AF67: 9 | AH67: 0 | AJ67: =IF(O67&Q67&T67&V67&X67&AA67&AC67&AE67&AG67&AI67<>"","Yes","No") -> No
A68: Hillsborough Area Regional Transit Authority | B68: Tampa | C68: FL | D68: 4041 | E68: 40041 | F68: Independent Public Agency or Authority of Transit Service | G68: Full Reporter | H68: 2441770 | I68: 172 | J68: SR | K68: DO | L68: 3 | N68: 2.63 | P68: 0.83 | R68: 3.46 | S68: 0 | U68: 0.04 | W68: 0 | Z68: 14 | AB68: 23 | AD68: 1 | AF68: 0 | AH68: 0 | AJ68: No
A69: New Orleans Regional Transit Authority | B69: New Orleans | C69: LA | D69: 6032 | E69: 60032 | F69: Independent Public Agency or Authority of Transit Service | G69: Full Reporter | H69: 899703 | I69: 165 | J69: SR | K69: PT | L69: 31 | N69: 33 | P69: 1 | R69: 34 | S69: 0 | U69: 5 | W69: 1 | Z69: 4 | AB69: 266 | AD69: 18 | AF69: 1 | AH69: 1 | AJ69: No
A70: City of Memphis, dba: Memphis Area Transit Authority | B70: Memphis | C70: TN | D70: 4003 | E70: 40003 | F70: City, County or Local Government Unit or Department of Transportation | G70: Full Reporter | H70: 1060061 | I70: 145 | J70: SR | K70: DO | L70: 3 | N70: 9.65 | P70: 0.37 | R70: 10.02 | S70: 0 | U70: 0.48 | W70: 0 | Z70: 19 | AB70: 41 | AD70: 9 | AF70: 0 | AH70: 0 | AJ70: No
A71: Peninsula Corridor Joint Powers Board, dba: Caltrain | B71: San Carlos | C71: CA | D71: 9134 | E71: 90134 | F71: Independent Public Agency or Authority of Transit Service | G71: Full Reporter | H71: 3281212 | I71: 141 | J71: CR | K71: PT | L71: 108 | N71: 89 | P71: 32.11 | R71: 121.11 | S71: 35.1 | U71: 20.1 | W71: 4.37 | Z71: 134 | AB71: 54 | AD71: 60 | AF71: 1 | AH71: 0 | AJ71: No
A72: Denton County Transportation Authority | B72: Lewisville | C72: TX | D72: 6101 | E72: 60101 | F72: Independent Public Agency or Authority of Transit Service | G72: Full Reporter | H72: 366174 | I72: 104 | J72: YR | K72: PT | L72: 4 | N72: 14.54 | P72: 10.8 | R72: 25.34 | S72: 0 | U72: 3.36 | W72: 0.52 | Z72: 27 | AB72: 43 | AD72: 0 | AF72: 0 | AH72: 0 | AJ72: No
A73: Virginia Railway Express | B73: Alexandria | C73: VA | D73: 3073 | E73: 30073 | F73: Independent Public Agency or Authority of Transit Service | G73: Full Reporter | H73: 4586770 | I73: 99 | J73: CR | K73: PT | L73: 99 | N73: 108.99 | P73: 80.51 | R73: 189.5 | S73: 189.5 | U73: 3.79 | W73: 0 | Z73: 55 | AB73: 19 | AD73: 35 | AF73: 0 | AH73: 0 | AJ73: No
A74: Chattanooga Area Regional Transportation Authority | B74: Chattanooga | C74: TN | D74: 4001 | E74: 40001 | F74: City, County or Local Government Unit or Department of Transportation | G74: Full Reporter | H74: 381112 | I74: 77 | J74: IP | K74: DO | L74: 2 | N74: 0.86 | P74: 0 | R74: 0.86 | S74: 0 | U74: 0 | W74: 0 | Z74: 0 | AB74: 0 | AD74: 0 | AF74: 0 | AH74: 0 | AJ74: No
A75: Rio Metro Regional Transit District | B75: Albuquerque | C75: NM | D75: 6111 | E75: 60111 | F75: Independent Public Agency or Authority of Transit Service | G75: Full Reporter | H75: 741318 | I75: 73 | J75: CR | K75: PT | L75: 25 | N75: 80.24 | P75: 20.16 | R75: 100.4 | S75: 0 | U75: 12.01 | W75: 2.67 | Z75: 90 | AB75: 95 | AD75: 6 | AF75: 0 | AH75: 0 | AJ75: No
A76: Central Arkansas Transit Authority, dba: Rock Region METRO | B76: North Little Rock | C76: AR | D76: 6033 | E76: 60033 | F76: Independent Public Agency or Authority of Transit Service | G76: Full Reporter | H76: 431388 | I76: 73 | J76: SR | K76: DO | L76: 3 | N76: 2.99 | P76: 0.35 | R76: 3.34 | S76: 0 | U76: 0.16 | W76: 0 | Z76: 17 | AB76: 25 | AD76: 1 | AF76: 0 | AH76: 0 | AJ76: No
A77: Port Authority Transit Corporation | B77: Lindenwold | C77: NJ | D77: 2075 | E77: 20075 | F77: Independent Public Agency or Authority of Transit Service | G77: Full Reporter | H77: 5441567 | I77: 72 | J77: HR | K77: DO | L77: 72 | N77: 22 | P77: 11 | R77: 33 | S77: 0 | U77: 5.4 | W77: 0 | Z77: 78 | AB77: 5 | AD77: 6 | AF77: 6 | AH77: 0 | AJ77: No
A78: Northern Indiana Commuter Transportation District | B78: Chesterton | C78: IN | D78: 5104 | E78: 50104 | F78: Independent Public Agency or Authority of Transit Service | G78: Full Reporter | H78: 8608208 | I78: 70 | J78: CR | K78: DO | L78: 70 | N78: 105.1 | P78: 21.9 | R78: 127 | S78: 0 | U78: 3.4 | W78: 1.74 | Z78: 86 | AB78: 138 | AD78: 10 | AF78: 0 | AH78: 0 | AJ78: No
A79: South Florida Regional Transportation Authority | B79: Pompano Beach | C79: FL | D79: 4077 | E79: 40077 | F79: Independent Public Agency or Authority of Transit Service | G79: Full Reporter | H79: 5502379 | I79: 65 | J79: CR | K79: PT | L79: 43 | N79: 141.3 | P79: 0 | R79: 141.3 | S79: 0 | U79: 8.2 | W79: 0.25 | Z79: 175 | AB79: 0 | AD79: 0 | AF79: 0 | AH79: 0 | AJ79: No
A80: City of Kenosha, dba: Kenosha Area Transit | B80: Kenosha | C80: WI | D80: 5003 | E80: 50003 | F80: City, County or Local Government Unit or Department of Transportation | G80: Full Reporter | H80: 124064 | I80: 58 | J80: SR | K80: DO | L80: 3 | N80: 1.45 | P80: 0.25 | R80: 1.7 | S80: 0 | U80: 0.2 | W80: 0 | Z80: 4 | AB80: 14 | AD80: 0 | AF80: 0 | AH80: 0 | AJ80: No
A81: Alternativa de Transporte Integrado -ATI | B81: San Juan | C81: PR | D81: 4094 | E81: 40094 | F81: State Government Unit or Department of Transportation | G81: Full Reporter | H81: 2148346 | I81: 57 | J81: HR | K81: PT | L81: 32 | N81: 11.63 | P81: 8.98 | R81: 20.61 | S81: 0 | U81: 4.32 | W81: 0.34 | Z81: 33 | AB81: 0 | AD81: 2 | AF81: 7 | AH81: 0 | AJ81: No
A82: Regional Transportation Authority | B82: Nashville | C82: TN | D82: 4159 | E82: 40159 | F82: Independent Public Agency or Authority of Transit Service | G82: Full Reporter | H82: 969587 | I82: 57 | J82: CR | K82: PT | L82: 8 | N82: 25.53 | P82: 5.67 | R82: 31.2 | S82: 0 | U82: 0.7 | W82: 4.3 | Z82: 25 | AB82: 48 | AD82: 0 | AF82: 0 | AH82: 0 | AJ82: No
A83: DDOT - Progressive Transportation Services Administration | B83: Washington | C83: DC | D83: 3112 | E83: 30112 | F83: State Government Unit or Department of Transportation | G83: Full Reporter | H83: 4586770 | I83: 57 | J83: SR | K83: PT | L83: 5 | N83: 4.9 | P83: 0.7 | R83: 5.6 | S83: 0 | U83: 0 | W83: 0.3 | Z83: 2 | AB83: 31 | AD83: 2 | AF83: 0 | AH83: 0 | AJ83: No
A84: Cambria County Transit Authority | B84: Johnstown | C84: PA | D84: 3012 | E84: 30012 | F84: Independent Public Agency or Authority of Transit Service | G84: Full Reporter | H84: 69014 | I84: 53 | J84: IP | K84: DO | L84: 2 | N84: 0.34 | P84: 0 | R84: 0.34 | S84: 0 | U84: 0 | W84: 0 | Z84: 0 | AB84: 0 | AD84: 0 | AF84: 0 | AH84: 0 | AJ84: No
A85: Staten Island Rapid Transit Operating Authority, dba: MTA Staten Island Railway | B85: Staten Island | C85: NY | D85: 2099 | E85: 20099 | F85: Independent Public Agency or Authority of Transit Service | G85: Full Reporter | H85: 18351295 | I85: 44 | J85: HR | K85: DO | L85: 44 | N85: 16.2 | P85: 12.5 | R85: 28.7 | S85: 0 | U85: 3 | W85: 0 | Z85: 17 | AB85: 0 | AD85: 33 | AF85: 4 | AH85: 0 | AJ85: No
A86: West Virginia University - Morgantown Personal Rapid Transit | B86: Morgantown | C86: WV | D86: 3107 | E86: 30107 | F86: University | G86: Full Reporter | H86: 70350 | I86: 43 | J86: MG | K86: DO | L86: 43 | N86: 0 | P86: 0 | R86: 0 | S86: 0 | U86: 0 | W86: 0 | Z86: 0 | AB86: 0 | AD86: 0 | AF86: 0 | AH86: 0 | AJ86: No
A87: Connecticut Department of Transportation | B87: Newington | C87: CT | D87: 1102 | E87: 10102 | F87: State Government Unit or Department of Transportation | G87: Full Reporter | H87: 924859 | I87: 43 | J87: CR | K87: PT | L87: 28 | N87: 0 | P87: 0 | R87: 0 | S87: 0 | U87: 0 | W87: 0 | Z87: 0 | AB87: 0 | AD87: 0 | AF87: 0 | AH87: 0 | AJ87: No
A88: Pennsylvania Department of Transportation | B88: Harrisburg | C88: PA | D88: 3057 | E88: 30057 | F88: State Government Unit or Department of Transportation | G88: Full Reporter | H88: 5441567 | I88: 40 | J88: CR | K88: PT | L88: 40 | N88: 0 | P88: 0 | R88: 0 | S88: 0 | U88: 0 | W88: 0 | Z88: 0 | AB88: 0 | AD88: 0 | AF88: 0 | AH88: 0 | AJ88: No
A89: Valley Metro Rail, Inc. | B89: Phoenix | C89: AZ | D89: 9209 | E89: 90209 | F89: Other Publicly-Owned or Privately Chartered Corporation | G89: Full Reporter | H89: 3629114 | I89: 38 | J89: LR | K89: PT | L89: 38 | N89: 51 | P89: 0.96 | R89: 51.96 | S89: 0 | U89: 3.64 | W89: 0.15 | Z89: 21 | AB89: 192 | AD89: 33 | AF89: 1 | AH89: 0 | AJ89: No
A90: Alaska Railroad Corporation | B90: Anchorage | C90: AK | D90: 41 | E90: 41 | F90: State Government Unit or Department of Transportation | G90: Full Reporter | H90: 251243 | I90: 37 | J90: AR | K90: DO | L90: 37 | N90: 306.84 | P90: 191.42 | R90: 498.26 | S90: 0 | U90: 76.27 | W90: 9.08 | Z90: 541 | AB90: 147 | AD90: 23 | AF90: 3 | AH90: 0 | AJ90: No
A91: Altamont Corridor Express | B91: Stockton | C91: CA | D91: 9182 | E91: 90182 | F91: Independent Public Agency or Authority of Transit Service | G91: Full Reporter | H91: 370583 | I91: 34 | J91: CR | K91: PT | L91: 34 | N91: 142.4 | P91: 0 | R91: 142.4 | S91: 142.4 | U91: 0 | W91: 0 | Z91: 0 | AB91: 175 | AD91: 0 | AF91: 0 | AH91: 0 | AJ91: No
A92: Northern New England Passenger Rail Authority | B92: Portland | C92: ME | D92: 1115 | E92: 10115 | F92: Independent Public Agency or Authority of Transit Service | G92: Full Reporter | H92: 203914 | I92: 21 | J92: CR | K92: PT | L92: 21 | N92: 150 | P92: 45 | R92: 195 | S92: 195 | U92: 2.7 | W92: 0 | Z92: 0 | AB92: 103 | AD92: 0 | AF92: 0 | AH92: 0 | AJ92: No
A93: Central Florida Commuter Rail | B93: Sanford | C93: FL | D93: 4232 | E93: 40232 | F93: State Government Unit or Department of Transportation | G93: Full Reporter | H93: 1510516 | I93: 17 | J93: CR | K93: PT | L93: 17 | N93: 39.5 | P93: 22.6 | R93: 62.1 | S93: 0 | U93: 2.9 | W93: 0.3 | Z93: 45 | AB93: 94 | AD93: 16 | AF93: 0 | AH93: 0 | AJ93: No
A94: City of Portland | B94: Portland | C94: OR | D94: 58 | E94: 58 | F94: City, County or Local Government Unit or Department of Transportation | G94: Full Reporter | H94: 1849898 | I94: 16 | J94: SR | K94: PT | L94: 14 | N94: 10.5 | P94: 1.8 | R94: 12.3 | S94: 1.9 | U94: 0.3 | W94: 0 | Z94: 23 | AB94: 15 | AD94: 3 | AF94: 6 | AH94: 0 | AJ94: No
A95: Sonoma-Marin Area Rail Transit District | B95: Petaluma | C95: CA | E95: 90299 | F95: Independent Public Agency or Authority of Transit Service | G95: Full Reporter | H95: 308231 | I95: 11 | J95: CR | K95: DO | L95: 11 | N95: 37.3 | P95: 11.66 | R95: 48.96 | S95: 0 | U95: 1.17 | W95: 0 | Z95: 43 | AB95: 73 | AD95: 0 | AF95: 0 | AH95: 0 | AJ95: No
A96: Detroit Transportation Corporation | B96: Detroit | C96: MI | D96: 5141 | E96: 50141 | F96: Independent Public Agency or Authority of Transit Service | G96: Full Reporter | H96: 3734090 | I96: 10 | J96: MG | K96: DO | L96: 10 | N96: 2.42 | P96: 0.48 | R96: 2.9 | S96: 0 | U96: 0.27 | W96: 0 | Z96: 9 | AB96: 0 | AD96: 0 | AF96: 0 | AH96: 0 | AJ96: No
A97: City of Seattle, dba: Seattle Center Monorail | B97: Seattle | C97: WA | D97: 23 | E97: 23 | F97: City, County or Local Government Unit or Department of Transportation | G97: Full Reporter | H97: 3059393 | I97: 8 | J97: MG | K97: PT | L97: 8 | N97: 1.3 | P97: 0.5 | R97: 1.8 | S97: 0 | U97: 0 | W97: 0 | Z97: 0 | AB97: 0 | AD97: 0 | AF97: 0 | AH97: 0 | AJ97: No
A98: M-1 Rail, dba: QLINE Detroit | B98: Detroit | C98: MI | D98: 5213 | E98: 50213 | F98: Private-Non-Profit Corporation | G98: Full Reporter | H98: 3734090 | I98: 5 | J98: SR | K98: PT | L98: 5 | N98: 6.51 | P98: 0.29 | R98: 6.8 | S98: 0 | U98: 0.11 | W98: 0 | Z98: 0 | AB98: 40 | AD98: 2 | AF98: 0 | AH98: 0 | AJ98: No
A99: Kansas City, City of Missouri, dba: Kansas City Streetcar | B99: Kansas City | C99: MO | E99: 70271 | F99: City, County or Local Government Unit or Department of Transportation | G99: Full Reporter | H99: 1519417 | I99: 4 | J99: SR | K99: PT | L99: 4 | N99: 3.65 | P99: 0.25 | R99: 3.9 | S99: 0 | U99: 0.5 | W99: 0 | Z99: 1 | AB99: 0 | AD99: 0 | AF99: 0 | AH99: 0 | AJ99: No
A100: City of Atlanta, dba: Atlanta Streetcar - Department of Public Works | B100: Atlanta | C100: GA | D100: 4230 | E100: 40230 | F100: City, County or Local Government Unit or Department of Transportation | G100: Full Reporter | H100: 4515419 | I100: 3 | J100: SR | K100: DO | L100: 3 | N100: 2.13 | P100: 0.56 | R100: 2.69 | S100: 0 | U100: 0.1 | W100: 0 | Z100: 8 | AB100: 33 | AD100: 0 | AF100: 0 | AH100: 0 | AJ100: No
A101: City of Milwaukee | B101: Milwaukee | C101: WI | E101: 55312 | F101: City, County or Local Government Unit or Department of Transportation | G101: Full Reporter | H101: 1376476 | I101: 3 | J101: SR | K101: PT | L101: 3 | N101: 3.4 | P101: 0.5 | R101: 3.9 | S101: 0 | U101: 0.24 | W101: 0 | Z101: 11 | AB101: 48 | AD101: 0 | AF101: 0 | AH101: 0 | AJ101: No
A102: McKinney Avenue Transit Authority | B102: Dallas | C102: TX | D102: 6133 | E102: 60133 | F102: Private-Non-Profit Corporation | G102: Full Reporter | H102: 5121892 | I102: 3 | J102: SR | K102: DO | L102: 3 | N102: 4.03 | P102: 0.5 | R102: 4.53 | S102: 0 | U102: 0.37 | W102: 0 | Z102: 1 | AB102: 55 | AD102: 6 | AF102: 0 | AH102: 0 | AJ102: No
A103: Loop Trolley Transportation Development District | B103: St. Louis | C103: MO | D103: 7057 | E103: 70057 | F103: Independent Public Agency or Authority of Transit Service | G103: Reduced Asset Reporter | H103: 2150706 | I103: 0 | J103: SR | K103: PT | L103: 0 | N103: 2.75 | P103: 0.2 | R103: 2.95 | S103: 0 | U103: 0.15 | W103: 0.4 | Z103: 8 | AB103: 0 | AD103: 0 | AF103: 0 | AH103: 0

Sheet Roadway by Mode
A1: Agency | B1: City | C1: State | D1: Legacy NTD ID | E1: NTD ID | F1: Organization Type | G1: Reporter Type | H1: Primary UZA Population | I1: Agency Voms | J1: Mode | K1: Type Of Service | L1: Mode Voms | M1: Miles Of Roadway: | N1: Exclusive Fixed Guideway | O1: Exclusive Fixed Guideway Questionable | P1: Exclusive High-Intensity Busway | Q1: Exclusive High-Intensity Busway Questionable | R1: Controlled Access High Intensity Busway Or HOV | S1: Controlled Access High Intensity Busway Questionable | T1: Total Miles | U1: Total Miles Questionable | V1: Any data questionable? | Z1: =IF(Z4=1,1,0) -> 1
A2: MTA New York City Transit | B2: New York | C2: NY | D2: 2008 | E2: 20008 | F2: Subsidiary Unit of a Transit Agency, Reporting Separately | G2: Full Reporter | H2: 18351295 | I2: 10856 | J2: MB | K2: DO | L2: 3256 | N2: 31.5 | P2: 0 | R2: 64.3 | T2: 95.8 | V2: =IF(O2&Q2&S2&U2<>"","Yes","No") -> No | Z2: Hide questionable data tags
A3: MTA New York City Transit | B3: New York | C3: NY | D3: 2008 | E3: 20008 | F3: Subsidiary Unit of a Transit Agency, Reporting Separately | G3: Full Reporter | H3: 18351295 | I3: 10856 | J3: CB | K3: DO | L3: 488 | N3: 8.3 | P3: 11.3 | R3: 28.1 | T3: 47.7 | V3: =IF(O3&Q3&S3&U3<>"","Yes","No") -> No | Z3: Show questionable data tags
A4: MTA New York City Transit | B4: New York | C4: NY | D4: 2008 | E4: 20008 | F4: Subsidiary Unit of a Transit Agency, Reporting Separately | G4: Full Reporter | H4: 18351295 | I4: 10856 | J4: RB | K4: DO | L4: 146 | N4: 64.6 | P4: 0 | R4: 0 | T4: 64.6 | V4: No | Z4: 1
A5: New Jersey Transit Corporation | B5: Newark | C5: NJ | D5: 2080 | E5: 20080 | F5: Other Publicly-Owned or Privately Chartered Corporation | G5: Full Reporter | H5: 18351295 | I5: 3873 | J5: MB | K5: DO | L5: 1854 | N5: 0.5 | P5: 0 | R5: 35.8 | T5: 36.3 | V5: No
A6: New Jersey Transit Corporation | B6: Newark | C6: NJ | D6: 2080 | E6: 20080 | F6: Other Publicly-Owned or Privately Chartered Corporation | G6: Full Reporter | H6: 18351295 | I6: 3873 | J6: MB | K6: PT | L6: 178 | N6: 0 | P6: 0 | R6: 0 | T6: 0 | V6: No
A7: Los Angeles County Metropolitan Transportation Authority , dba: Metro | B7: Los Angeles | C7: CA | D7: 9154 | E7: 90154 | F7: Independent Public Agency or Authority of Transit Service | G7: Full Reporter | H7: 12150996 | I7: 3458 | J7: MB | K7: DO | L7: 1750 | N7: 3.1 | P7: 64.3 | R7: 13.5 | T7: 80.9 | V7: No
A8: Los Angeles County Metropolitan Transportation Authority , dba: Metro | B8: Los Angeles | C8: CA | D8: 9154 | E8: 90154 | F8: Independent Public Agency or Authority of Transit Service | G8: Full Reporter | H8: 12150996 | I8: 3458 | J8: MB | K8: PT | L8: 135 | N8: 2.9 | P8: 61.5 | R8: 0 | T8: 64.4 | V8: No
A9: Los Angeles County Metropolitan Transportation Authority , dba: Metro | B9: Los Angeles | C9: CA | D9: 9154 | E9: 90154 | F9: Independent Public Agency or Authority of Transit Service | G9: Full Reporter | H9: 12150996 | I9: 3458 | J9: RB | K9: DO | L9: 31 | N9: 34.5 | P9: 0 | R9: 0 | T9: 34.5 | V9: No
A10: King County Department of Metro Transit, dba: King County Metro | B10: Seattle | C10: WA | D10: 1 | E10: 1 | F10: City, County or Local Government Unit or Department of Transportation | G10: Full Reporter | H10: 3059393 | I10: 3150 | J10: MB | K10: DO | L10: 986 | N10: 17.9 | P10: 192.9 | R10: 78.7 | T10: 289.5 | V10: No
A11: King County Department of Metro Transit, dba: King County Metro | B11: Seattle | C11: WA | D11: 1 | E11: 1 | F11: City, County or Local Government Unit or Department of Transportation | G11: Full Reporter | H11: 3059393 | I11: 3150 | J11: TB | K11: DO | L11: 140 | N11: 116.9 | P11: 0 | R11: 0 | T11: 116.9 | V11: No
A12: King County Department of Metro Transit, dba: King County Metro | B12: Seattle | C12: WA | D12: 1 | E12: 1 | F12: City, County or Local Government Unit or Department of Transportation | G12: Full Reporter | H12: 3059393 | I12: 3150 | J12: MB | K12: PT | L12: 29 | N12: 0 | P12: 0 | R12: 0 | T12: 0 | V12: No
A13: Washington Metropolitan Area Transit Authority | B13: Washington | C13: DC | D13: 3030 | E13: 30030 | F13: Independent Public Agency or Authority of Transit Service | G13: Full Reporter | H13: 4586770 | I13: 3139 | J13: MB | K13: DO | L13: 1278 | N13: 2.6 | P13: 10.4 | R13: 62.7 | T13: 75.7 | V13: No
A14: Chicago Transit Authority | B14: Chicago | C14: IL | D14: 5066 | E14: 50066 | F14: Independent Public Agency or Authority of Transit Service | G14: Full Reporter | H14: 8608208 | I14: 2711 | J14: MB | K14: DO | L14: 1569 | N14: 4.1 | P14: 0 | R14: 0 | T14: 4.1 | V14: No
A15: Metropolitan Transit Authority of Harris County, Texas | B15: Houston | C15: TX | D15: 6008 | E15: 60008 | F15: Independent Public Agency or Authority of Transit Service | G15: Full Reporter | H15: 4944332 | I15: 2659 | J15: MB | K15: DO | L15: 598 | N15: 0 | P15: 6.8 | R15: 20.3 | T15: 27.1 | V15: No
A16: Metropolitan Transit Authority of Harris County, Texas | B16: Houston | C16: TX | D16: 6008 | E16: 60008 | F16: Independent Public Agency or Authority of Transit Service | G16: Full Reporter | H16: 4944332 | I16: 2659 | J16: CB | K16: DO | L16: 248 | N16: 0 | P16: 17.8 | R16: 16 | T16: 33.8 | V16: No
A17: Metropolitan Transit Authority of Harris County, Texas | B17: Houston | C17: TX | D17: 6008 | E17: 60008 | F17: Independent Public Agency or Authority of Transit Service | G17: Full Reporter | H17: 4944332 | I17: 2659 | J17: MB | K17: PT | L17: 101 | N17: 0 | P17: 0 | R17: 8.8 | T17: 8.8 | V17: No
A18: Metropolitan Transit Authority of Harris County, Texas | B18: Houston | C18: TX | D18: 6008 | E18: 60008 | F18: Independent Public Agency or Authority of Transit Service | G18: Full Reporter | H18: 4944332 | I18: 2659 | J18: CB | K18: PT | L18: 64 | N18: 0 | P18: 20 | R18: 3.8 | T18: 23.8 | V18: No
A19: Massachusetts Bay Transportation Authority | B19: Boston | C19: MA | D19: 1003 | E19: 10003 | F19: Independent Public Agency or Authority of Transit Service | G19: Full Reporter | H19: 4181019 | I19: 2423 | J19: MB | K19: DO | L19: 775 | N19: 6.2 | P19: 0 | R19: 0 | T19: 6.2 | V19: No
A20: Massachusetts Bay Transportation Authority | B20: Boston | C20: MA | D20: 1003 | E20: 10003 | F20: Independent Public Agency or Authority of Transit Service | G20: Full Reporter | H20: 4181019 | I20: 2423 | J20: RB | K20: DO | L20: 34 | N20: 13 | P20: 0 | R20: 0 | T20: 13 | V20: No
A21: Massachusetts Bay Transportation Authority | B21: Boston | C21: MA | D21: 1003 | E21: 10003 | F21: Independent Public Agency or Authority of Transit Service | G21: Full Reporter | H21: 4181019 | I21: 2423 | J21: TB | K21: DO | L21: 21 | N21: 21.6 | P21: 0 | R21: 0 | T21: 21.6 | V21: No
A22: Massachusetts Bay Transportation Authority | B22: Boston | C22: MA | D22: 1003 | E22: 10003 | F22: Independent Public Agency or Authority of Transit Service | G22: Full Reporter | H22: 4181019 | I22: 2423 | J22: MB | K22: PT | L22: 8 | N22: 0 | P22: 0 | R22: 0 | T22: 0 | V22: No
A23: Southeastern Pennsylvania Transportation Authority | B23: Philadelphia | C23: PA | D23: 3019 | E23: 30019 | F23: Independent Public Agency or Authority of Transit Service | G23: Full Reporter | H23: 5441567 | I23: 2372 | J23: MB | K23: DO | L23: 1172 | N23: 2.4 | P23: 0 | R23: 0 | T23: 2.4 | V23: No
A24: Southeastern Pennsylvania Transportation Authority | B24: Philadelphia | C24: PA | D24: 3019 | E24: 30019 | F24: Independent Public Agency or Authority of Transit Service | G24: Full Reporter | H24: 5441567 | I24: 2372 | J24: TB | K24: DO | L24: 30 | N24: 30.6 | P24: 0 | R24: 0 | T24: 30.6 | V24: No
A25: Southeastern Pennsylvania Transportation Authority | B25: Philadelphia | C25: PA | D25: 3019 | E25: 30019 | F25: Independent Public Agency or Authority of Transit Service | G25: Full Reporter | H25: 5441567 | I25: 2372 | J25: MB | K25: PT | L25: 6 | N25: 0 | P25: 0 | R25: 0 | T25: 0 | V25: No
A26: Maryland Transit Administration | B26: Baltimore | C26: MD | D26: 3034 | E26: 30034 | F26: State Government Unit or Department of Transportation | G26: Full Reporter | H26: 2203663 | I26: 1683 | J26: MB | K26: DO | L26: 638 | N26: 0 | P26: 0 | R26: 6 | T26: 6 | V26: No
A27: Maryland Transit Administration | B27: Baltimore | C27: MD | D27: 3034 | E27: 30034 | F27: State Government Unit or Department of Transportation | G27: Full Reporter | H27: 2203663 | I27: 1683 | J27: CB | K27: PT | L27: 280 | N27: 0 | P27: 0 | R27: 31.8 | T27: 31.8 | V27: No
A28: Pace - Suburban Bus Division | B28: Arlington Heights | C28: IL | D28: 5113 | E28: 50113 | F28: Independent Public Agency or Authority of Transit Service | G28: Full Reporter | H28: 8608208 | I28: 1510 | J28: MB | K28: DO | L28: 553 | N28: 0 | P28: 0 | R28: 0 | T28: 0 | V28: No
A29: Pace - Suburban Bus Division | B29: Arlington Heights | C29: IL | D29: 5113 | E29: 50113 | F29: Independent Public Agency or Authority of Transit Service | G29: Full Reporter | H29: 8608208 | I29: 1510 | J29: MB | K29: PT | L29: 83 | N29: 0 | P29: 0 | R29: 0 | T29: 0 | V29: No
A30: Orange County Transportation Authority | B30: Orange | C30: CA | D30: 9036 | E30: 90036 | F30: Independent Public Agency or Authority of Transit Service | G30: Full Reporter | H30: 12150996 | I30: 1495 | J30: MB | K30: DO | L30: 234 | N30: 0 | P30: 0 | R30: 21.9 | T30: 21.9 | V30: No
A31: Orange County Transportation Authority | B31: Orange | C31: CA | D31: 9036 | E31: 90036 | F31: Independent Public Agency or Authority of Transit Service | G31: Full Reporter | H31: 12150996 | I31: 1495 | J31: MB | K31: PT | L31: 194 | N31: 0 | P31: 0 | R31: 0 | T31: 0 | V31: No
A32: Orange County Transportation Authority | B32: Orange | C32: CA | D32: 9036 | E32: 90036 | F32: Independent Public Agency or Authority of Transit Service | G32: Full Reporter | H32: 12150996 | I32: 1495 | J32: CB | K32: PT | L32: 21 | N32: 0 | P32: 0 | R32: 144.5 | T32: 144.5 | V32: No
A33: Orange County Transportation Authority | B33: Orange | C33: CA | D33: 9036 | E33: 90036 | F33: Independent Public Agency or Authority of Transit Service | G33: Full Reporter | H33: 12150996 | I33: 1495 | J33: CB | K33: DO | L33: 6 | N33: 0 | P33: 0 | R33: 83.9 | T33: 83.9 | V33: No
A34: Denver Regional Transportation District | B34: Denver | C34: CO | D34: 8006 | E34: 80006 | F34: Independent Public Agency or Authority of Transit Service | G34: Full Reporter | H34: 2374203 | I34: 1457 | J34: MB | K34: DO | L34: 485 | N34: 1.9 | P34: 0 | R34: 25.3 | T34: 27.2 | V34: No
A35: Denver Regional Transportation District | B35: Denver | C35: CO | D35: 8006 | E35: 80006 | F35: Independent Public Agency or Authority of Transit Service | G35: Full Reporter | H35: 2374203 | I35: 1457 | J35: MB | K35: PT | L35: 355 | N35: 0 | P35: 0 | R35: 25.3 | T35: 25.3 | V35: No
A36: County of Miami-Dade , dba: Transportation & Public Work | B36: Miami | C36: FL | D36: 4034 | E36: 40034 | F36: City, County or Local Government Unit or Department of Transportation | G36: Full Reporter | H36: 5502379 | I36: 1396 | J36: MB | K36: DO | L36: 646 | N36: 39.8 | P36: 0 | R36: 52.4 | T36: 92.2 | V36: No
A37: County of Miami-Dade , dba: Transportation & Public Work | B37: Miami | C37: FL | D37: 4034 | E37: 40034 | F37: City, County or Local Government Unit or Department of Transportation | G37: Full Reporter | H37: 5502379 | I37: 1396 | J37: MB | K37: PT | L37: 45 | N37: 8.4 | P37: 0 | R37: 0 | T37: 8.4 | V37: No
A38: County of Miami-Dade , dba: Transportation & Public Work | B38: Miami | C38: FL | D38: 4034 | E38: 40034 | F38: City, County or Local Government Unit or Department of Transportation | G38: Full Reporter | H38: 5502379 | I38: 1396 | J38: CB | K38: PT | L38: 9 | N38: 0 | P38: 0 | R38: 0 | T38: 0 | V38: No
A39: Metro-North Commuter Railroad Company, dba: MTA Metro-North Railroad | B39: New York | C39: NY | D39: 2078 | E39: 20078 | F39: Subsidiary Unit of a Transit Agency, Reporting Separately | G39: Full Reporter | H39: 18351295 | I39: 1168 | J39: MB | K39: PT | L39: 9 | N39: 0 | P39: 0 | R39: 0 | T39: 0 | V39: No
A40: Utah Transit Authority | B40: Salt Lake City | C40: UT | D40: 8001 | E40: 80001 | F40: Independent Public Agency or Authority of Transit Service | G40: Full Reporter | H40: 1021243 | I40: 1113 | J40: MB | K40: DO | L40: 412 | N40: 2.1 | P40: 0 | R40: 0 | T40: 2.1 | V40: No
A41: Utah Transit Authority | B41: Salt Lake City | C41: UT | D41: 8001 | E41: 80001 | F41: Independent Public Agency or Authority of Transit Service | G41: Full Reporter | H41: 1021243 | I41: 1113 | J41: CB | K41: DO | L41: 43 | N41: 0 | P41: 0 | R41: 0 | T41: 0 | V41: No
A42: Utah Transit Authority | B42: Salt Lake City | C42: UT | D42: 8001 | E42: 80001 | F42: Independent Public Agency or Authority of Transit Service | G42: Full Reporter | H42: 1021243 | I42: 1113 | J42: MB | K42: PT | L42: 6 | N42: 0 | P42: 0 | R42: 0 | T42: 0 | V42: No
A43: MTA Bus Company | B43: New York | C43: NY | D43: 2188 | E43: 20188 | F43: Subsidiary Unit of a Transit Agency, Reporting Separately | G43: Full Reporter | H43: 18351295 | I43: 1111 | J43: MB | K43: DO | L43: 1111 | N43: 12.3 | P43: 0 | R43: 14.8 | T43: 27.1 | V43: No
A44: Regional Public Transportation Authority, dba: Valley Metro | B44: Phoenix | C44: AZ | D44: 9136 | E44: 90136 | F44: Independent Public Agency or Authority of Transit Service | G44: Full Reporter | H44: 3629114 | I44: 1070 | J44: MB | K44: PT | L44: 292 | N44: 0 | P44: 0 | R44: 238.1 | T44: 238.1 | V44: No
A45: Dallas Area Rapid Transit | B45: Dallas | C45: TX | D45: 6056 | E45: 60056 | F45: Independent Public Agency or Authority of Transit Service | G45: Full Reporter | H45: 5121892 | I45: 1062 | J45: MB | K45: DO | L45: 537 | N45: 0 | P45: 5.4 | R45: 25.6 | T45: 31 | V45: No
A46: City and County of San Francisco, dba: San Francisco Municipal Transportation Agency | B46: San Francisco | C46: CA | D46: 9015 | E46: 90015 | F46: City, County or Local Government Unit or Department of Transportation | G46: Full Reporter | H46: 3281212 | I46: 1014 | J46: MB | K46: DO | L46: 493 | N46: 0.1 | P46: 12.6 | R46: 6.7 | T46: 19.4 | V46: No
A47: City and County of San Francisco, dba: San Francisco Municipal Transportation Agency | B47: San Francisco | C47: CA | D47: 9015 | E47: 90015 | F47: City, County or Local Government Unit or Department of Transportation | G47: Full Reporter | H47: 3281212 | I47: 1014 | J47: TB | K47: DO | L47: 186 | N47: 163.3 | P47: 0 | R47: 0 | T47: 163.3 | V47: No
A48: Tri-County Metropolitan Transportation District of Oregon | B48: Portland | C48: OR | D48: 8 | E48: 8 | F48: Independent Public Agency or Authority of Transit Service | G48: Full Reporter | H48: 1849898 | I48: 961 | J48: MB | K48: DO | L48: 561 | N48: 6.3 | P48: 0 | R48: 0.6 | T48: 6.9 | V48: No
A49: Port Authority of Allegheny County | B49: Pittsburgh | C49: PA | D49: 3022 | E49: 30022 | F49: Independent Public Agency or Authority of Transit Service | G49: Full Reporter | H49: 1733853 | I49: 933 | J49: MB | K49: DO | L49: 603 | N49: 43.1 | P49: 13.4 | R49: 0 | T49: 56.5 | V49: No
A50: Metro Transit | B50: Minneapolis | C50: MN | D50: 5027 | E50: 50027 | F50: Subsidiary Unit of a Transit Agency, Reporting Separately | G50: Full Reporter | H50: 2650890 | I50: 854 | J50: MB | K50: DO | L50: 758 | N50: 4.7 | P50: 175.8 | R50: 0 | T50: 180.5 | V50: No
A51: Metropolitan Atlanta Rapid Transit Authority | B51: Atlanta | C51: GA | D51: 4022 | E51: 40022 | F51: Independent Public Agency or Authority of Transit Service | G51: Full Reporter | H51: 4515419 | I51: 846 | J51: MB | K51: DO | L51: 465 | N51: 0.2 | P51: 0 | R51: 13.5 | T51: 13.7 | V51: No
A52: VIA Metropolitan Transit | B52: San Antonio | C52: TX | D52: 6011 | E52: 60011 | F52: Independent Public Agency or Authority of Transit Service | G52: Full Reporter | H52: 1758210 | I52: 824 | J52: MB | K52: DO | L52: 387 | N52: 0 | P52: 0 | R52: 0 | T52: 0 | V52: No
A53: City and County of Honolulu, dba: City & County of Honolulu DTS | B53: Honolulu | C53: HI | D53: 9002 | E53: 90002 | F53: City, County or Local Government Unit or Department of Transportation | G53: Full Reporter | H53: 802459 | I53: 817 | J53: MB | K53: PT | L53: 455 | N53: 1.2 | P53: 0 | R53: 20.5 | T53: 21.7 | V53: No
A54: Alameda-Contra Costa Transit District | B54: Oakland | C54: CA | D54: 9014 | E54: 90014 | F54: Independent Public Agency or Authority of Transit Service | G54: Full Reporter | H54: 3281212 | I54: 794 | J54: MB | K54: DO | L54: 443 | N54: 0 | P54: 0.3 | R54: 0 | T54: 0.3 | V54: No
A55: Alameda-Contra Costa Transit District | B55: Oakland | C55: CA | D55: 9014 | E55: 90014 | F55: Independent Public Agency or Authority of Transit Service | G55: Full Reporter | H55: 3281212 | I55: 794 | J55: CB | K55: DO | L55: 121 | N55: 0 | P55: 53.9 | R55: 0 | T55: 53.9 | V55: No
A56: Alameda-Contra Costa Transit District | B56: Oakland | C56: CA | D56: 9014 | E56: 90014 | F56: Independent Public Agency or Authority of Transit Service | G56: Full Reporter | H56: 3281212 | I56: 794 | J56: MB | K56: PT | L56: 14 | N56: 0 | P56: 0 | R56: 0 | T56: 0 | V56: No
A57: San Diego Metropolitan Transit System | B57: San Diego | C57: CA | D57: 9026 | E57: 90026 | F57: Independent Public Agency or Authority of Transit Service | G57: Full Reporter | H57: 2956746 | I57: 793 | J57: MB | K57: PT | L57: 274 | N57: 0.8 | P57: 0 | R57: 0 | T57: 0.8 | V57: No
A58: San Diego Metropolitan Transit System | B58: San Diego | C58: CA | D58: 9026 | E58: 90026 | F58: Independent Public Agency or Authority of Transit Service | G58: Full Reporter | H58: 2956746 | I58: 793 | J58: MB | K58: DO | L58: 232 | N58: 1.7 | P58: 15.4 | R58: 0.1 | T58: 17.2 | V58: No
A59: San Diego Metropolitan Transit System | B59: San Diego | C59: CA | D59: 9026 | E59: 90026 | F59: Independent Public Agency or Authority of Transit Service | G59: Full Reporter | H59: 2956746 | I59: 793 | J59: CB | K59: PT | L59: 19 | N59: 0.5 | P59: 15.4 | R59: 0 | T59: 15.9 | V59: No
A60: Capital Metropolitan Transportation Authority, dba: Capital Metro | B60: Austin | C60: TX | D60: 6048 | E60: 60048 | F60: Independent Public Agency or Authority of Transit Service | G60: Full Reporter | H60: 1362416 | I60: 758 | J60: MB | K60: PT | L60: 312 | N60: 0 | P60: 0 | R60: 0 | T60: 0 | V60: No
A61: Capital Metropolitan Transportation Authority, dba: Capital Metro | B61: Austin | C61: TX | D61: 6048 | E61: 60048 | F61: Independent Public Agency or Authority of Transit Service | G61: Full Reporter | H61: 1362416 | I61: 758 | J61: CB | K61: PT | L61: 35 | N61: 0 | P61: 0 | R61: 0 | T61: 0 | V61: No
A62: Regional Transportation Commission of Southern Nevada | B62: Las Vegas | C62: NV | D62: 9045 | E62: 90045 | F62: Independent Public Agency or Authority of Transit Service | G62: Full Reporter | H62: 1886011 | I62: 707 | J62: MB | K62: PT | L62: 336 | N62: 71.2 | P62: 0 | R62: 22.6 | T62: 93.8 | V62: No
A63: Potomac and Rappahannock Transportation Commission | B63: Woodbridge | C63: VA | D63: 3070 | E63: 30070 | F63: Independent Public Agency or Authority of Transit Service | G63: Full Reporter | H63: 4586770 | I63: 659 | J63: CB | K63: PT | L63: 84 | N63: 0 | P63: 0 | R63: 34.6 | T63: 34.6 | V63: No
A64: Potomac and Rappahannock Transportation Commission | B64: Woodbridge | C64: VA | D64: 3070 | E64: 30070 | F64: Independent Public Agency or Authority of Transit Service | G64: Full Reporter | H64: 4586770 | I64: 659 | J64: MB | K64: PT | L64: 28 | N64: 0 | P64: 0 | R64: 40.1 | T64: 40.1 | V64: No
A65: Snohomish County Public Transportation Benefit Area Corporation | B65: Everett | C65: WA | D65: 29 | E65: 29 | F65: Independent Public Agency or Authority of Transit Service | G65: Full Reporter | H65: 3059393 | I65: 648 | J65: MB | K65: DO | L65: 114 | N65: 0 | P65: 19.8 | R65: 6.3 | T65: 26.1 | V65: No
A66: Snohomish County Public Transportation Benefit Area Corporation | B66: Everett | C66: WA | D66: 29 | E66: 29 | F66: Independent Public Agency or Authority of Transit Service | G66: Full Reporter | H66: 3059393 | I66: 648 | J66: CB | K66: PT | L66: 54 | N66: 0 | P66: 50.8 | R66: 2.3 | T66: 53.1 | V66: No
A67: Snohomish County Public Transportation Benefit Area Corporation | B67: Everett | C67: WA | D67: 29 | E67: 29 | F67: Independent Public Agency or Authority of Transit Service | G67: Full Reporter | H67: 3059393 | I67: 648 | J67: CB | K67: DO | L67: 43 | N67: 0 | P67: 68.1 | R67: 8.4 | T67: 76.5 | V67: =IF(O67&Q67&S67&U67<>"","Yes","No") -> No
A68: Santa Clara Valley Transportation Authority | B68: San Jose | C68: CA | D68: 9013 | E68: 90013 | F68: Independent Public Agency or Authority of Transit Service | G68: Full Reporter | H68: 1664496 | I68: 642 | J68: MB | K68: DO | L68: 384 | N68: 1.1 | P68: 0 | R68: 214.7 | T68: 215.8 | V68: No
A69: Santa Clara Valley Transportation Authority | B69: San Jose | C69: CA | D69: 9013 | E69: 90013 | F69: Independent Public Agency or Authority of Transit Service | G69: Full Reporter | H69: 1664496 | I69: 642 | J69: MB | K69: PT | L69: 12 | N69: 0 | P69: 33.1 | R69: 0 | T69: 33.1 | V69: No
A70: Central Florida Regional Transportation Authority | B70: Orlando | C70: FL | D70: 4035 | E70: 40035 | F70: Independent Public Agency or Authority of Transit Service | G70: Full Reporter | H70: 1510516 | I70: 603 | J70: MB | K70: DO | L70: 247 | N70: 0.7 | P70: 0 | R70: 0 | T70: 0.7 | V70: No
A71: Central Florida Regional Transportation Authority | B71: Orlando | C71: FL | D71: 4035 | E71: 40035 | F71: Independent Public Agency or Authority of Transit Service | G71: Full Reporter | H71: 1510516 | I71: 603 | J71: RB | K71: DO | L71: 14 | N71: 4.8 | P71: 0 | R71: 0 | T71: 4.8 | V71: No
A72: Central Florida Regional Transportation Authority | B72: Orlando | C72: FL | D72: 4035 | E72: 40035 | F72: Independent Public Agency or Authority of Transit Service | G72: Full Reporter | H72: 1510516 | I72: 603 | J72: MB | K72: PT | L72: 13 | N72: 0 | P72: 0 | R72: 0 | T72: 0 | V72: No
A73: Pierce County Transportation Benefit Area Authority | B73: Tacoma | C73: WA | D73: 3 | E73: 3 | F73: Independent Public Agency or Authority of Transit Service | G73: Full Reporter | H73: 3059393 | I73: 531 | J73: MB | K73: DO | L73: 123 | N73: 0 | P73: 16.9 | R73: 0 | T73: 16.9 | V73: No
A74: City of Phoenix Public Transit Department , dba: Valley Metro | B74: Phoenix | C74: AZ | D74: 9032 | E74: 90032 | F74: City, County or Local Government Unit or Department of Transportation | G74: Full Reporter | H74: 3629114 | I74: 526 | J74: MB | K74: PT | L74: 416 | N74: 0 | P74: 0 | R74: 117.7 | T74: 117.7 | V74: No
A75: Broward County Board of County Commissioners, dba: Broward County Transit Division | B75: Plantation | C75: FL | D75: 4029 | E75: 40029 | F75: City, County or Local Government Unit or Department of Transportation | G75: Full Reporter | H75: 5502379 | I75: 507 | J75: MB | K75: DO | L75: 284 | N75: 0 | P75: 0 | R75: 0 | T75: 0 | V75: No
A76: Broward County Board of County Commissioners, dba: Broward County Transit Division | B76: Plantation | C76: FL | D76: 4029 | E76: 40029 | F76: City, County or Local Government Unit or Department of Transportation | G76: Full Reporter | H76: 5502379 | I76: 507 | J76: MB | K76: PT | L76: 7 | N76: 0 | P76: 0 | R76: 0 | T76: 0 | V76: No
A77: Delaware Transit Corporation | B77: Dover | C77: DE | D77: 3075 | E77: 30075 | F77: Independent Public Agency or Authority of Transit Service | G77: Full Reporter | H77: 5441567 | I77: 502 | J77: MB | K77: DO | L77: 159 | N77: 0 | P77: 0 | R77: 0 | T77: 0 | V77: No
A78: Delaware Transit Corporation | B78: Dover | C78: DE | D78: 3075 | E78: 30075 | F78: Independent Public Agency or Authority of Transit Service | G78: Full Reporter | H78: 5441567 | I78: 502 | J78: MB | K78: PT | L78: 38 | N78: 0 | P78: 0 | R78: 0 | T78: 0 | V78: No
A79: Bi-State Development Agency of the Missouri-Illinois Metropolitan District, dba: d.b.a. (St. Louis) Metro | B79: St. Louis | C79: MO | D79: 7006 | E79: 70006 | F79: Independent Public Agency or Authority of Transit Service | G79: Full Reporter | H79: 2150706 | I79: 493 | J79: MB | K79: DO | L79: 333 | N79: 0 | P79: 0 | R79: 0 | T79: 0 | V79: No
A80: The Greater Cleveland Regional Transit Authority | B80: Cleveland | C80: OH | D80: 5015 | E80: 50015 | F80: Independent Public Agency or Authority of Transit Service | G80: Full Reporter | H80: 1780673 | I80: 472 | J80: MB | K80: DO | L80: 275 | N80: 0 | P80: 0 | R80: 3.2 | T80: 3.2 | V80: No
A81: The Greater Cleveland Regional Transit Authority | B81: Cleveland | C81: OH | D81: 5015 | E81: 50015 | F81: Independent Public Agency or Authority of Transit Service | G81: Full Reporter | H81: 1780673 | I81: 472 | J81: RB | K81: DO | L81: 13 | N81: 8.7 | P81: 0 | R81: 5.4 | T81: 14.1 | V81: No
A82: Ben Franklin Transit | B82: Richland | C82: WA | D82: 18 | E82: 18 | F82: Independent Public Agency or Authority of Transit Service | G82: Full Reporter | H82: 210975 | I82: 429 | J82: MB | K82: DO | L82: 45 | N82: 0 | P82: 0 | R82: 0 | T82: 0 | V82: No
A83: Board of County Commissioners, Palm Beach County, dba: Palm Tran, Inc. | B83: West Palm Beach | C83: FL | D83: 4037 | E83: 40037 | F83: City, County or Local Government Unit or Department of Transportation | G83: Full Reporter | H83: 5502379 | I83: 414 | J83: MB | K83: DO | L83: 130 | N83: 0 | P83: 0 | R83: 0 | T83: 0 | V83: No
A84: Milwaukee County, dba: Milwaukee County Transit System | B84: Milwaukee | C84: WI | D84: 5008 | E84: 50008 | F84: City, County or Local Government Unit or Department of Transportation | G84: Full Reporter | H84: 1376476 | I84: 405 | J84: MB | K84: PT | L84: 321 | N84: 0 | P84: 0 | R84: 0 | T84: 0 | V84: No
A85: City of Charlotte North Carolina, dba: Charlotte Area Transit System | B85: Charlotte | C85: NC | D85: 4008 | E85: 40008 | F85: City, County or Local Government Unit or Department of Transportation | G85: Full Reporter | H85: 1249442 | I85: 404 | J85: MB | K85: DO | L85: 190 | N85: 7.7 | P85: 14.4 | R85: 0 | T85: 22.1 | V85: No
A86: City of Charlotte North Carolina, dba: Charlotte Area Transit System | B86: Charlotte | C86: NC | D86: 4008 | E86: 40008 | F86: City, County or Local Government Unit or Department of Transportation | G86: Full Reporter | H86: 1249442 | I86: 404 | J86: CB | K86: DO | L86: 71 | N86: 7.7 | P86: 14.4 | R86: 0 | T86: 22.1 | V86: No
A87: San Mateo County Transit District | B87: San Carlos | C87: CA | D87: 9009 | E87: 90009 | F87: Independent Public Agency or Authority of Transit Service | G87: Full Reporter | H87: 3281212 | I87: 399 | J87: MB | K87: DO | L87: 191 | N87: 0 | P87: 0 | R87: 0 | T87: 0 | V87: No
A88: San Mateo County Transit District | B88: San Carlos | C88: CA | D88: 9009 | E88: 90009 | F88: Independent Public Agency or Authority of Transit Service | G88: Full Reporter | H88: 3281212 | I88: 399 | J88: MB | K88: PT | L88: 76 | N88: 0 | P88: 0 | R88: 0 | T88: 0 | V88: No
A89: Transportation District Commission of Hampton Roads, dba: Hampton Roads Transit | B89: Hampton | C89: VA | D89: 3083 | E89: 30083 | F89: Independent Public Agency or Authority of Transit Service | G89: Full Reporter | H89: 1439666 | I89: 397 | J89: MB | K89: DO | L89: 242 | N89: 0 | P89: 0 | R89: 72.8 | T89: 72.8 | V89: No
A90: Central Puget Sound Regional Transit Authority, dba: Sound Transit | B90: Seattle | C90: WA | D90: 40 | E90: 40 | F90: Independent Public Agency or Authority of Transit Service | G90: Full Reporter | H90: 3059393 | I90: 384 | J90: CB | K90: DO | L90: 210 | N90: 2.9 | P90: 129.8 | R90: 52.2 | T90: 184.9 | V90: No
A91: Central Puget Sound Regional Transit Authority, dba: Sound Transit | B91: Seattle | C91: WA | D91: 40 | E91: 40 | F91: Independent Public Agency or Authority of Transit Service | G91: Full Reporter | H91: 3059393 | I91: 384 | J91: CB | K91: PT | L91: 48 | N91: 0 | P91: 44.6 | R91: 33.9 | T91: 78.5 | V91: No
A92: City of Los Angeles, dba: City of Los Angeles Department of Transportation | B92: Los Angeles | C92: CA | D92: 9147 | E92: 90147 | F92: City, County or Local Government Unit or Department of Transportation | G92: Full Reporter | H92: 12150996 | I92: 359 | J92: MB | K92: PT | L92: 170 | N92: 0 | P92: 0 | R92: 0 | T92: 0 | V92: No
A93: City of Los Angeles, dba: City of Los Angeles Department of Transportation | B93: Los Angeles | C93: CA | D93: 9147 | E93: 90147 | F93: City, County or Local Government Unit or Department of Transportation | G93: Full Reporter | H93: 12150996 | I93: 359 | J93: CB | K93: PT | L93: 96 | N93: 0 | P93: 35.1 | R93: 0 | T93: 35.1 | V93: No
A94: Niagara Frontier Transportation Authority | B94: Buffalo | C94: NY | D94: 2004 | E94: 20004 | F94: Independent Public Agency or Authority of Transit Service | G94: Full Reporter | H94: 935906 | I94: 358 | J94: MB | K94: DO | L94: 273 | N94: 0 | P94: 0 | R94: 0 | T94: 0 | V94: No
A95: Southwest Ohio Regional Transit Authority, dba: Metro / Access | B95: Cincinnati | C95: OH | D95: 5012 | E95: 50012 | F95: Independent Public Agency or Authority of Transit Service | G95: Full Reporter | H95: 1624827 | I95: 348 | J95: MB | K95: DO | L95: 299 | N95: 0.1 | P95: 0 | R95: 0 | T95: 0.1 | V95: No
A96: Pinellas Suncoast Transit Authority | B96: St. Petersburg | C96: FL | D96: 4027 | E96: 40027 | F96: Independent Public Agency or Authority of Transit Service | G96: Full Reporter | H96: 2441770 | I96: 345 | J96: MB | K96: DO | L96: 193 | N96: 0 | P96: 0 | R96: 1.1 | T96: 1.1 | V96: No
A97: Pinellas Suncoast Transit Authority | B97: St. Petersburg | C97: FL | D97: 4027 | E97: 40027 | F97: Independent Public Agency or Authority of Transit Service | G97: Full Reporter | H97: 2441770 | I97: 345 | J97: MB | K97: PT | L97: 11 | N97: 0 | P97: 0 | R97: 0 | T97: 0 | V97: No
A98: Westchester County, dba: The Bee-Line System | B98: White Plains | C98: NY | D98: 2076 | E98: 20076 | F98: City, County or Local Government Unit or Department of Transportation | G98: Full Reporter | H98: 18351295 | I98: 343 | J98: MB | K98: PT | L98: 263 | N98: 0 | P98: 0 | R98: 0 | T98: 0 | V98: No
A99: City of Tucson | B99: Tucson | C99: AZ | D99: 9033 | E99: 90033 | F99: City, County or Local Government Unit or Department of Transportation | G99: Full Reporter | H99: 843168 | I99: 336 | J99: MB | K99: DO | L99: 204 | N99: 0 | P99: 0 | R99: 0 | T99: 0 | V99: No
A100: Greater Richmond Transit Company | B100: Richmond | C100: VA | D100: 3006 | E100: 30006 | F100: Other Publicly-Owned or Privately Chartered Corporation | G100: Full Reporter | H100: 953556 | I100: 330 | J100: MB | K100: DO | L100: 115 | N100: 0 | P100: 0 | R100: 0 | T100: 0 | V100: No
A101: Greater Richmond Transit Company | B101: Richmond | C101: VA | D101: 3006 | E101: 30006 | F101: Other Publicly-Owned or Privately Chartered Corporation | G101: Full Reporter | H101: 953556 | I101: 330 | J101: RB | K101: DO | L101: 8 | N101: 6.6 | P101: 0 | R101: 0 | T101: 6.6 | V101: No
A102: Central Ohio Transit Authority | B102: Columbus | C102: OH | D102: 5016 | E102: 50016 | F102: Independent Public Agency or Authority of Transit Service | G102: Full Reporter | H102: 1368035 | I102: 328 | J102: MB | K102: DO | L102: 268 | N102: 0 | P102: 0 | R102: 0 | T102: 0 | V102: No
A103: Transit Authority of River City | B103: Louisville | C103: KY | D103: 4018 | E103: 40018 | F103: Independent Public Agency or Authority of Transit Service | G103: Full Reporter | H103: 972546 | I103: 328 | J103: MB | K103: DO | L103: 181 | N103: 0 | P103: 0 | R103: 0 | T103: 0 | V103: No
A104: Transit Authority of River City | B104: Louisville | C104: KY | D104: 4018 | E104: 40018 | F104: Independent Public Agency or Authority of Transit Service | G104: Full Reporter | H104: 972546 | I104: 328 | J104: MB | K104: PT | L104: 2 | N104: 0 | P104: 0 | R104: 0 | T104: 0 | V104: No
A105: County of Nassau, dba: Nassau Inter County Express | B105: Garden City | C105: NY | D105: 2206 | E105: 20206 | F105: City, County or Local Government Unit or Department of Transportation | G105: Full Reporter | H105: 18351295 | I105: 323 | J105: MB | K105: PT | L105: 227 | N105: 0 | P105: 0 | R105: 0 | T105: 0 | V105: No
A106: Suburban Mobility Authority for Regional Transportation | B106: Detroit | C106: MI | D106: 5031 | E106: 50031 | F106: Independent Public Agency or Authority of Transit Service | G106: Full Reporter | H106: 3734090 | I106: 322 | J106: MB | K106: DO | L106: 220 | N106: 0 | P106: 0 | R106: 0 | T106: 0 | V106: No
A107: Kansas City Area Transportation Authority | B107: Kansas City | C107: MO | D107: 7005 | E107: 70005 | F107: Independent Public Agency or Authority of Transit Service | G107: Full Reporter | H107: 1519417 | I107: 311 | J107: MB | K107: DO | L107: 160 | N107: 0.5 | P107: 0 | R107: 3 | T107: 3.5 | V107: No
A108: Kansas City Area Transportation Authority | B108: Kansas City | C108: MO | D108: 7005 | E108: 70005 | F108: Independent Public Agency or Authority of Transit Service | G108: Full Reporter | H108: 1519417 | I108: 311 | J108: RB | K108: DO | L108: 11 | N108: 11.6 | P108: 0 | R108: 0 | T108: 11.6 | V108: No
A109: City of Detroit , dba: Detroit Department of Transportation | B109: Detroit | C109: MI | D109: 5119 | E109: 50119 | F109: City, County or Local Government Unit or Department of Transportation | G109: Full Reporter | H109: 3734090 | I109: 309 | J109: MB | K109: DO | L109: 243 | N109: 0 | P109: 0 | R109: 0 | T109: 0 | V109: No
A110: Montgomery County, Maryland, dba: Ride On, Montgomery County Transit | B110: Rockville | C110: MD | D110: 3051 | E110: 30051 | F110: City, County or Local Government Unit or Department of Transportation | G110: Full Reporter | H110: 4586770 | I110: 307 | J110: MB | K110: DO | L110: 307 | N110: 0 | P110: 0 | R110: 0 | T110: 0 | V110: No
A111: Spokane Transit Authority | B111: Spokane | C111: WA | D111: 2 | E111: 2 | F111: Independent Public Agency or Authority of Transit Service | G111: Full Reporter | H111: 387847 | I111: 306 | J111: MB | K111: DO | L111: 117 | N111: 0 | P111: 0 | R111: 0 | T111: 0 | V111: No
A112: Cape Cod Regional Transit Authority | B112: Hyannis | C112: MA | D112: 1105 | E112: 10105 | F112: Independent Public Agency or Authority of Transit Service | G112: Full Reporter | H112: 246695 | I112: 303 | J112: MB | K112: PT | L112: 38 | N112: 0 | P112: 0 | R112: 0 | T112: 0 | V112: No
A113: Victor Valley Transit Authority | B113: Hesperia | C113: CA | D113: 9148 | E113: 90148 | F113: Independent Public Agency or Authority of Transit Service | G113: Full Reporter | H113: 328454 | I113: 302 | J113: MB | K113: PT | L113: 47 | N113: 0 | P113: 0 | R113: 0 | T113: 0 | V113: No
A114: Victor Valley Transit Authority | B114: Hesperia | C114: CA | D114: 9148 | E114: 90148 | F114: Independent Public Agency or Authority of Transit Service | G114: Full Reporter | H114: 328454 | I114: 302 | J114: CB | K114: PT | L114: 7 | N114: 0 | P114: 0 | R114: 0 | T114: 0 | V114: No
A115: Rhode Island Public Transit Authority | B115: Providence | C115: RI | D115: 1001 | E115: 10001 | F115: Independent Public Agency or Authority of Transit Service | G115: Full Reporter | H115: 1190956 | I115: 299 | J115: MB | K115: DO | L115: 204 | N115: 0.8 | P115: 0 | R115: 0 | T115: 0.8 | V115: No
A116: Foothill Transit | B116: West Covina | C116: CA | D116: 9146 | E116: 90146 | F116: Independent Public Agency or Authority of Transit Service | G116: Full Reporter | H116: 12150996 | I116: 296 | J116: MB | K116: PT | L116: 296 | N116: 1.5 | P116: 0 | R116: 62.3 | T116: 63.8 | V116: No
A117: Riverside Transit Agency | B117: Riverside | C117: CA | D117: 9031 | E117: 90031 | F117: Independent Public Agency or Authority of Transit Service | G117: Full Reporter | H117: 1932666 | I117: 293 | J117: MB | K117: DO | L117: 95 | N117: 0 | P117: 0 | R117: 0 | T117: 0 | V117: No
A118: Riverside Transit Agency | B118: Riverside | C118: CA | D118: 9031 | E118: 90031 | F118: Independent Public Agency or Authority of Transit Service | G118: Full Reporter | H118: 1932666 | I118: 293 | J118: MB | K118: PT | L118: 50 | N118: 0 | P118: 0 | R118: 0 | T118: 0 | V118: No
A119: Riverside Transit Agency | B119: Riverside | C119: CA | D119: 9031 | E119: 90031 | F119: Independent Public Agency or Authority of Transit Service | G119: Full Reporter | H119: 1932666 | I119: 293 | J119: CB | K119: DO | L119: 20 | N119: 0 | P119: 0 | R119: 0 | T119: 0 | V119: No
A120: Riverside Transit Agency | B120: Riverside | C120: CA | D120: 9031 | E120: 90031 | F120: Independent Public Agency or Authority of Transit Service | G120: Full Reporter | H120: 1932666 | I120: 293 | J120: CB | K120: PT | L120: 16 | N120: 0 | P120: 0 | R120: 0 | T120: 0 | V120: No
A121: Fort Worth Transportation Authority, dba: Trinity Metro | B121: Fort Worth | C121: TX | D121: 6007 | E121: 60007 | F121: Independent Public Agency or Authority of Transit Service | G121: Full Reporter | H121: 5121892 | I121: 292 | J121: MB | K121: DO | L121: 122 | N121: 0 | P121: 0 | R121: 0 | T121: 0 | V121: No
A122: Fort Worth Transportation Authority, dba: Trinity Metro | B122: Fort Worth | C122: TX | D122: 6007 | E122: 60007 | F122: Independent Public Agency or Authority of Transit Service | G122: Full Reporter | H122: 5121892 | I122: 292 | J122: MB | K122: PT | L122: 4 | N122: 0 | P122: 0 | R122: 0 | T122: 0 | V122: No
A123: Suffolk County , dba: Dept of Public Works - Transportation Division | B123: Yaphank | C123: NY | D123: 2072 | E123: 20072 | F123: City, County or Local Government Unit or Department of Transportation | G123: Full Reporter | H123: 18351295 | I123: 290 | J123: MB | K123: PT | L123: 116 | N123: 0 | P123: 0 | R123: 46.9 | T123: 46.9 | V123: No
A124: City of Raleigh, dba: GoRaleigh | B124: Raleigh | C124: NC | D124: 4007 | E124: 40007 | F124: City, County or Local Government Unit or Department of Transportation | G124: Full Reporter | H124: 884891 | I124: 289 | J124: MB | K124: DO | L124: 65 | N124: 0 | P124: 0 | R124: 0 | T124: 0 | V124: No
A125: Intercity Transit | B125: Olympia | C125: WA | D125: 19 | E125: 19 | F125: Independent Public Agency or Authority of Transit Service | G125: Full Reporter | H125: 176617 | I125: 282 | J125: MB | K125: DO | L125: 48 | N125: 0 | P125: 0 | R125: 0 | T125: 0 | V125: No
A126: Intercity Transit | B126: Olympia | C126: WA | D126: 19 | E126: 19 | F126: Independent Public Agency or Authority of Transit Service | G126: Full Reporter | H126: 176617 | I126: 282 | J126: CB | K126: DO | L126: 9 | N126: 0 | P126: 0 | R126: 0 | T126: 0 | V126: No
A127: Capital District Transportation Authority | B127: Albany | C127: NY | D127: 2002 | E127: 20002 | F127: Independent Public Agency or Authority of Transit Service | G127: Full Reporter | H127: 594962 | I127: 272 | J127: MB | K127: DO | L127: 198 | N127: 0 | P127: 0 | R127: 0 | T127: 0 | V127: No
A128: Capital District Transportation Authority | B128: Albany | C128: NY | D128: 2002 | E128: 20002 | F128: Independent Public Agency or Authority of Transit Service | G128: Full Reporter | H128: 594962 | I128: 272 | J128: CB | K128: PT | L128: 11 | N128: 0 | P128: 0 | R128: 0 | T128: 0 | V128: No
A129: Salem Area Mass Transit District, dba: Salem-Keizer Transit | B129: Salem | C129: OR | D129: 25 | E129: 25 | F129: Independent Public Agency or Authority of Transit Service | G129: Full Reporter | H129: 236632 | I129: 267 | J129: MB | K129: DO | L129: 53 | N129: 0 | P129: 0 | R129: 0 | T129: 0 | V129: No
A130: Metropolitan Transit Authority | B130: Nashville | C130: TN | D130: 4004 | E130: 40004 | F130: Independent Public Agency or Authority of Transit Service | G130: Full Reporter | H130: 969587 | I130: 266 | J130: MB | K130: DO | L130: 153 | N130: 0 | P130: 0 | R130: 0 | T130: 0 | V130: No
A131: Ann Arbor Area Transportation Authority | B131: Ann Arbor | C131: MI | D131: 5040 | E131: 50040 | F131: Independent Public Agency or Authority of Transit Service | G131: Full Reporter | H131: 306022 | I131: 265 | J131: MB | K131: DO | L131: 85 | N131: 0 | P131: 0 | R131: 0 | T131: 0 | V131: =IF(O131&Q131&S131&U131<>"","Yes","No") -> No
A132: Ann Arbor Area Transportation Authority | B132: Ann Arbor | C132: MI | D132: 5040 | E132: 50040 | F132: Independent Public Agency or Authority of Transit Service | G132: Full Reporter | H132: 306022 | I132: 265 | J132: CB | K132: PT | L132: 2 | N132: 0 | P132: 0 | R132: 0 | T132: 0 | V132: No
A133: Ann Arbor Area Transportation Authority | B133: Ann Arbor | C133: MI | D133: 5040 | E133: 50040 | F133: Independent Public Agency or Authority of Transit Service | G133: Full Reporter | H133: 306022 | I133: 265 | J133: CB | K133: DO | L133: 2 | N133: 0 | P133: 0 | R133: 0 | T133: 0 | V133: No
A134: Regional Transportation Commission of Washoe County | B134: Reno | C134: NV | D134: 9001 | E134: 90001 | F134: Independent Public Agency or Authority of Transit Service | G134: Full Reporter | H134: 392141 | I134: 264 | J134: MB | K134: PT | L134: 54 | N134: 0.5 | P134: 0 | R134: 0 | T134: 0.5 | V134: No
A135: Regional Transportation Commission of Washoe County | B135: Reno | C135: NV | D135: 9001 | E135: 90001 | F135: Independent Public Agency or Authority of Transit Service | G135: Full Reporter | H135: 392141 | I135: 264 | J135: CB | K135: PT | L135: 3 | N135: 0 | P135: 0 | R135: 0 | T135: 0 | V135: No
A136: Pioneer Valley Transit Authority | B136: Springfield | C136: MA | D136: 1008 | E136: 10008 | F136: Independent Public Agency or Authority of Transit Service | G136: Full Reporter | H136: 621300 | I136: 263 | J136: MB | K136: PT | L136: 147 | N136: 0 | P136: 0 | R136: 0 | T136: 0 | V136: No
A137: Kitsap Transit | B137: Bremerton | C137: WA | D137: 20 | E137: 20 | F137: Independent Public Agency or Authority of Transit Service | G137: Full Reporter | H137: 198979 | I137: 258 | J137: MB | K137: DO | L137: 92 | N137: 0 | P137: 0 | R137: 0 | T137: 0 | V137: No
A138: City of Madison | B138: Madison | C138: WI | D138: 5005 | E138: 50005 | F138: City, County or Local Government Unit or Department of Transportation | G138: Full Reporter | H138: 401661 | I138: 254 | J138: MB | K138: DO | L138: 182 | N138: 12.5 | P138: 0 | R138: 0 | T138: 12.5 | V138: No
A139: Jacksonville Transportation Authority | B139: Jacksonville | C139: FL | D139: 4040 | E139: 40040 | F139: Independent Public Agency or Authority of Transit Service | G139: Full Reporter | H139: 1065219 | I139: 253 | J139: MB | K139: DO | L139: 153 | N139: 0 | P139: 0 | R139: 0 | T139: 0 | V139: No
A140: Omnitrans | B140: San Bernardino | C140: CA | D140: 9029 | E140: 90029 | F140: Independent Public Agency or Authority of Transit Service | G140: Full Reporter | H140: 1932666 | I140: 250 | J140: MB | K140: DO | L140: 147 | N140: 5.4 | P140: 0 | R140: 0 | T140: 5.4 | V140: No
A141: Omnitrans | B141: San Bernardino | C141: CA | D141: 9029 | E141: 90029 | F141: Independent Public Agency or Authority of Transit Service | G141: Full Reporter | H141: 1932666 | I141: 250 | J141: MB | K141: PT | L141: 7 | N141: 0 | P141: 0 | R141: 0 | T141: 0 | V141: No
A142: Central Pennsylvania Transportation Authority | B142: York | C142: PA | D142: 3027 | E142: 30027 | F142: Independent Public Agency or Authority of Transit Service | G142: Full Reporter | H142: 232045 | I142: 248 | J142: MB | K142: DO | L142: 33 | N142: 0 | P142: 0 | R142: 0 | T142: 0 | V142: No
A143: Central Pennsylvania Transportation Authority | B143: York | C143: PA | D143: 3027 | E143: 30027 | F143: Independent Public Agency or Authority of Transit Service | G143: Full Reporter | H143: 232045 | I143: 248 | J143: CB | K143: DO | L143: 8 | N143: 0 | P143: 0 | R143: 0 | T143: 0 | V143: No
A144: Regional Transit Service - Monroe County, dba: RTS Monroe (MB) and RTS Access (DR) | B144: Rochester | C144: NY | D144: 2113 | E144: 20113 | F144: Independent Public Agency or Authority of Transit Service | G144: Full Reporter | H144: 720572 | I144: 247 | J144: MB | K144: DO | L144: 193 | N144: 0 | P144: 0 | R144: 0 | T144: 0 | V144: No
A145: Fairfax County, VA, dba: Fairfax Connector Bus System | B145: Fairfax | C145: VA | D145: 3068 | E145: 30068 | F145: City, County or Local Government Unit or Department of Transportation | G145: Full Reporter | H145: 4586770 | I145: 245 | J145: MB | K145: PT | L145: 245 | N145: 0 | P145: 0 | R145: 34.8 | T145: 34.8 | V145: No
A146: Mass Transportation Authority | B146: Flint | C146: MI | D146: 5032 | E146: 50032 | F146: Independent Public Agency or Authority of Transit Service | G146: Full Reporter | H146: 356218 | I146: 242 | J146: MB | K146: DO | L146: 99 | N146: 0 | P146: 0 | R146: 0 | T146: 0 | V146: No
A147: Lane Transit District | B147: Eugene | C147: OR | D147: 7 | E147: 7 | F147: Independent Public Agency or Authority of Transit Service | G147: Full Reporter | H147: 247421 | I147: 242 | J147: MB | K147: DO | L147: 74 | N147: 0 | P147: 0 | R147: 0 | T147: 0 | V147: No
A148: Lane Transit District | B148: Eugene | C148: OR | D148: 7 | E148: 7 | F148: Independent Public Agency or Authority of Transit Service | G148: Full Reporter | H148: 247421 | I148: 242 | J148: RB | K148: DO | L148: 13 | N148: 15.4 | P148: 0 | R148: 0 | T148: 15.4 | V148: No
A149: Lane Transit District | B149: Eugene | C149: OR | D149: 7 | E149: 7 | F149: Independent Public Agency or Authority of Transit Service | G149: Full Reporter | H149: 247421 | I149: 242 | J149: MB | K149: PT | L149: 3 | N149: 0 | P149: 0 | R149: 0 | T149: 0 | V149: No
A150: Connecticut Department of Transportation - CTTRANSIT - Hartford Division | B150: Hartford | C150: CT | D150: 1048 | E150: 10048 | F150: State Government Unit or Department of Transportation | G150: Full Reporter | H150: 924859 | I150: 236 | J150: MB | K150: DO | L150: 227 | N150: 18.2 | P150: 28.8 | R150: 0 | T150: 47 | V150: No
A151: Connecticut Department of Transportation - CTTRANSIT - Hartford Division | B151: Hartford | C151: CT | D151: 1048 | E151: 10048 | F151: State Government Unit or Department of Transportation | G151: Full Reporter | H151: 924859 | I151: 236 | J151: RB | K151: DO | L151: 9 | N151: 18.2 | P151: 0 | R151: 0 | T151: 18.2 | V151: No
A152: North County Transit District | B152: Oceanside | C152: CA | D152: 9030 | E152: 90030 | F152: Independent Public Agency or Authority of Transit Service | G152: Full Reporter | H152: 2956746 | I152: 233 | J152: MB | K152: PT | L152: 146 | N152: 0 | P152: 0 | R152: 0 | T152: 0 | V152: No
A153: Des Moines Area Regional Transit Authority | B153: Des Moines | C153: IA | D153: 7010 | E153: 70010 | F153: Independent Public Agency or Authority of Transit Service | G153: Full Reporter | H153: 450070 | I153: 233 | J153: MB | K153: DO | L153: 110 | N153: 0 | P153: 0 | R153: 0 | T153: 0 | V153: No
A154: Sacramento Regional Transit District | B154: Sacramento | C154: CA | D154: 9019 | E154: 90019 | F154: Independent Public Agency or Authority of Transit Service | G154: Full Reporter | H154: 1723634 | I154: 232 | J154: MB | K154: DO | L154: 155 | N154: 0 | P154: 0 | R154: 0 | T154: 0 | V154: No
A155: Interurban Transit Partnership | B155: Grand Rapids | C155: MI | D155: 5033 | E155: 50033 | F155: Independent Public Agency or Authority of Transit Service | G155: Full Reporter | H155: 569935 | I155: 229 | J155: MB | K155: DO | L155: 123 | N155: 0 | P155: 0 | R155: 0 | T155: 0 | V155: No
A156: Interurban Transit Partnership | B156: Grand Rapids | C156: MI | D156: 5033 | E156: 50033 | F156: Independent Public Agency or Authority of Transit Service | G156: Full Reporter | H156: 569935 | I156: 229 | J156: RB | K156: DO | L156: 8 | N156: 19 | P156: 0 | R156: 0 | T156: 19 | V156: No
A157: Academy Lines, Inc. | B157: Hoboken | C157: NJ | D157: 2122 | E157: 20122 | F157: Private-For-Profit Corporation | G157: Full Reporter | H157: 18351295 | I157: 225 | J157: CB | K157: DO | L157: 225 | N157: 0 | P157: 0 | R157: 2.9 | T157: 2.9 | V157: No
A158: Central New York Regional Transportation Authority, dba: New York Regional Transportation Authority | B158: Syracuse | C158: NY | D158: 2018 | E158: 20018 | F158: Independent Public Agency or Authority of Transit Service | G158: Full Reporter | H158: 412317 | I158: 222 | J158: MB | K158: DO | L158: 162 | N158: 0 | P158: 0 | R158: 0 | T158: 0 | V158: No
A159: Metropolitan Council | B159: St. Paul | C159: MN | D159: 5154 | E159: 50154 | F159: City, County or Local Government Unit or Department of Transportation | G159: Full Reporter | H159: 2650890 | I159: 218 | J159: MB | K159: PT | L159: 75 | N159: 1.4 | P159: 57.1 | R159: 17.6 | T159: 76.1 | V159: No
A160: METRO Regional Transit Authority | B160: Akron | C160: OH | D160: 5010 | E160: 50010 | F160: Independent Public Agency or Authority of Transit Service | G160: Full Reporter | H160: 569499 | I160: 214 | J160: MB | K160: DO | L160: 121 | N160: 0 | P160: 0 | R160: 0 | T160: 0 | V160: No
A161: Indianapolis and Marion County Public Transportation | B161: Indianapolis | C161: IN | D161: 5050 | E161: 50050 | F161: Independent Public Agency or Authority of Transit Service | G161: Full Reporter | H161: 1487483 | I161: 211 | J161: MB | K161: DO | L161: 137 | N161: 0 | P161: 0 | R161: 0 | T161: 0 | V161: No
A162: Toledo Area Regional Transit Authority | B162: Toledo | C162: OH | D162: 5022 | E162: 50022 | F162: Independent Public Agency or Authority of Transit Service | G162: Full Reporter | H162: 507643 | I162: 207 | J162: MB | K162: DO | L162: 96 | N162: 1 | P162: 0 | R162: 0 | T162: 1 | V162: No
A163: Blue Water Area Transportation Commission | B163: Port Huron | C163: MI | D163: 5148 | E163: 50148 | F163: Independent Public Agency or Authority of Transit Service | G163: Full Reporter | H163: 87106 | I163: 203 | J163: MB | K163: DO | L163: 9 | N163: 0 | P163: 0 | R163: 0 | T163: 0 | V163: No
A164: Blue Water Area Transportation Commission | B164: Port Huron | C164: MI | D164: 5148 | E164: 50148 | F164: Independent Public Agency or Authority of Transit Service | G164: Full Reporter | H164: 87106 | I164: 203 | J164: CB | K164: DO | L164: 3 | N164: 0 | P164: 0 | R164: 0 | T164: 0 | V164: No
A165: Long Beach Transit | B165: Long Beach | C165: CA | D165: 9023 | E165: 90023 | F165: Other Publicly-Owned or Privately Chartered Corporation | G165: Full Reporter | H165: 12150996 | I165: 197 | J165: MB | K165: DO | L165: 187 | N165: 0.5 | P165: 0 | R165: 0 | T165: 0.5 | V165: No
A166: City of El Paso, dba: Sun Metro | B166: El Paso | C166: TX | D166: 6006 | E166: 60006 | F166: City, County or Local Government Unit or Department of Transportation | G166: Full Reporter | H166: 803086 | I166: 193 | J166: MB | K166: DO | L166: 135 | N166: 0 | P166: 0 | R166: 0 | T166: 0 | V166: No
A167: City of Albuquerque Transit Department, dba: ABQRIDE | B167: Albuquerque | C167: NM | D167: 6019 | E167: 60019 | F167: City, County or Local Government Unit or Department of Transportation | G167: Full Reporter | H167: 741318 | I167: 193 | J167: MB | K167: DO | L167: 131 | N167: 0 | P167: 0 | R167: 0 | T167: 0 | V167: No
A168: Hudson Transit Lines, Inc. | B168: Mahwah | C168: NJ | D168: 2126 | E168: 20126 | F168: Private-For-Profit Corporation | G168: Full Reporter | H168: 18351295 | I168: 184 | J168: CB | K168: DO | L168: 184 | N168: 0 | P168: 0 | R168: 2.9 | T168: 2.9 | V168: No
A169: South Central Transit Authority | B169: Lancaster | C169: PA | E169: 30202 | F169: Independent Public Agency or Authority of Transit Service | G169: Full Reporter | H169: 402004 | I169: 182 | J169: MB | K169: DO | L169: 76 | N169: 0 | P169: 0 | R169: 0 | T169: 0 | V169: No
A170: Clark County Public Transportation Benefit Area Authority | B170: Vancouver | C170: WA | D170: 24 | E170: 24 | F170: Independent Public Agency or Authority of Transit Service | G170: Full Reporter | H170: 1849898 | I170: 180 | J170: MB | K170: DO | L170: 101 | N170: 0 | P170: 0 | R170: 3.4 | T170: 3.4 | V170: No
A171: Montachusett Regional Transit Authority | B171: Fitchburg | C171: MA | D171: 1061 | E171: 10061 | F171: Independent Public Agency or Authority of Transit Service | G171: Full Reporter | H171: 116960 | I171: 179 | J171: MB | K171: PT | L171: 20 | N171: 0 | P171: 0 | R171: 0 | T171: 0 | V171: No
A172: Greater Dayton Regional Transit Authority | B172: Dayton | C172: OH | D172: 5017 | E172: 50017 | F172: Independent Public Agency or Authority of Transit Service | G172: Full Reporter | H172: 724091 | I172: 178 | J172: MB | K172: DO | L172: 95 | N172: 0 | P172: 0 | R172: 0 | T172: 0 | V172: No
A173: Greater Dayton Regional Transit Authority | B173: Dayton | C173: OH | D173: 5017 | E173: 50017 | F173: Independent Public Agency or Authority of Transit Service | G173: Full Reporter | H173: 724091 | I173: 178 | J173: TB | K173: DO | L173: 26 | N173: 125.7 | P173: 0 | R173: 0 | T173: 125.7 | V173: No
A174: Capital Area Transportation Authority | B174: Lansing | C174: MI | D174: 5036 | E174: 50036 | F174: Independent Public Agency or Authority of Transit Service | G174: Full Reporter | H174: 313532 | I174: 174 | J174: MB | K174: DO | L174: 85 | N174: 0 | P174: 0 | R174: 0 | T174: 0 | V174: No
A175: Lehigh and Northampton Transportation Authority | B175: Allentown | C175: PA | D175: 3010 | E175: 30010 | F175: Independent Public Agency or Authority of Transit Service | G175: Full Reporter | H175: 664651 | I175: 173 | J175: MB | K175: DO | L175: 72 | N175: 0 | P175: 0 | R175: 0 | T175: 0 | V175: No
A176: City of Colorado Springs, dba: Mountain Metropolitan Transit | B176: Colorado Springs | C176: CO | D176: 8005 | E176: 80005 | F176: City, County or Local Government Unit or Department of Transportation | G176: Full Reporter | H176: 559409 | I176: 173 | J176: MB | K176: PT | L176: 49 | N176: 0 | P176: 0 | R176: 0 | T176: 0 | V176: No
A177: Lehigh and Northampton Transportation Authority | B177: Allentown | C177: PA | D177: 3010 | E177: 30010 | F177: Independent Public Agency or Authority of Transit Service | G177: Full Reporter | H177: 664651 | I177: 173 | J177: MB | K177: PT | L177: 1 | N177: 0 | P177: 0 | R177: 0 | T177: 0 | V177: No
A178: City of Santa Monica, dba: Big Blue Bus | B178: Santa Monica | C178: CA | D178: 9008 | E178: 90008 | F178: City, County or Local Government Unit or Department of Transportation | G178: Full Reporter | H178: 12150996 | I178: 172 | J178: MB | K178: DO | L178: 166 | N178: 0.6 | P178: 0 | R178: 0 | T178: 0.6 | V178: No
A179: Hillsborough Area Regional Transit Authority | B179: Tampa | C179: FL | D179: 4041 | E179: 40041 | F179: Independent Public Agency or Authority of Transit Service | G179: Full Reporter | H179: 2441770 | I179: 172 | J179: MB | K179: DO | L179: 133 | N179: 0 | P179: 0 | R179: 1.1 | T179: 1.1 | V179: No
A180: New Orleans Regional Transit Authority | B180: New Orleans | C180: LA | D180: 6032 | E180: 60032 | F180: Independent Public Agency or Authority of Transit Service | G180: Full Reporter | H180: 899703 | I180: 165 | J180: MB | K180: PT | L180: 90 | N180: 0 | P180: 7 | R180: 0 | T180: 7 | V180: No
A181: Municipality of Anchorage, dba: Public Transportation | B181: Anchorage | C181: AK | D181: 12 | E181: 12 | F181: City, County or Local Government Unit or Department of Transportation | G181: Full Reporter | H181: 251243 | I181: 162 | J181: MB | K181: DO | L181: 36 | N181: 0 | P181: 0 | R181: 0 | T181: 0 | V181: No
A182: Municipality of Anchorage, dba: Public Transportation | B182: Anchorage | C182: AK | D182: 12 | E182: 12 | F182: City, County or Local Government Unit or Department of Transportation | G182: Full Reporter | H182: 251243 | I182: 162 | J182: MB | K182: PT | L182: 10 | N182: 0 | P182: 0 | R182: 0 | T182: 0 | V182: No
A183: City of Gainesville, FL, dba: Regional Transit System | B183: Gainesville | C183: FL | D183: 4030 | E183: 40030 | F183: City, County or Local Government Unit or Department of Transportation | G183: Full Reporter | H183: 187781 | I183: 158 | J183: MB | K183: DO | L183: 112 | N183: 0 | P183: 0 | R183: 0 | T183: 0 | V183: No
A184: County of Volusia, dba: VOTRAN | B184: South Daytona | C184: FL | D184: 4032 | E184: 40032 | F184: City, County or Local Government Unit or Department of Transportation | G184: Full Reporter | H184: 349064 | I184: 156 | J184: MB | K184: DO | L184: 60 | N184: 0 | P184: 0 | R184: 0 | T184: 0 | V184: No
A185: Golden Gate Bridge, Highway and Transportation District | B185: San Francisco | C185: CA | D185: 9016 | E185: 90016 | F185: Independent Public Agency or Authority of Transit Service | G185: Full Reporter | H185: 3281212 | I185: 154 | J185: MB | K185: DO | L185: 132 | N185: 0 | P185: 0 | R185: 0 | T185: 0 | V185: No
A186: City of Fresno, dba: Fresno Area Express | B186: Fresno | C186: CA | D186: 9027 | E186: 90027 | F186: City, County or Local Government Unit or Department of Transportation | G186: Full Reporter | H186: 654628 | I186: 150 | J186: MB | K186: DO | L186: 98 | N186: 0 | P186: 0 | R186: 0 | T186: 0 | V186: No
A187: City of Memphis, dba: Memphis Area Transit Authority | B187: Memphis | C187: TN | D187: 4003 | E187: 40003 | F187: City, County or Local Government Unit or Department of Transportation | G187: Full Reporter | H187: 1060061 | I187: 145 | J187: MB | K187: DO | L187: 102 | N187: 0 | P187: 0 | R187: 0 | T187: 0 | V187: No
A188: Madison County Transit District | B188: Granite City | C188: IL | D188: 5146 | E188: 50146 | F188: Independent Public Agency or Authority of Transit Service | G188: Full Reporter | H188: 2150706 | I188: 144 | J188: MB | K188: PT | L188: 74 | N188: 0 | P188: 0 | R188: 0 | T188: 0 | V188: No
A189: Peninsula Corridor Joint Powers Board, dba: Caltrain | B189: San Carlos | C189: CA | D189: 9134 | E189: 90134 | F189: Independent Public Agency or Authority of Transit Service | G189: Full Reporter | H189: 3281212 | I189: 141 | J189: MB | K189: PT | L189: 33 | N189: 0 | P189: 0 | R189: 0 | T189: 0 | V189: No
A190: Minnesota Valley Transit Authority | B190: Burnsville | C190: MN | D190: 5222 | E190: 50519 | F190: Independent Public Agency or Authority of Transit Service | G190: Full Reporter | H190: 2650890 | I190: 140 | J190: MB | K190: PT | L190: 140 | N190: 2.5 | P190: 43 | R190: 45 | T190: 90.5 | V190: No
A191: Central Contra Costa Transit Authority, dba: COUNTY CONNECTION | B191: Concord | C191: CA | D191: 9078 | E191: 90078 | F191: Independent Public Agency or Authority of Transit Service | G191: Full Reporter | H191: 615968 | I191: 140 | J191: MB | K191: DO | L191: 92 | N191: 0 | P191: 0 | R191: 0 | T191: 0 | V191: No
A192: Research Triangle Regional Public Transportation Authority, dba: GoTriangle | B192: Research Triangle Park | C192: NC | D192: 4108 | E192: 40108 | F192: Independent Public Agency or Authority of Transit Service | G192: Full Reporter | H192: 347602 | I192: 140 | J192: MB | K192: DO | L192: 57 | N192: 0 | P192: 0 | R192: 0 | T192: 0 | V192: No
A193: Research Triangle Regional Public Transportation Authority, dba: GoTriangle | B193: Research Triangle Park | C193: NC | D193: 4108 | E193: 40108 | F193: Independent Public Agency or Authority of Transit Service | G193: Full Reporter | H193: 347602 | I193: 140 | J193: MB | K193: PT | L193: 13 | N193: 0 | P193: 0 | R193: 0 | T193: 0 | V193: No
A194: Brevard Board of County Commissioners, dba: Space Coast Area Transit | B194: Cocoa | C194: FL | D194: 4063 | E194: 40063 | F194: City, County or Local Government Unit or Department of Transportation | G194: Full Reporter | H194: 452791 | I194: 135 | J194: MB | K194: DO | L194: 32 | N194: 0 | P194: 0 | R194: 0 | T194: 0 | V194: No
A195: Rides Mass Transit District | B195: Harrisburg | C195: IL | D195: 5211 | E195: 50211 | F195: Independent Public Agency or Authority of Transit Service | G195: Full Reporter | H195: 67821 | I195: 125 | J195: MB | K195: DO | L195: 125 | N195: 0 | P195: 0 | R195: 0 | T195: 0 | V195: =IF(O195&Q195&S195&U195<>"","Yes","No") -> No
A196: Cumberland Dauphin-Harrisburg Transit Authority, dba: Capital Area Transit | B196: Harrisburg | C196: PA | D196: 3014 | E196: 30014 | F196: Independent Public Agency or Authority of Transit Service | G196: Full Reporter | H196: 444474 | I196: 125 | J196: MB | K196: DO | L196: 68 | N196: 0 | P196: 0 | R196: 0 | T196: 0 | V196: No
A197: Cumberland Dauphin-Harrisburg Transit Authority, dba: Capital Area Transit | B197: Harrisburg | C197: PA | D197: 3014 | E197: 30014 | F197: Independent Public Agency or Authority of Transit Service | G197: Full Reporter | H197: 444474 | I197: 125 | J197: MB | K197: PT | L197: 4 | N197: 0 | P197: 0 | R197: 0 | T197: 0 | V197: No
A198: Metropolitan Bus Authority | B198: San Juan | C198: PR | D198: 4086 | E198: 40086 | F198: Independent Public Agency or Authority of Transit Service | G198: Full Reporter | H198: 2148346 | I198: 124 | J198: MB | K198: DO | L198: 87 | N198: 16.3 | P198: 0 | R198: 0 | T198: 16.3 | V198: No
A199: Transit Authority of Northern Kentucky | B199: Fort Wright | C199: KY | D199: 4019 | E199: 40019 | F199: Independent Public Agency or Authority of Transit Service | G199: Full Reporter | H199: 1624827 | I199: 123 | J199: MB | K199: DO | L199: 97 | N199: 0 | P199: 0 | R199: 0 | T199: 0 | V199: No
A200: Georgia State Road and Tollway Authority | B200: Atlanta | C200: GA | E200: 40264 | F200: State Government Unit or Department of Transportation | G200: Full Reporter | H200: 4515419 | I200: 121 | J200: CB | K200: PT | L200: 121 | N200: 0 | P200: 91.2 | R200: 0 | T200: 91.2 | V200: No
... 378 more rows

Sheet Guideway Age Distribution
A1: Agency | B1: City | C1: State | D1: Legacy NTD ID | E1: NTD ID | F1: Organization Type | G1: Reporter Type | H1: Primary UZA Population | I1: Agency Voms | J1: Mode | K1: Type Of Service | L1: Guideway Element | M1: Units Of Allocation | N1: Pre 1940'S | O1: Pre 1940'S Questionable | P1: 1940'S | Q1: 1940'S Questionable | R1: 1950'S | S1: 1950'S Questionable | T1: 1960'S | U1: 1960'S Questionable | V1: 1970'S | W1: 1970'S Questionable | X1: 1980'S | Y1: 1980'S Questionable | Z1: 1990'S | AA1: 1990'S Questionable | AB1: 2000'S | AC1: 2000'S Questionable | AD1: 2010'S | AE1: 2010'S Questionable | AF1: Any data questionable? | AI1: =2-AI4 -> 1
A2: MTA New York City Transit | B2: New York | C2: NY | D2: 2008 | E2: 20008 | F2: Subsidiary Unit of a Transit Agency, Reporting Separately | G2: Full Reporter | H2: 18351295 | I2: 10856 | J2: HR | K2: DO | L2: Below-Grade/Retained Cut | M2: Linear Miles | N2: 0.42 | P2: 0 | R2: 0 | T2: 0.19 | V2: 0 | X2: 0.79 | Z2: 3.41 | AB2: 0.34 | AD2: 4.2 | AF2: =IF(AE2&AC2&AA2&Y2&W2&U2&S2&Q2&O2<>"","Yes","No") -> No | AI2: Hide questionable data tags
A3: MTA New York City Transit | B3: New York | C3: NY | D3: 2008 | E3: 20008 | F3: Subsidiary Unit of a Transit Agency, Reporting Separately | G3: Full Reporter | H3: 18351295 | I3: 10856 | J3: HR | K3: DO | L3: Elevated/Concrete | M3: Linear Miles | N3: 0.07 | P3: 0 | R3: 0 | T3: 0 | V3: 0 | X3: 0.06 | Z3: 2.23 | AB3: 0.04 | AD3: 9.84 | AF3: No | AI3: Show questionable data tags
A4: MTA New York City Transit | B4: New York | C4: NY | D4: 2008 | E4: 20008 | F4: Subsidiary Unit of a Transit Agency, Reporting Separately | G4: Full Reporter | H4: 18351295 | I4: 10856 | J4: HR | K4: DO | L4: Elevated/Steel Viaduct or Bridge | M4: Linear Miles | N4: 3.23 | P4: 1 | R4: 0.21 | T4: 0 | V4: 0 | X4: 10.51 | Z4: 19.71 | AB4: 16.39 | AD4: 13.52 | AF4: No | AI4: 1
A5: MTA New York City Transit | B5: New York | C5: NY | D5: 2008 | E5: 20008 | F5: Subsidiary Unit of a Transit Agency, Reporting Separately | G5: Full Reporter | H5: 18351295 | I5: 10856 | J5: HR | K5: DO | L5: At-Grade/Ballast (including expressway) | M5: Linear Miles | N5: 0.89 | P5: 0 | R5: 2.09 | T5: 0 | V5: 0 | X5: 0.33 | Z5: 6.82 | AB5: 0.03 | AD5: 0.46 | AF5: No
A6: MTA New York City Transit | B6: New York | C6: NY | D6: 2008 | E6: 20008 | F6: Subsidiary Unit of a Transit Agency, Reporting Separately | G6: Full Reporter | H6: 18351295 | I6: 10856 | J6: HR | K6: DO | L6: Below-Grade/Bored or Blasted Tunnel | M6: Linear Miles | N6: 0 | P6: 0 | R6: 0 | T6: 0 | V6: 0 | X6: 0 | Z6: 0 | AB6: 0 | AD6: 3.37 | AF6: No
A7: MTA New York City Transit | B7: New York | C7: NY | D7: 2008 | E7: 20008 | F7: Subsidiary Unit of a Transit Agency, Reporting Separately | G7: Full Reporter | H7: 18351295 | I7: 10856 | J7: HR | K7: DO | L7: Below-Grade/Cut-and-Cover Tunnel | M7: Linear Miles | N7: 25.97 | P7: 0 | R7: 0.31 | T7: 0.64 | V7: 0 | X7: 11.01 | Z7: 66.43 | AB7: 5.58 | AD7: 1.34 | AF7: No
A8: MTA New York City Transit | B8: New York | C8: NY | D8: 2008 | E8: 20008 | F8: Subsidiary Unit of a Transit Agency, Reporting Separately | G8: Full Reporter | H8: 18351295 | I8: 10856 | J8: HR | K8: DO | L8: Below-Grade/Submerged Tube | M8: Linear Miles | N8: 8.14 | P8: 0 | R8: 0 | T8: 0 | V8: 0 | X8: 0.69 | Z8: 4.98 | AB8: 0 | AD8: 0 | AF8: No
A9: MTA New York City Transit | B9: New York | C9: NY | D9: 2008 | E9: 20008 | F9: Subsidiary Unit of a Transit Agency, Reporting Separately | G9: Full Reporter | H9: 18351295 | I9: 10856 | J9: HR | K9: DO | L9: Elevated/Retained Fill | M9: Linear Miles | N9: 0 | P9: 0 | R9: 0 | T9: 0 | V9: 0 | X9: 0 | Z9: 0 | AB9: 0.53 | AD9: 0 | AF9: No
A10: MTA New York City Transit | B10: New York | C10: NY | D10: 2008 | E10: 20008 | F10: Subsidiary Unit of a Transit Agency, Reporting Separately | G10: Full Reporter | H10: 18351295 | I10: 10856 | J10: HR | K10: DO | L10: At-Grade/In-Street/Embedded | M10: Linear Miles | N10: 12.28 | P10: 0 | R10: 0 | T10: 0 | V10: 0 | X10: 0.55 | Z10: 0.47 | AB10: 0 | AD10: 0.76 | AF10: No
A11: New Jersey Transit Corporation | B11: Newark | C11: NJ | D11: 2080 | E11: 20080 | F11: Other Publicly-Owned or Privately Chartered Corporation | G11: Full Reporter | H11: 18351295 | I11: 3873 | J11: CR | K11: DO | L11: Elevated/Concrete | M11: Linear Miles | N11: 3.1 | P11: 0 | R11: 0 | T11: 0 | V11: 0 | X11: 0 | Z11: 0.2 | AB11: 0 | AD11: 0 | AF11: No
A12: New Jersey Transit Corporation | B12: Newark | C12: NJ | D12: 2080 | E12: 20080 | F12: Other Publicly-Owned or Privately Chartered Corporation | G12: Full Reporter | H12: 18351295 | I12: 3873 | J12: CR | K12: DO | L12: Elevated/Steel Viaduct or Bridge | M12: Linear Miles | N12: 12.2 | P12: 0 | R12: 0 | T12: 0 | V12: 0 | X12: 0 | Z12: 0.7 | AB12: 0 | AD12: 0 | AF12: No
A13: New Jersey Transit Corporation | B13: Newark | C13: NJ | D13: 2080 | E13: 20080 | F13: Other Publicly-Owned or Privately Chartered Corporation | G13: Full Reporter | H13: 18351295 | I13: 3873 | J13: CR | K13: DO | L13: Below-Grade/Bored or Blasted Tunnel | M13: Linear Miles | N13: 4.5 | P13: 0 | R13: 0 | T13: 0 | V13: 0 | X13: 0 | Z13: 0 | AB13: 0 | AD13: 0 | AF13: No
A14: New Jersey Transit Corporation | B14: Newark | C14: NJ | D14: 2080 | E14: 20080 | F14: Other Publicly-Owned or Privately Chartered Corporation | G14: Full Reporter | H14: 18351295 | I14: 3873 | J14: CR | K14: DO | L14: Below-Grade/Retained Cut | M14: Linear Miles | N14: 3.3 | P14: 0 | R14: 0 | T14: 0 | V14: 0 | X14: 0 | Z14: 0 | AB14: 0 | AD14: 0 | AF14: No
A15: New Jersey Transit Corporation | B15: Newark | C15: NJ | D15: 2080 | E15: 20080 | F15: Other Publicly-Owned or Privately Chartered Corporation | G15: Full Reporter | H15: 18351295 | I15: 3873 | J15: CR | K15: DO | L15: Elevated/Retained Fill | M15: Linear Miles | N15: 7.6 | P15: 0 | R15: 0 | T15: 0 | V15: 0 | X15: 2 | Z15: 0.6 | AB15: 0 | AD15: 0 | AF15: No
A16: New Jersey Transit Corporation | B16: Newark | C16: NJ | D16: 2080 | E16: 20080 | F16: Other Publicly-Owned or Privately Chartered Corporation | G16: Full Reporter | H16: 18351295 | I16: 3873 | J16: CR | K16: DO | L16: At-Grade/Ballast (including expressway) | M16: Linear Miles | N16: 363.9 | P16: 0 | R16: 0 | T16: 0 | V16: 0 | X16: 66.5 | Z16: 2.3 | AB16: 1 | AD16: 0 | AF16: No
A17: New Jersey Transit Corporation | B17: Newark | C17: NJ | D17: 2080 | E17: 20080 | F17: Other Publicly-Owned or Privately Chartered Corporation | G17: Full Reporter | H17: 18351295 | I17: 3873 | J17: LR | K17: PT | L17: At-Grade/Ballast (including expressway) | M17: Linear Miles | N17: 0 | P17: 0 | R17: 0 | T17: 0 | V17: 0 | X17: 0 | Z17: 0 | AB17: 11.08 | AD17: 0.55 | AF17: No
A18: New Jersey Transit Corporation | B18: Newark | C18: NJ | D18: 2080 | E18: 20080 | F18: Other Publicly-Owned or Privately Chartered Corporation | G18: Full Reporter | H18: 18351295 | I18: 3873 | J18: LR | K18: PT | L18: Below-Grade/Bored or Blasted Tunnel | M18: Linear Miles | N18: 0.76 | P18: 0 | R18: 0 | T18: 0 | V18: 0 | X18: 0 | Z18: 0 | AB18: 0 | AD18: 0 | AF18: No
A19: New Jersey Transit Corporation | B19: Newark | C19: NJ | D19: 2080 | E19: 20080 | F19: Other Publicly-Owned or Privately Chartered Corporation | G19: Full Reporter | H19: 18351295 | I19: 3873 | J19: LR | K19: PT | L19: Elevated/Steel Viaduct or Bridge | M19: Linear Miles | N19: 0 | P19: 0 | R19: 0 | T19: 0 | V19: 0 | X19: 0 | Z19: 0 | AB19: 0.29 | AD19: 0.41 | AF19: No
A20: New Jersey Transit Corporation | B20: Newark | C20: NJ | D20: 2080 | E20: 20080 | F20: Other Publicly-Owned or Privately Chartered Corporation | G20: Full Reporter | H20: 18351295 | I20: 3873 | J20: LR | K20: PT | L20: At-Grade/In-Street/Embedded | M20: Linear Miles | N20: 0 | P20: 0 | R20: 0 | T20: 0 | V20: 0 | X20: 0 | Z20: 0 | AB20: 3.31 | AD20: 0 | AF20: No
A21: New Jersey Transit Corporation | B21: Newark | C21: NJ | D21: 2080 | E21: 20080 | F21: Other Publicly-Owned or Privately Chartered Corporation | G21: Full Reporter | H21: 18351295 | I21: 3873 | J21: LR | K21: PT | L21: Elevated/Retained Fill | M21: Linear Miles | N21: 0 | P21: 0 | R21: 0 | T21: 0 | V21: 0 | X21: 0 | Z21: 0 | AB21: 0.18 | AD21: 0 | AF21: No
A22: New Jersey Transit Corporation | B22: Newark | C22: NJ | D22: 2080 | E22: 20080 | F22: Other Publicly-Owned or Privately Chartered Corporation | G22: Full Reporter | H22: 18351295 | I22: 3873 | J22: LR | K22: DO | L22: At-Grade/In-Street/Embedded | M22: Linear Miles | N22: 0 | P22: 0 | R22: 0 | T22: 0 | V22: 0 | X22: 0 | Z22: 0 | AB22: 0.84 | AD22: 0 | AF22: No
A23: New Jersey Transit Corporation | B23: Newark | C23: NJ | D23: 2080 | E23: 20080 | F23: Other Publicly-Owned or Privately Chartered Corporation | G23: Full Reporter | H23: 18351295 | I23: 3873 | J23: LR | K23: DO | L23: Below-Grade/Retained Cut | M23: Linear Miles | N23: 0.41 | P23: 0 | R23: 0 | T23: 0 | V23: 0 | X23: 0 | Z23: 0 | AB23: 0 | AD23: 0 | AF23: No
A24: New Jersey Transit Corporation | B24: Newark | C24: NJ | D24: 2080 | E24: 20080 | F24: Other Publicly-Owned or Privately Chartered Corporation | G24: Full Reporter | H24: 18351295 | I24: 3873 | J24: LR | K24: DO | L24: At-Grade/Ballast (including expressway) | M24: Linear Miles | N24: 2.37 | P24: 0 | R24: 0 | T24: 0 | V24: 0 | X24: 0 | Z24: 0 | AB24: 0.9 | AD24: 0 | AF24: No
A25: New Jersey Transit Corporation | B25: Newark | C25: NJ | D25: 2080 | E25: 20080 | F25: Other Publicly-Owned or Privately Chartered Corporation | G25: Full Reporter | H25: 18351295 | I25: 3873 | J25: LR | K25: DO | L25: Below-Grade/Cut-and-Cover Tunnel | M25: Linear Miles | N25: 1.37 | P25: 0 | R25: 0 | T25: 0 | V25: 0 | X25: 0 | Z25: 0 | AB25: 0 | AD25: 0 | AF25: No
A26: New Jersey Transit Corporation | B26: Newark | C26: NJ | D26: 2080 | E26: 20080 | F26: Other Publicly-Owned or Privately Chartered Corporation | G26: Full Reporter | H26: 18351295 | I26: 3873 | J26: LR | K26: DO | L26: Elevated/Steel Viaduct or Bridge | M26: Linear Miles | N26: 0.01 | P26: 0 | R26: 0 | T26: 0 | V26: 0 | X26: 0 | Z26: 0 | AB26: 0 | AD26: 0 | AF26: No
A27: New Jersey Transit Corporation | B27: Newark | C27: NJ | D27: 2080 | E27: 20080 | F27: Other Publicly-Owned or Privately Chartered Corporation | G27: Full Reporter | H27: 18351295 | I27: 3873 | J27: YR | K27: PT | L27: At-Grade/In-Street/Embedded | M27: Linear Miles | N27: 0 | P27: 0 | R27: 0 | T27: 0 | V27: 0 | X27: 0 | Z27: 0 | AB27: 1.5 | AD27: 0 | AF27: No
A28: New Jersey Transit Corporation | B28: Newark | C28: NJ | D28: 2080 | E28: 20080 | F28: Other Publicly-Owned or Privately Chartered Corporation | G28: Full Reporter | H28: 18351295 | I28: 3873 | J28: YR | K28: PT | L28: Elevated/Steel Viaduct or Bridge | M28: Linear Miles | N28: 0 | P28: 0 | R28: 0 | T28: 0 | V28: 0 | X28: 0 | Z28: 0 | AB28: 0.4 | AD28: 0 | AF28: No
A29: New Jersey Transit Corporation | B29: Newark | C29: NJ | D29: 2080 | E29: 20080 | F29: Other Publicly-Owned or Privately Chartered Corporation | G29: Full Reporter | H29: 18351295 | I29: 3873 | J29: YR | K29: PT | L29: At-Grade/Ballast (including expressway) | M29: Linear Miles | N29: 0 | P29: 0 | R29: 0 | T29: 0 | V29: 0 | X29: 0 | Z29: 0 | AB29: 31.65 | AD29: 0 | AF29: No
A30: New Jersey Transit Corporation | B30: Newark | C30: NJ | D30: 2080 | E30: 20080 | F30: Other Publicly-Owned or Privately Chartered Corporation | G30: Full Reporter | H30: 18351295 | I30: 3873 | J30: YR | K30: PT | L30: Elevated/Concrete | M30: Linear Miles | N30: 0 | P30: 0 | R30: 0 | T30: 0 | V30: 0 | X30: 0 | Z30: 0 | AB30: 0.17 | AD30: 0 | AF30: No
A31: New Jersey Transit Corporation | B31: Newark | C31: NJ | D31: 2080 | E31: 20080 | F31: Other Publicly-Owned or Privately Chartered Corporation | G31: Full Reporter | H31: 18351295 | I31: 3873 | J31: YR | K31: PT | L31: Elevated/Retained Fill | M31: Linear Miles | N31: 0 | P31: 0 | R31: 0 | T31: 0 | V31: 0 | X31: 0 | Z31: 0 | AB31: 0.09 | AD31: 0 | AF31: No
A32: Los Angeles County Metropolitan Transportation Authority , dba: Metro | B32: Los Angeles | C32: CA | D32: 9154 | E32: 90154 | F32: Independent Public Agency or Authority of Transit Service | G32: Full Reporter | H32: 12150996 | I32: 3458 | J32: LR | K32: DO | L32: At-Grade/Ballast (including expressway) | M32: Track Miles | N32: 0 | P32: 0 | R32: 0 | T32: 0 | V32: 0 | X32: 0 | Z32: 59.38 | AB32: 21.32 | AD32: 42.12 | AF32: No
A33: Los Angeles County Metropolitan Transportation Authority , dba: Metro | B33: Los Angeles | C33: CA | D33: 9154 | E33: 90154 | F33: Independent Public Agency or Authority of Transit Service | G33: Full Reporter | H33: 12150996 | I33: 3458 | J33: LR | K33: DO | L33: Below-Grade/Bored or Blasted Tunnel | M33: Track Miles | N33: 0 | P33: 0 | R33: 0 | T33: 0 | V33: 0 | X33: 0 | Z33: 0 | AB33: 2.82 | AD33: 0 | AF33: No
A34: Los Angeles County Metropolitan Transportation Authority , dba: Metro | B34: Los Angeles | C34: CA | D34: 9154 | E34: 90154 | F34: Independent Public Agency or Authority of Transit Service | G34: Full Reporter | H34: 12150996 | I34: 3458 | J34: LR | K34: DO | L34: Below-Grade/Retained Cut | M34: Track Miles | N34: 0 | P34: 0 | R34: 0 | T34: 0 | V34: 0 | X34: 0 | Z34: 0.19 | AB34: 2.94 | AD34: 0.94 | AF34: No
A35: Los Angeles County Metropolitan Transportation Authority , dba: Metro | B35: Los Angeles | C35: CA | D35: 9154 | E35: 90154 | F35: Independent Public Agency or Authority of Transit Service | G35: Full Reporter | H35: 12150996 | I35: 3458 | J35: LR | K35: DO | L35: Elevated/Retained Fill | M35: Track Miles | N35: 0 | P35: 0 | R35: 0 | T35: 0 | V35: 0 | X35: 0 | Z35: 2.74 | AB35: 1.49 | AD35: 6.67 | AF35: No
A36: Los Angeles County Metropolitan Transportation Authority , dba: Metro | B36: Los Angeles | C36: CA | D36: 9154 | E36: 90154 | F36: Independent Public Agency or Authority of Transit Service | G36: Full Reporter | H36: 12150996 | I36: 3458 | J36: LR | K36: DO | L36: At-Grade/In-Street/Embedded | M36: Track Miles | N36: 0 | P36: 0 | R36: 0 | T36: 0 | V36: 0 | X36: 0 | Z36: 10.63 | AB36: 7.49 | AD36: 6.28 | AF36: No
A37: Los Angeles County Metropolitan Transportation Authority , dba: Metro | B37: Los Angeles | C37: CA | D37: 9154 | E37: 90154 | F37: Independent Public Agency or Authority of Transit Service | G37: Full Reporter | H37: 12150996 | I37: 3458 | J37: LR | K37: DO | L37: Below-Grade/Cut-and-Cover Tunnel | M37: Track Miles | N37: 0 | P37: 0 | R37: 0 | T37: 0 | V37: 0.23 | X37: 0 | Z37: 1.24 | AB37: 1.18 | AD37: 0.34 | AF37: No
A38: Los Angeles County Metropolitan Transportation Authority , dba: Metro | B38: Los Angeles | C38: CA | D38: 9154 | E38: 90154 | F38: Independent Public Agency or Authority of Transit Service | G38: Full Reporter | H38: 12150996 | I38: 3458 | J38: LR | K38: DO | L38: Elevated/Concrete | M38: Track Miles | N38: 0.57 | P38: 0 | R38: 0.06 | T38: 0.07 | V38: 0.98 | X38: 2.27 | Z38: 14.9 | AB38: 1.46 | AD38: 3.73 | AF38: No
A39: Los Angeles County Metropolitan Transportation Authority , dba: Metro | B39: Los Angeles | C39: CA | D39: 9154 | E39: 90154 | F39: Independent Public Agency or Authority of Transit Service | G39: Full Reporter | H39: 12150996 | I39: 3458 | J39: LR | K39: DO | L39: Elevated/Steel Viaduct or Bridge | M39: Track Miles | N39: 0.39 | P39: 0.17 | R39: 0 | T39: 0.2 | V39: 0 | X39: 0 | Z39: 0 | AB39: 0 | AD39: 0.18 | AF39: No
A40: Los Angeles County Metropolitan Transportation Authority , dba: Metro | B40: Los Angeles | C40: CA | D40: 9154 | E40: 90154 | F40: Independent Public Agency or Authority of Transit Service | G40: Full Reporter | H40: 12150996 | I40: 3458 | J40: HR | K40: DO | L40: Below-Grade/Bored or Blasted Tunnel | M40: Track Miles | N40: 0 | P40: 0 | R40: 0 | T40: 0 | V40: 0 | X40: 0 | Z40: 15.53 | AB40: 11.38 | AD40: 0 | AF40: No
A41: Los Angeles County Metropolitan Transportation Authority , dba: Metro | B41: Los Angeles | C41: CA | D41: 9154 | E41: 90154 | F41: Independent Public Agency or Authority of Transit Service | G41: Full Reporter | H41: 12150996 | I41: 3458 | J41: HR | K41: DO | L41: At-Grade/Ballast (including expressway) | M41: Track Miles | N41: 0 | P41: 0 | R41: 0 | T41: 0 | V41: 0 | X41: 0 | Z41: 10.01 | AB41: 0 | AD41: 0 | AF41: No
A42: Los Angeles County Metropolitan Transportation Authority , dba: Metro | B42: Los Angeles | C42: CA | D42: 9154 | E42: 90154 | F42: Independent Public Agency or Authority of Transit Service | G42: Full Reporter | H42: 12150996 | I42: 3458 | J42: HR | K42: DO | L42: Below-Grade/Cut-and-Cover Tunnel | M42: Track Miles | N42: 0 | P42: 0 | R42: 0 | T42: 0 | V42: 0 | X42: 0 | Z42: 4.69 | AB42: 1.31 | AD42: 0 | AF42: No
A43: King County Department of Metro Transit, dba: King County Metro | B43: Seattle | C43: WA | D43: 1 | E43: 1 | F43: City, County or Local Government Unit or Department of Transportation | G43: Full Reporter | H43: 3059393 | I43: 3150 | J43: SR | K43: DO | L43: At-Grade/In-Street/Embedded | M43: Percent | N43: 0 | P43: 0 | R43: 0 | T43: 0 | V43: 0 | X43: 0 | Z43: 0 | AB43: 35 | AD43: 65 | AF43: No
A44: Washington Metropolitan Area Transit Authority | B44: Washington | C44: DC | D44: 3030 | E44: 30030 | F44: Independent Public Agency or Authority of Transit Service | G44: Full Reporter | H44: 4586770 | I44: 3139 | J44: HR | K44: DO | L44: Below-Grade/Bored or Blasted Tunnel | M44: Linear Miles | N44: 0 | P44: 0 | R44: 0 | T44: 0 | V44: 23.7 | X44: 22.7 | Z44: 1 | AB44: 0 | AD44: 0 | AF44: No
A45: Washington Metropolitan Area Transit Authority | B45: Washington | C45: DC | D45: 3030 | E45: 30030 | F45: Independent Public Agency or Authority of Transit Service | G45: Full Reporter | H45: 4586770 | I45: 3139 | J45: HR | K45: DO | L45: Below-Grade/Submerged Tube | M45: Linear Miles | N45: 0 | P45: 0 | R45: 0 | T45: 0 | V45: 42.7 | X45: 20.1 | Z45: 21.1 | AB45: 18.7 | AD45: 1.1 | AF45: No
A46: Washington Metropolitan Area Transit Authority | B46: Washington | C46: DC | D46: 3030 | E46: 30030 | F46: Independent Public Agency or Authority of Transit Service | G46: Full Reporter | H46: 4586770 | I46: 3139 | J46: HR | K46: DO | L46: At-Grade/Ballast (including expressway) | M46: Linear Miles | N46: 0 | P46: 0 | R46: 0 | T46: 0 | V46: 10.3 | X46: 5.3 | Z46: 0 | AB46: 9 | AD46: 9.7 | AF46: No
A47: Washington Metropolitan Area Transit Authority | B47: Washington | C47: DC | D47: 3030 | E47: 30030 | F47: Independent Public Agency or Authority of Transit Service | G47: Full Reporter | H47: 4586770 | I47: 3139 | J47: HR | K47: DO | L47: Below-Grade/Cut-and-Cover Tunnel | M47: Linear Miles | N47: 0 | P47: 0 | R47: 0 | T47: 0 | V47: 32.8 | X47: 54.4 | Z47: 0.4 | AB47: 3.8 | AD47: 2.8 | AF47: No
A48: Washington Metropolitan Area Transit Authority | B48: Washington | C48: DC | D48: 3030 | E48: 30030 | F48: Independent Public Agency or Authority of Transit Service | G48: Full Reporter | H48: 4586770 | I48: 3139 | J48: HR | K48: DO | L48: Elevated/Steel Viaduct or Bridge | M48: Linear Miles | N48: 0 | P48: 0 | R48: 0 | T48: 0 | V48: 6.1 | X48: 7.2 | Z48: 0.3 | AB48: 1 | AD48: 3.2 | AF48: No
A49: Chicago Transit Authority | B49: Chicago | C49: IL | D49: 5066 | E49: 50066 | F49: Independent Public Agency or Authority of Transit Service | G49: Full Reporter | H49: 8608208 | I49: 2711 | J49: HR | K49: DO | L49: Below-Grade/Bored or Blasted Tunnel | M49: Percent | N49: 0 | P49: 49.7 | R49: 50.3 | T49: 0 | V49: 0 | X49: 0 | Z49: 0 | AB49: 0 | AD49: 0 | AF49: No
A50: Chicago Transit Authority | B50: Chicago | C50: IL | D50: 5066 | E50: 50066 | F50: Independent Public Agency or Authority of Transit Service | G50: Full Reporter | H50: 8608208 | I50: 2711 | J50: HR | K50: DO | L50: Below-Grade/Retained Cut | M50: Percent | N50: 38.9 | P50: 8 | R50: 8.4 | T50: 16.4 | V50: 0 | X50: 7.5 | Z50: 12.1 | AB50: 0 | AD50: 8.7 | AF50: No
A51: Chicago Transit Authority | B51: Chicago | C51: IL | D51: 5066 | E51: 50066 | F51: Independent Public Agency or Authority of Transit Service | G51: Full Reporter | H51: 8608208 | I51: 2711 | J51: HR | K51: DO | L51: Elevated/Concrete | M51: Percent | N51: 15.9 | P51: 0.1 | R51: 4.4 | T51: 7.2 | V51: 0 | X51: 0.2 | Z51: 26.1 | AB51: 45.1 | AD51: 1 | AF51: No
A52: Chicago Transit Authority | B52: Chicago | C52: IL | D52: 5066 | E52: 50066 | F52: Independent Public Agency or Authority of Transit Service | G52: Full Reporter | H52: 8608208 | I52: 2711 | J52: HR | K52: DO | L52: Elevated/Steel Viaduct or Bridge | M52: Percent | N52: 44 | P52: 0.1 | R52: 0.1 | T52: 2.9 | V52: 0 | X52: 0.1 | Z52: 37.5 | AB52: 9.3 | AD52: 6 | AF52: No
A53: Chicago Transit Authority | B53: Chicago | C53: IL | D53: 5066 | E53: 50066 | F53: Independent Public Agency or Authority of Transit Service | G53: Full Reporter | H53: 8608208 | I53: 2711 | J53: HR | K53: DO | L53: At-Grade/Ballast (including expressway) | M53: Percent | N53: 17.6 | P53: 0 | R53: 26 | T53: 36.4 | V53: 0 | X53: 19.7 | Z53: 0 | AB53: 0.3 | AD53: 0 | AF53: No
A54: Chicago Transit Authority | B54: Chicago | C54: IL | D54: 5066 | E54: 50066 | F54: Independent Public Agency or Authority of Transit Service | G54: Full Reporter | H54: 8608208 | I54: 2711 | J54: HR | K54: DO | L54: Below-Grade/Cut-and-Cover Tunnel | M54: Percent | N54: 0 | P54: 15.2 | R54: 16.1 | T54: 37 | V54: 0 | X54: 31.7 | Z54: 0 | AB54: 0 | AD54: 0 | AF54: No
A55: Chicago Transit Authority | B55: Chicago | C55: IL | D55: 5066 | E55: 50066 | F55: Independent Public Agency or Authority of Transit Service | G55: Full Reporter | H55: 8608208 | I55: 2711 | J55: HR | K55: DO | L55: Below-Grade/Submerged Tube | M55: Percent | N55: 0 | P55: 100 | R55: 0 | T55: 0 | V55: 0 | X55: 0 | Z55: 0 | AB55: 0 | AD55: 0 | AF55: No
A56: Chicago Transit Authority | B56: Chicago | C56: IL | D56: 5066 | E56: 50066 | F56: Independent Public Agency or Authority of Transit Service | G56: Full Reporter | H56: 8608208 | I56: 2711 | J56: HR | K56: DO | L56: Elevated/Retained Fill | M56: Percent | N56: 44.6 | P56: 0 | R56: 0 | T56: 16.3 | V56: 0 | X56: 3.2 | Z56: 35.9 | AB56: 0 | AD56: 0 | AF56: No
A57: Metropolitan Transit Authority of Harris County, Texas | B57: Houston | C57: TX | D57: 6008 | E57: 60008 | F57: Independent Public Agency or Authority of Transit Service | G57: Full Reporter | H57: 4944332 | I57: 2659 | J57: LR | K57: DO | L57: At-Grade/In-Street/Embedded | M57: Track Miles | N57: 0 | P57: 0 | R57: 0 | T57: 0 | V57: 0 | X57: 0 | Z57: 0 | AB57: 15 | AD57: 30.1 | AF57: No
A58: Metropolitan Transit Authority of Harris County, Texas | B58: Houston | C58: TX | D58: 6008 | E58: 60008 | F58: Independent Public Agency or Authority of Transit Service | G58: Full Reporter | H58: 4944332 | I58: 2659 | J58: LR | K58: DO | L58: Elevated/Retained Fill | M58: Track Miles | N58: 0 | P58: 0 | R58: 0 | T58: 0 | V58: 0 | X58: 0 | Z58: 0 | AB58: 0.01 | AD58: 0.56 | AF58: No
A59: Metropolitan Transit Authority of Harris County, Texas | B59: Houston | C59: TX | D59: 6008 | E59: 60008 | F59: Independent Public Agency or Authority of Transit Service | G59: Full Reporter | H59: 4944332 | I59: 2659 | J59: LR | K59: DO | L59: At-Grade/Ballast (including expressway) | M59: Track Miles | N59: 0 | P59: 0 | R59: 0 | T59: 0 | V59: 0 | X59: 0 | Z59: 0 | AB59: 5.87 | AD59: 3.44 | AF59: No
A60: Metropolitan Transit Authority of Harris County, Texas | B60: Houston | C60: TX | D60: 6008 | E60: 60008 | F60: Independent Public Agency or Authority of Transit Service | G60: Full Reporter | H60: 4944332 | I60: 2659 | J60: LR | K60: DO | L60: Elevated/Concrete | M60: Track Miles | N60: 0 | P60: 0 | R60: 0 | T60: 0 | V60: 0 | X60: 0 | Z60: 0 | AB60: 0.41 | AD60: 2.57 | AF60: No
A61: Massachusetts Bay Transportation Authority | B61: Boston | C61: MA | D61: 1003 | E61: 10003 | F61: Independent Public Agency or Authority of Transit Service | G61: Full Reporter | H61: 4181019 | I61: 2423 | J61: CR | K61: PT | L61: At-Grade/Ballast (including expressway) | M61: Percent | N61: 0.7 | P61: 3.9 | R61: 0.8 | T61: 0.6 | V61: 5.5 | X61: 38.1 | Z61: 29.5 | AB61: 14.2 | AD61: 6.7 | AF61: No
A62: Massachusetts Bay Transportation Authority | B62: Boston | C62: MA | D62: 1003 | E62: 10003 | F62: Independent Public Agency or Authority of Transit Service | G62: Full Reporter | H62: 4181019 | I62: 2423 | J62: CR | K62: PT | L62: Below-Grade/Retained Cut | M62: Percent | N62: 85.7 | P62: 0 | R62: 0 | T62: 0 | V62: 0 | X62: 0 | Z62: 14.3 | AB62: 0 | AD62: 0 | AF62: No
A63: Massachusetts Bay Transportation Authority | B63: Boston | C63: MA | D63: 1003 | E63: 10003 | F63: Independent Public Agency or Authority of Transit Service | G63: Full Reporter | H63: 4181019 | I63: 2423 | J63: CR | K63: PT | L63: Elevated/Retained Fill | M63: Percent | N63: 61.5 | P63: 0 | R63: 0 | T63: 0 | V63: 0 | X63: 0 | Z63: 38.5 | AB63: 0 | AD63: 0 | AF63: No
A64: Massachusetts Bay Transportation Authority | B64: Boston | C64: MA | D64: 1003 | E64: 10003 | F64: Independent Public Agency or Authority of Transit Service | G64: Full Reporter | H64: 4181019 | I64: 2423 | J64: CR | K64: PT | L64: Below-Grade/Cut-and-Cover Tunnel | M64: Percent | N64: 80 | P64: 0 | R64: 0 | T64: 0 | V64: 0 | X64: 0 | Z64: 20 | AB64: 0 | AD64: 0 | AF64: No
A65: Massachusetts Bay Transportation Authority | B65: Boston | C65: MA | D65: 1003 | E65: 10003 | F65: Independent Public Agency or Authority of Transit Service | G65: Full Reporter | H65: 4181019 | I65: 2423 | J65: CR | K65: PT | L65: Elevated/Concrete | M65: Percent | N65: 25.1 | P65: 0 | R65: 0 | T65: 33.3 | V65: 0 | X65: 8.3 | Z65: 33.3 | AB65: 0 | AD65: 0 | AF65: No
A66: Massachusetts Bay Transportation Authority | B66: Boston | C66: MA | D66: 1003 | E66: 10003 | F66: Independent Public Agency or Authority of Transit Service | G66: Full Reporter | H66: 4181019 | I66: 2423 | J66: CR | K66: PT | L66: Elevated/Steel Viaduct or Bridge | M66: Percent | N66: 44 | P66: 0 | R66: 0 | T66: 0 | V66: 0 | X66: 32 | Z66: 20 | AB66: 0 | AD66: 4 | AF66: =IF(AE66&AC66&AA66&Y66&W66&U66&S66&Q66&O66<>"","Yes","No") -> No
A67: Massachusetts Bay Transportation Authority | B67: Boston | C67: MA | D67: 1003 | E67: 10003 | F67: Independent Public Agency or Authority of Transit Service | G67: Full Reporter | H67: 4181019 | I67: 2423 | J67: LR | K67: DO | L67: At-Grade/In-Street/Embedded | M67: Track Miles | N67: 0 | P67: 0 | R67: 0 | T67: 0 | V67: 0 | X67: 0.11 | Z67: 0 | AB67: 2.92 | AD67: 0.03 | AF67: No
A68: Massachusetts Bay Transportation Authority | B68: Boston | C68: MA | D68: 1003 | E68: 10003 | F68: Independent Public Agency or Authority of Transit Service | G68: Full Reporter | H68: 4181019 | I68: 2423 | J68: LR | K68: DO | L68: Below-Grade/Retained Cut | M68: Track Miles | N68: 0 | P68: 0 | R68: 0 | T68: 0 | V68: 0 | X68: 1 | Z68: 0 | AB68: 0.16 | AD68: 0 | AF68: No
A69: Massachusetts Bay Transportation Authority | B69: Boston | C69: MA | D69: 1003 | E69: 10003 | F69: Independent Public Agency or Authority of Transit Service | G69: Full Reporter | H69: 4181019 | I69: 2423 | J69: LR | K69: DO | L69: Elevated/Retained Fill | M69: Track Miles | N69: 0 | P69: 0 | R69: 0 | T69: 0 | V69: 0 | X69: 0.34 | Z69: 0 | AB69: 0 | AD69: 0 | AF69: No
A70: Massachusetts Bay Transportation Authority | B70: Boston | C70: MA | D70: 1003 | E70: 10003 | F70: Independent Public Agency or Authority of Transit Service | G70: Full Reporter | H70: 4181019 | I70: 2423 | J70: LR | K70: DO | L70: At-Grade/Ballast (including expressway) | M70: Track Miles | N70: 0 | P70: 0 | R70: 0 | T70: 0 | V70: 0 | X70: 27.88 | Z70: 0 | AB70: 6.61 | AD70: 0.36 | AF70: No
A71: Massachusetts Bay Transportation Authority | B71: Boston | C71: MA | D71: 1003 | E71: 10003 | F71: Independent Public Agency or Authority of Transit Service | G71: Full Reporter | H71: 4181019 | I71: 2423 | J71: LR | K71: DO | L71: Below-Grade/Cut-and-Cover Tunnel | M71: Track Miles | N71: 0 | P71: 0 | R71: 0 | T71: 0 | V71: 0 | X71: 8.9 | Z71: 0 | AB71: 1.15 | AD71: 0 | AF71: No
A72: Massachusetts Bay Transportation Authority | B72: Boston | C72: MA | D72: 1003 | E72: 10003 | F72: Independent Public Agency or Authority of Transit Service | G72: Full Reporter | H72: 4181019 | I72: 2423 | J72: LR | K72: DO | L72: Elevated/Concrete | M72: Track Miles | N72: 0 | P72: 0 | R72: 0 | T72: 0 | V72: 0 | X72: 1.14 | Z72: 0 | AB72: 0.23 | AD72: 0.15 | AF72: No
A73: Massachusetts Bay Transportation Authority | B73: Boston | C73: MA | D73: 1003 | E73: 10003 | F73: Independent Public Agency or Authority of Transit Service | G73: Full Reporter | H73: 4181019 | I73: 2423 | J73: LR | K73: DO | L73: Elevated/Steel Viaduct or Bridge | M73: Track Miles | N73: 0 | P73: 0 | R73: 0 | T73: 0 | V73: 0 | X73: 0.2 | Z73: 0 | AB73: 0 | AD73: 0 | AF73: No
A74: Massachusetts Bay Transportation Authority | B74: Boston | C74: MA | D74: 1003 | E74: 10003 | F74: Independent Public Agency or Authority of Transit Service | G74: Full Reporter | H74: 4181019 | I74: 2423 | J74: HR | K74: DO | L74: At-Grade/Ballast (including expressway) | M74: Track Miles | N74: 0 | P74: 0 | R74: 0 | T74: 0 | V74: 18.96 | X74: 12.06 | Z74: 0.17 | AB74: 0.54 | AD74: 0.73 | AF74: No
A75: Massachusetts Bay Transportation Authority | B75: Boston | C75: MA | D75: 1003 | E75: 10003 | F75: Independent Public Agency or Authority of Transit Service | G75: Full Reporter | H75: 4181019 | I75: 2423 | J75: HR | K75: DO | L75: Below-Grade/Cut-and-Cover Tunnel | M75: Track Miles | N75: 0 | P75: 0 | R75: 0 | T75: 0 | V75: 3 | X75: 20.06 | Z75: 0 | AB75: 0.18 | AD75: 5.34 | AF75: No
A76: Massachusetts Bay Transportation Authority | B76: Boston | C76: MA | D76: 1003 | E76: 10003 | F76: Independent Public Agency or Authority of Transit Service | G76: Full Reporter | H76: 4181019 | I76: 2423 | J76: HR | K76: DO | L76: Elevated/Concrete | M76: Track Miles | N76: 0 | P76: 0 | R76: 0 | T76: 0 | V76: 0.63 | X76: 0.75 | Z76: 0 | AB76: 0 | AD76: 0.09 | AF76: No
A77: Massachusetts Bay Transportation Authority | B77: Boston | C77: MA | D77: 1003 | E77: 10003 | F77: Independent Public Agency or Authority of Transit Service | G77: Full Reporter | H77: 4181019 | I77: 2423 | J77: HR | K77: DO | L77: Elevated/Steel Viaduct or Bridge | M77: Track Miles | N77: 0 | P77: 0 | R77: 0 | T77: 0 | V77: 1.77 | X77: 0.88 | Z77: 0 | AB77: 0 | AD77: 0.09 | AF77: No
A78: Massachusetts Bay Transportation Authority | B78: Boston | C78: MA | D78: 1003 | E78: 10003 | F78: Independent Public Agency or Authority of Transit Service | G78: Full Reporter | H78: 4181019 | I78: 2423 | J78: HR | K78: DO | L78: Below-Grade/Bored or Blasted Tunnel | M78: Track Miles | N78: 0 | P78: 0 | R78: 0 | T78: 0 | V78: 0 | X78: 0.83 | Z78: 0 | AB78: 0 | AD78: 0 | AF78: No
A79: Massachusetts Bay Transportation Authority | B79: Boston | C79: MA | D79: 1003 | E79: 10003 | F79: Independent Public Agency or Authority of Transit Service | G79: Full Reporter | H79: 4181019 | I79: 2423 | J79: HR | K79: DO | L79: Below-Grade/Retained Cut | M79: Track Miles | N79: 0 | P79: 0 | R79: 0 | T79: 0 | V79: 2.9 | X79: 3.38 | Z79: 0 | AB79: 0.13 | AD79: 0.17 | AF79: No
A80: Massachusetts Bay Transportation Authority | B80: Boston | C80: MA | D80: 1003 | E80: 10003 | F80: Independent Public Agency or Authority of Transit Service | G80: Full Reporter | H80: 4181019 | I80: 2423 | J80: HR | K80: DO | L80: Elevated/Retained Fill | M80: Track Miles | N80: 0 | P80: 0 | R80: 0 | T80: 0 | V80: 2.63 | X80: 0.57 | Z80: 0 | AB80: 0 | AD80: 0.59 | AF80: No
A81: Southeastern Pennsylvania Transportation Authority | B81: Philadelphia | C81: PA | D81: 3019 | E81: 30019 | F81: Independent Public Agency or Authority of Transit Service | G81: Full Reporter | H81: 5441567 | I81: 2372 | J81: CR | K81: DO | L81: Below-Grade/Cut-and-Cover Tunnel | M81: Percent | N81: 1.7 | P81: 0 | R81: 0 | T81: 0 | V81: 0 | X81: 98.3 | Z81: 0 | AB81: 0 | AD81: 0 | AF81: No
A82: Southeastern Pennsylvania Transportation Authority | B82: Philadelphia | C82: PA | D82: 3019 | E82: 30019 | F82: Independent Public Agency or Authority of Transit Service | G82: Full Reporter | H82: 5441567 | I82: 2372 | J82: CR | K82: DO | L82: Elevated/Concrete | M82: Percent | N82: 94.3 | P82: 0.1 | R82: 0 | T82: 0.2 | V82: 0 | X82: 4 | Z82: 0 | AB82: 1.4 | AD82: 0 | AF82: No
A83: Southeastern Pennsylvania Transportation Authority | B83: Philadelphia | C83: PA | D83: 3019 | E83: 30019 | F83: Independent Public Agency or Authority of Transit Service | G83: Full Reporter | H83: 5441567 | I83: 2372 | J83: CR | K83: DO | L83: At-Grade/Ballast (including expressway) | M83: Percent | N83: 97.1 | P83: 0 | R83: 0 | T83: 0 | V83: 2.9 | X83: 0 | Z83: 0 | AB83: 0 | AD83: 0 | AF83: No
A84: Southeastern Pennsylvania Transportation Authority | B84: Philadelphia | C84: PA | D84: 3019 | E84: 30019 | F84: Independent Public Agency or Authority of Transit Service | G84: Full Reporter | H84: 5441567 | I84: 2372 | J84: CR | K84: DO | L84: Below-Grade/Retained Cut | M84: Percent | N84: 100 | P84: 0 | R84: 0 | T84: 0 | V84: 0 | X84: 0 | Z84: 0 | AB84: 0 | AD84: 0 | AF84: No
A85: Southeastern Pennsylvania Transportation Authority | B85: Philadelphia | C85: PA | D85: 3019 | E85: 30019 | F85: Independent Public Agency or Authority of Transit Service | G85: Full Reporter | H85: 5441567 | I85: 2372 | J85: CR | K85: DO | L85: Elevated/Steel Viaduct or Bridge | M85: Percent | N85: 48.7 | P85: 0.2 | R85: 4.4 | T85: 0.5 | V85: 2.2 | X85: 32.9 | Z85: 2.5 | AB85: 2.2 | AD85: 6.4 | AF85: No
A86: Southeastern Pennsylvania Transportation Authority | B86: Philadelphia | C86: PA | D86: 3019 | E86: 30019 | F86: Independent Public Agency or Authority of Transit Service | G86: Full Reporter | H86: 5441567 | I86: 2372 | J86: SR | K86: DO | L86: At-Grade/In-Street/Embedded | M86: Percent | N86: 0.4 | P86: 6.3 | R86: 4.8 | T86: 0.7 | V86: 3 | X86: 19.4 | Z86: 19.9 | AB86: 22 | AD86: 23.5 | AF86: No
A87: Southeastern Pennsylvania Transportation Authority | B87: Philadelphia | C87: PA | D87: 3019 | E87: 30019 | F87: Independent Public Agency or Authority of Transit Service | G87: Full Reporter | H87: 5441567 | I87: 2372 | J87: SR | K87: DO | L87: Elevated/Concrete | M87: Percent | N87: 75 | P87: 25 | R87: 0 | T87: 0 | V87: 0 | X87: 0 | Z87: 0 | AB87: 0 | AD87: 0 | AF87: No
A88: Southeastern Pennsylvania Transportation Authority | B88: Philadelphia | C88: PA | D88: 3019 | E88: 30019 | F88: Independent Public Agency or Authority of Transit Service | G88: Full Reporter | H88: 5441567 | I88: 2372 | J88: SR | K88: DO | L88: Below-Grade/Cut-and-Cover Tunnel | M88: Percent | N88: 100 | P88: 0 | R88: 0 | T88: 0 | V88: 0 | X88: 0 | Z88: 0 | AB88: 0 | AD88: 0 | AF88: No
A89: Southeastern Pennsylvania Transportation Authority | B89: Philadelphia | C89: PA | D89: 3019 | E89: 30019 | F89: Independent Public Agency or Authority of Transit Service | G89: Full Reporter | H89: 5441567 | I89: 2372 | J89: SR | K89: DO | L89: Elevated/Steel Viaduct or Bridge | M89: Percent | N89: 37 | P89: 0 | R89: 0 | T89: 0 | V89: 0 | X89: 0 | Z89: 62.7 | AB89: 0 | AD89: 0.3 | AF89: No
A90: Southeastern Pennsylvania Transportation Authority | B90: Philadelphia | C90: PA | D90: 3019 | E90: 30019 | F90: Independent Public Agency or Authority of Transit Service | G90: Full Reporter | H90: 5441567 | I90: 2372 | J90: HR | K90: DO | L90: At-Grade/Ballast (including expressway) | M90: Percent | N90: 100 | P90: 0 | R90: 0 | T90: 0 | V90: 0 | X90: 0 | Z90: 0 | AB90: 0 | AD90: 0 | AF90: No
A91: Southeastern Pennsylvania Transportation Authority | B91: Philadelphia | C91: PA | D91: 3019 | E91: 30019 | F91: Independent Public Agency or Authority of Transit Service | G91: Full Reporter | H91: 5441567 | I91: 2372 | J91: HR | K91: DO | L91: Elevated/Concrete | M91: Percent | N91: 0 | P91: 0 | R91: 0 | T91: 0 | V91: 0 | X91: 35.3 | Z91: 0 | AB91: 64.7 | AD91: 0 | AF91: No
A92: Southeastern Pennsylvania Transportation Authority | B92: Philadelphia | C92: PA | D92: 3019 | E92: 30019 | F92: Independent Public Agency or Authority of Transit Service | G92: Full Reporter | H92: 5441567 | I92: 2372 | J92: HR | K92: DO | L92: Below-Grade/Cut-and-Cover Tunnel | M92: Percent | N92: 97.3 | P92: 0 | R92: 0 | T92: 0 | V92: 2.7 | X92: 0 | Z92: 0 | AB92: 0 | AD92: 0 | AF92: No
A93: Southeastern Pennsylvania Transportation Authority | B93: Philadelphia | C93: PA | D93: 3019 | E93: 30019 | F93: Independent Public Agency or Authority of Transit Service | G93: Full Reporter | H93: 5441567 | I93: 2372 | J93: HR | K93: DO | L93: Elevated/Steel Viaduct or Bridge | M93: Percent | N93: 100 | P93: 0 | R93: 0 | T93: 0 | V93: 0 | X93: 0 | Z93: 0 | AB93: 0 | AD93: 0 | AF93: No
A94: Maryland Transit Administration | B94: Baltimore | C94: MD | D94: 3034 | E94: 30034 | F94: State Government Unit or Department of Transportation | G94: Full Reporter | H94: 2203663 | I94: 1683 | J94: CR | K94: PT | L94: At-Grade/Ballast (including expressway) | M94: Percent | N94: 0 | P94: 0 | R94: 0 | T94: 0 | V94: 0 | X94: 0 | Z94: 0 | AB94: 100 | AD94: 0 | AF94: No
A95: Maryland Transit Administration | B95: Baltimore | C95: MD | D95: 3034 | E95: 30034 | F95: State Government Unit or Department of Transportation | G95: Full Reporter | H95: 2203663 | I95: 1683 | J95: CR | K95: PT | L95: Below-Grade/Bored or Blasted Tunnel | M95: Percent | N95: 100 | P95: 0 | R95: 0 | T95: 0 | V95: 0 | X95: 0 | Z95: 0 | AB95: 0 | AD95: 0 | AF95: No
A96: Maryland Transit Administration | B96: Baltimore | C96: MD | D96: 3034 | E96: 30034 | F96: State Government Unit or Department of Transportation | G96: Full Reporter | H96: 2203663 | I96: 1683 | J96: CR | K96: PT | L96: Elevated/Concrete | M96: Percent | N96: 100 | P96: 0 | R96: 0 | T96: 0 | V96: 0 | X96: 0 | Z96: 0 | AB96: 0 | AD96: 0 | AF96: No
A97: Maryland Transit Administration | B97: Baltimore | C97: MD | D97: 3034 | E97: 30034 | F97: State Government Unit or Department of Transportation | G97: Full Reporter | H97: 2203663 | I97: 1683 | J97: CR | K97: PT | L97: At-Grade/In-Street/Embedded | M97: Percent | N97: 0 | P97: 0 | R97: 0 | T97: 0 | V97: 0 | X97: 0 | Z97: 0 | AB97: 100 | AD97: 0 | AF97: No
A98: Maryland Transit Administration | B98: Baltimore | C98: MD | D98: 3034 | E98: 30034 | F98: State Government Unit or Department of Transportation | G98: Full Reporter | H98: 2203663 | I98: 1683 | J98: CR | K98: PT | L98: Below-Grade/Retained Cut | M98: Percent | N98: 100 | P98: 0 | R98: 0 | T98: 0 | V98: 0 | X98: 0 | Z98: 0 | AB98: 0 | AD98: 0 | AF98: No
A99: Maryland Transit Administration | B99: Baltimore | C99: MD | D99: 3034 | E99: 30034 | F99: State Government Unit or Department of Transportation | G99: Full Reporter | H99: 2203663 | I99: 1683 | J99: CR | K99: PT | L99: Elevated/Steel Viaduct or Bridge | M99: Percent | N99: 100 | P99: 0 | R99: 0 | T99: 0 | V99: 0 | X99: 0 | Z99: 0 | AB99: 0 | AD99: 0 | AF99: No
A100: Maryland Transit Administration | B100: Baltimore | C100: MD | D100: 3034 | E100: 30034 | F100: State Government Unit or Department of Transportation | G100: Full Reporter | H100: 2203663 | I100: 1683 | J100: LR | K100: DO | L100: At-Grade/In-Street/Embedded | M100: Percent | N100: 0 | P100: 0 | R100: 0 | T100: 0 | V100: 0 | X100: 0 | Z100: 100 | AB100: 0 | AD100: 0 | AF100: No
A101: Maryland Transit Administration | B101: Baltimore | C101: MD | D101: 3034 | E101: 30034 | F101: State Government Unit or Department of Transportation | G101: Full Reporter | H101: 2203663 | I101: 1683 | J101: LR | K101: DO | L101: Elevated/Retained Fill | M101: Percent | N101: 0 | P101: 0 | R101: 0 | T101: 0 | V101: 0 | X101: 0 | Z101: 83.3 | AB101: 16.7 | AD101: 0 | AF101: No
A102: Maryland Transit Administration | B102: Baltimore | C102: MD | D102: 3034 | E102: 30034 | F102: State Government Unit or Department of Transportation | G102: Full Reporter | H102: 2203663 | I102: 1683 | J102: LR | K102: DO | L102: At-Grade/Ballast (including expressway) | M102: Percent | N102: 0 | P102: 0 | R102: 0 | T102: 0 | V102: 0 | X102: 0 | Z102: 100 | AB102: 0 | AD102: 0 | AF102: No
A103: Maryland Transit Administration | B103: Baltimore | C103: MD | D103: 3034 | E103: 30034 | F103: State Government Unit or Department of Transportation | G103: Full Reporter | H103: 2203663 | I103: 1683 | J103: LR | K103: DO | L103: Elevated/Concrete | M103: Percent | N103: 0 | P103: 0 | R103: 0 | T103: 0 | V103: 0 | X103: 0 | Z103: 100 | AB103: 0 | AD103: 0 | AF103: No
A104: Maryland Transit Administration | B104: Baltimore | C104: MD | D104: 3034 | E104: 30034 | F104: State Government Unit or Department of Transportation | G104: Full Reporter | H104: 2203663 | I104: 1683 | J104: LR | K104: DO | L104: Elevated/Steel Viaduct or Bridge | M104: Percent | N104: 0 | P104: 0 | R104: 0 | T104: 9.5 | V104: 0 | X104: 21.7 | Z104: 63.6 | AB104: 5.2 | AD104: 0 | AF104: No
A105: Maryland Transit Administration | B105: Baltimore | C105: MD | D105: 3034 | E105: 30034 | F105: State Government Unit or Department of Transportation | G105: Full Reporter | H105: 2203663 | I105: 1683 | J105: HR | K105: DO | L105: At-Grade/Ballast (including expressway) | M105: Percent | N105: 0 | P105: 0 | R105: 0 | T105: 0 | V105: 0 | X105: 100 | Z105: 0 | AB105: 0 | AD105: 0 | AF105: No
A106: Maryland Transit Administration | B106: Baltimore | C106: MD | D106: 3034 | E106: 30034 | F106: State Government Unit or Department of Transportation | G106: Full Reporter | H106: 2203663 | I106: 1683 | J106: HR | K106: DO | L106: Below-Grade/Cut-and-Cover Tunnel | M106: Percent | N106: 0 | P106: 0 | R106: 0 | T106: 0 | V106: 0 | X106: 64.3 | Z106: 35.7 | AB106: 0 | AD106: 0 | AF106: No
A107: Maryland Transit Administration | B107: Baltimore | C107: MD | D107: 3034 | E107: 30034 | F107: State Government Unit or Department of Transportation | G107: Full Reporter | H107: 2203663 | I107: 1683 | J107: HR | K107: DO | L107: Elevated/Concrete | M107: Percent | N107: 0 | P107: 0 | R107: 0 | T107: 0 | V107: 0 | X107: 100 | Z107: 0 | AB107: 0 | AD107: 0 | AF107: No
A108: Maryland Transit Administration | B108: Baltimore | C108: MD | D108: 3034 | E108: 30034 | F108: State Government Unit or Department of Transportation | G108: Full Reporter | H108: 2203663 | I108: 1683 | J108: HR | K108: DO | L108: Below-Grade/Bored or Blasted Tunnel | M108: Percent | N108: 0 | P108: 0 | R108: 0 | T108: 0 | V108: 0 | X108: 100 | Z108: 0 | AB108: 0 | AD108: 0 | AF108: No
A109: Maryland Transit Administration | B109: Baltimore | C109: MD | D109: 3034 | E109: 30034 | F109: State Government Unit or Department of Transportation | G109: Full Reporter | H109: 2203663 | I109: 1683 | J109: HR | K109: DO | L109: Below-Grade/Retained Cut | M109: Percent | N109: 0 | P109: 0 | R109: 0 | T109: 0 | V109: 0 | X109: 100 | Z109: 0 | AB109: 0 | AD109: 0 | AF109: No
A110: Denver Regional Transportation District | B110: Denver | C110: CO | D110: 8006 | E110: 80006 | F110: Independent Public Agency or Authority of Transit Service | G110: Full Reporter | H110: 2374203 | I110: 1457 | J110: CR | K110: PT | L110: At-Grade/Ballast (including expressway) | M110: Percent | N110: 0 | P110: 0 | R110: 0 | T110: 0 | V110: 0 | X110: 0 | Z110: 0 | AB110: 0 | AD110: 100 | AF110: No
A111: Denver Regional Transportation District | B111: Denver | C111: CO | D111: 8006 | E111: 80006 | F111: Independent Public Agency or Authority of Transit Service | G111: Full Reporter | H111: 2374203 | I111: 1457 | J111: CR | K111: PT | L111: Below-Grade/Cut-and-Cover Tunnel | M111: Percent | N111: 0 | P111: 0 | R111: 0 | T111: 0 | V111: 0 | X111: 0 | Z111: 0 | AB111: 0 | AD111: 100 | AF111: No
A112: Denver Regional Transportation District | B112: Denver | C112: CO | D112: 8006 | E112: 80006 | F112: Independent Public Agency or Authority of Transit Service | G112: Full Reporter | H112: 2374203 | I112: 1457 | J112: CR | K112: PT | L112: Elevated/Concrete | M112: Percent | N112: 0 | P112: 0 | R112: 0 | T112: 0 | V112: 0 | X112: 0 | Z112: 0 | AB112: 0 | AD112: 100 | AF112: No
A113: Denver Regional Transportation District | B113: Denver | C113: CO | D113: 8006 | E113: 80006 | F113: Independent Public Agency or Authority of Transit Service | G113: Full Reporter | H113: 2374203 | I113: 1457 | J113: CR | K113: PT | L113: Elevated/Steel Viaduct or Bridge | M113: Percent | N113: 0 | P113: 0 | R113: 0 | T113: 0 | V113: 0 | X113: 0 | Z113: 0 | AB113: 0 | AD113: 100 | AF113: No
A114: Denver Regional Transportation District | B114: Denver | C114: CO | D114: 8006 | E114: 80006 | F114: Independent Public Agency or Authority of Transit Service | G114: Full Reporter | H114: 2374203 | I114: 1457 | J114: CR | K114: PT | L114: At-Grade/In-Street/Embedded | M114: Percent | N114: 0 | P114: 0 | R114: 0 | T114: 0 | V114: 0 | X114: 0 | Z114: 0 | AB114: 0 | AD114: 100 | AF114: No
A115: Denver Regional Transportation District | B115: Denver | C115: CO | D115: 8006 | E115: 80006 | F115: Independent Public Agency or Authority of Transit Service | G115: Full Reporter | H115: 2374203 | I115: 1457 | J115: CR | K115: PT | L115: Below-Grade/Retained Cut | M115: Percent | N115: 0 | P115: 0 | R115: 0 | T115: 0 | V115: 0 | X115: 0 | Z115: 0 | AB115: 0 | AD115: 100 | AF115: No
A116: Denver Regional Transportation District | B116: Denver | C116: CO | D116: 8006 | E116: 80006 | F116: Independent Public Agency or Authority of Transit Service | G116: Full Reporter | H116: 2374203 | I116: 1457 | J116: CR | K116: PT | L116: Elevated/Retained Fill | M116: Percent | N116: 0 | P116: 0 | R116: 0 | T116: 0 | V116: 0 | X116: 0 | Z116: 0 | AB116: 0 | AD116: 100 | AF116: No
A117: Denver Regional Transportation District | B117: Denver | C117: CO | D117: 8006 | E117: 80006 | F117: Independent Public Agency or Authority of Transit Service | G117: Full Reporter | H117: 2374203 | I117: 1457 | J117: LR | K117: DO | L117: At-Grade/In-Street/Embedded | M117: Linear Miles | N117: 0 | P117: 0 | R117: 0 | T117: 0 | V117: 0 | X117: 0 | Z117: 5.3 | AB117: 1.8 | AD117: 2.1 | AF117: No
A118: Denver Regional Transportation District | B118: Denver | C118: CO | D118: 8006 | E118: 80006 | F118: Independent Public Agency or Authority of Transit Service | G118: Full Reporter | H118: 2374203 | I118: 1457 | J118: LR | K118: DO | L118: Elevated/Retained Fill | M118: Linear Miles | N118: 0 | P118: 0 | R118: 0 | T118: 0 | V118: 0 | X118: 0 | Z118: 0.3 | AB118: 2 | AD118: 1.6 | AF118: No
A119: Denver Regional Transportation District | B119: Denver | C119: CO | D119: 8006 | E119: 80006 | F119: Independent Public Agency or Authority of Transit Service | G119: Full Reporter | H119: 2374203 | I119: 1457 | J119: LR | K119: DO | L119: At-Grade/Ballast (including expressway) | M119: Linear Miles | N119: 0 | P119: 0 | R119: 0 | T119: 0 | V119: 0 | X119: 0 | Z119: 6.7 | AB119: 74.6 | AD119: 29.4 | AF119: No
A120: Denver Regional Transportation District | B120: Denver | C120: CO | D120: 8006 | E120: 80006 | F120: Independent Public Agency or Authority of Transit Service | G120: Full Reporter | H120: 2374203 | I120: 1457 | J120: LR | K120: DO | L120: Elevated/Concrete | M120: Linear Miles | N120: 0 | P120: 0 | R120: 0 | T120: 0 | V120: 0 | X120: 0 | Z120: 0 | AB120: 2.1 | AD120: 1.4 | AF120: No
A121: County of Miami-Dade , dba: Transportation & Public Work | B121: Miami | C121: FL | D121: 4034 | E121: 40034 | F121: City, County or Local Government Unit or Department of Transportation | G121: Full Reporter | H121: 5502379 | I121: 1396 | J121: MG | K121: DO | L121: Elevated/Concrete | M121: Linear Miles | N121: 0 | P121: 0 | R121: 0 | T121: 0 | V121: 0 | X121: 4.75 | Z121: 0 | AB121: 0 | AD121: 0 | AF121: No
A122: County of Miami-Dade , dba: Transportation & Public Work | B122: Miami | C122: FL | D122: 4034 | E122: 40034 | F122: City, County or Local Government Unit or Department of Transportation | G122: Full Reporter | H122: 5502379 | I122: 1396 | J122: HR | K122: DO | L122: Elevated/Concrete | M122: Percent | N122: 0 | P122: 0 | R122: 0 | T122: 0 | V122: 0 | X122: 90 | Z122: 0 | AB122: 0 | AD122: 10 | AF122: No
A123: County of Miami-Dade , dba: Transportation & Public Work | B123: Miami | C123: FL | D123: 4034 | E123: 40034 | F123: City, County or Local Government Unit or Department of Transportation | G123: Full Reporter | H123: 5502379 | I123: 1396 | J123: HR | K123: DO | L123: Elevated/Steel Viaduct or Bridge | M123: Percent | N123: 0 | P123: 0 | R123: 0 | T123: 0 | V123: 0 | X123: 80 | Z123: 0 | AB123: 0 | AD123: 20 | AF123: No
A124: County of Miami-Dade , dba: Transportation & Public Work | B124: Miami | C124: FL | D124: 4034 | E124: 40034 | F124: City, County or Local Government Unit or Department of Transportation | G124: Full Reporter | H124: 5502379 | I124: 1396 | J124: HR | K124: DO | L124: At-Grade/In-Street/Embedded | M124: Percent | N124: 0 | P124: 0 | R124: 0 | T124: 0 | V124: 0 | X124: 80 | Z124: 0 | AB124: 0 | AD124: 20 | AF124: No
A125: County of Miami-Dade , dba: Transportation & Public Work | B125: Miami | C125: FL | D125: 4034 | E125: 40034 | F125: City, County or Local Government Unit or Department of Transportation | G125: Full Reporter | H125: 5502379 | I125: 1396 | J125: HR | K125: DO | L125: Elevated/Retained Fill | M125: Percent | N125: 0 | P125: 0 | R125: 0 | T125: 0 | V125: 0 | X125: 80 | Z125: 0 | AB125: 0 | AD125: 20 | AF125: No
A126: Metro-North Commuter Railroad Company, dba: MTA Metro-North Railroad | B126: New York | C126: NY | D126: 2078 | E126: 20078 | F126: Subsidiary Unit of a Transit Agency, Reporting Separately | G126: Full Reporter | H126: 18351295 | I126: 1168 | J126: CR | K126: DO | L126: Elevated/Steel Viaduct or Bridge | M126: Track Miles | N126: 0 | P126: 0 | R126: 0 | T126: 0 | V126: 0 | X126: 41 | Z126: 0 | AB126: 0 | AD126: 0 | AF126: No
A127: Metro-North Commuter Railroad Company, dba: MTA Metro-North Railroad | B127: New York | C127: NY | D127: 2078 | E127: 20078 | F127: Subsidiary Unit of a Transit Agency, Reporting Separately | G127: Full Reporter | H127: 18351295 | I127: 1168 | J127: CR | K127: DO | L127: At-Grade/Ballast (including expressway) | M127: Track Miles | N127: 0 | P127: 0 | R127: 0 | T127: 0 | V127: 0 | X127: 826 | Z127: 0 | AB127: 0 | AD127: 0 | AF127: No
A128: Utah Transit Authority | B128: Salt Lake City | C128: UT | D128: 8001 | E128: 80001 | F128: Independent Public Agency or Authority of Transit Service | G128: Full Reporter | H128: 1021243 | I128: 1113 | J128: CR | K128: DO | L128: Elevated/Retained Fill | M128: Linear Miles | N128: 0 | P128: 0 | R128: 0 | T128: 0 | V128: 0 | X128: 0 | Z128: 0 | AB128: 0.9 | AD128: 5.1 | AF128: No
A129: Utah Transit Authority | B129: Salt Lake City | C129: UT | D129: 8001 | E129: 80001 | F129: Independent Public Agency or Authority of Transit Service | G129: Full Reporter | H129: 1021243 | I129: 1113 | J129: CR | K129: DO | L129: At-Grade/Ballast (including expressway) | M129: Linear Miles | N129: 0 | P129: 0 | R129: 0 | T129: 0 | V129: 0 | X129: 0 | Z129: 0 | AB129: 35.4 | AD129: 37.6 | AF129: No
A130: Utah Transit Authority | B130: Salt Lake City | C130: UT | D130: 8001 | E130: 80001 | F130: Independent Public Agency or Authority of Transit Service | G130: Full Reporter | H130: 1021243 | I130: 1113 | J130: CR | K130: DO | L130: Elevated/Steel Viaduct or Bridge | M130: Linear Miles | N130: 0 | P130: 0 | R130: 0 | T130: 0 | V130: 0 | X130: 0 | Z130: 0 | AB130: 0.4 | AD130: 0.6 | AF130: =IF(AE130&AC130&AA130&Y130&W130&U130&S130&Q130&O130<>"","Yes","No") -> No
A131: Utah Transit Authority | B131: Salt Lake City | C131: UT | D131: 8001 | E131: 80001 | F131: Independent Public Agency or Authority of Transit Service | G131: Full Reporter | H131: 1021243 | I131: 1113 | J131: CR | K131: DO | L131: Below-Grade/Retained Cut | M131: Linear Miles | N131: 0 | P131: 0 | R131: 0 | T131: 0 | V131: 0 | X131: 0 | Z131: 0 | AB131: 0.6 | AD131: 1.4 | AF131: No
A132: Utah Transit Authority | B132: Salt Lake City | C132: UT | D132: 8001 | E132: 80001 | F132: Independent Public Agency or Authority of Transit Service | G132: Full Reporter | H132: 1021243 | I132: 1113 | J132: LR | K132: DO | L132: At-Grade/Ballast (including expressway) | M132: Linear Miles | N132: 0 | P132: 0 | R132: 0 | T132: 0 | V132: 0 | X132: 0 | Z132: 12 | AB132: 1 | AD132: 20 | AF132: No
A133: Utah Transit Authority | B133: Salt Lake City | C133: UT | D133: 8001 | E133: 80001 | F133: Independent Public Agency or Authority of Transit Service | G133: Full Reporter | H133: 1021243 | I133: 1113 | J133: LR | K133: DO | L133: Elevated/Retained Fill | M133: Linear Miles | N133: 0 | P133: 0 | R133: 0 | T133: 0 | V133: 0 | X133: 0 | Z133: 0 | AB133: 0 | AD133: 1 | AF133: No
A134: Utah Transit Authority | B134: Salt Lake City | C134: UT | D134: 8001 | E134: 80001 | F134: Independent Public Agency or Authority of Transit Service | G134: Full Reporter | H134: 1021243 | I134: 1113 | J134: LR | K134: DO | L134: At-Grade/In-Street/Embedded | M134: Linear Miles | N134: 0 | P134: 0 | R134: 0 | T134: 0 | V134: 0 | X134: 0 | Z134: 2 | AB134: 5 | AD134: 5 | AF134: No
A135: Utah Transit Authority | B135: Salt Lake City | C135: UT | D135: 8001 | E135: 80001 | F135: Independent Public Agency or Authority of Transit Service | G135: Full Reporter | H135: 1021243 | I135: 1113 | J135: LR | K135: DO | L135: Elevated/Steel Viaduct or Bridge | M135: Linear Miles | N135: 0 | P135: 0 | R135: 0 | T135: 0 | V135: 0 | X135: 0 | Z135: 0.2 | AB135: 0 | AD135: 0.8 | AF135: No
A136: Northeast Illinois Regional Commuter Railroad Corporation, dba: Metra | B136: Chicago | C136: IL | D136: 5118 | E136: 50118 | F136: Independent Public Agency or Authority of Transit Service | G136: Full Reporter | H136: 8608208 | I136: 1062 | J136: CR | K136: DO | L136: At-Grade/Ballast (including expressway) | M136: Track Miles | N136: 1 | P136: 0 | R136: 6 | T136: 31 | V136: 14 | X136: 240 | Z136: 314 | AB136: 195 | AD136: 77 | AF136: No
A137: Northeast Illinois Regional Commuter Railroad Corporation, dba: Metra | B137: Chicago | C137: IL | D137: 5118 | E137: 50118 | F137: Independent Public Agency or Authority of Transit Service | G137: Full Reporter | H137: 8608208 | I137: 1062 | J137: CR | K137: DO | L137: Below-Grade/Retained Cut | M137: Track Miles | N137: 0 | P137: 0 | R137: 0 | T137: 0 | V137: 0 | X137: 2 | Z137: 12 | AB137: 0 | AD137: 3 | AF137: No
A138: Northeast Illinois Regional Commuter Railroad Corporation, dba: Metra | B138: Chicago | C138: IL | D138: 5118 | E138: 50118 | F138: Independent Public Agency or Authority of Transit Service | G138: Full Reporter | H138: 8608208 | I138: 1062 | J138: CR | K138: DO | L138: Elevated/Steel Viaduct or Bridge | M138: Track Miles | N138: 0 | P138: 0 | R138: 2 | T138: 0 | V138: 2 | X138: 7 | Z138: 5 | AB138: 10 | AD138: 7 | AF138: No
A139: Northeast Illinois Regional Commuter Railroad Corporation, dba: Metra | B139: Chicago | C139: IL | D139: 5118 | E139: 50118 | F139: Independent Public Agency or Authority of Transit Service | G139: Full Reporter | H139: 8608208 | I139: 1062 | J139: CR | K139: DO | L139: At-Grade/In-Street/Embedded | M139: Track Miles | N139: 0 | P139: 0 | R139: 0 | T139: 0 | V139: 0 | X139: 0 | Z139: 0 | AB139: 4 | AD139: 2 | AF139: No
A140: Northeast Illinois Regional Commuter Railroad Corporation, dba: Metra | B140: Chicago | C140: IL | D140: 5118 | E140: 50118 | F140: Independent Public Agency or Authority of Transit Service | G140: Full Reporter | H140: 8608208 | I140: 1062 | J140: CR | K140: DO | L140: Elevated/Retained Fill | M140: Track Miles | N140: 1 | P140: 0 | R140: 9 | T140: 2 | V140: 8 | X140: 63 | Z140: 12 | AB140: 123 | AD140: 40 | AF140: No
A141: Dallas Area Rapid Transit | B141: Dallas | C141: TX | D141: 6056 | E141: 60056 | F141: Independent Public Agency or Authority of Transit Service | G141: Full Reporter | H141: 5121892 | I141: 1062 | J141: CR | K141: PT | L141: Elevated/Concrete | M141: Track Miles | N141: 0.04 | P141: 0.03 | R141: 0 | T141: 0.05 | V141: 0.17 | X141: 0 | Z141: 0.16 | AB141: 1 | AD141: 3.11 | AF141: No
A142: Dallas Area Rapid Transit | B142: Dallas | C142: TX | D142: 6056 | E142: 60056 | F142: Independent Public Agency or Authority of Transit Service | G142: Full Reporter | H142: 5121892 | I142: 1062 | J142: CR | K142: PT | L142: At-Grade/Ballast (including expressway) | M142: Track Miles | N142: 28.23 | P142: 0 | R142: 0 | T142: 0 | V142: 0 | X142: 0 | Z142: 8.53 | AB142: 2.5 | AD142: 1.5 | AF142: No
A143: Dallas Area Rapid Transit | B143: Dallas | C143: TX | D143: 6056 | E143: 60056 | F143: Independent Public Agency or Authority of Transit Service | G143: Full Reporter | H143: 5121892 | I143: 1062 | J143: CR | K143: PT | L143: Elevated/Steel Viaduct or Bridge | M143: Track Miles | N143: 0.09 | P143: 0.04 | R143: 0.22 | T143: 0.17 | V143: 0 | X143: 0 | Z143: 0 | AB143: 0.59 | AD143: 0.1 | AF143: No
A144: Dallas Area Rapid Transit | B144: Dallas | C144: TX | D144: 6056 | E144: 60056 | F144: Independent Public Agency or Authority of Transit Service | G144: Full Reporter | H144: 5121892 | I144: 1062 | J144: SR | K144: DO | L144: At-Grade/In-Street/Embedded | M144: Percent | N144: 0 | P144: 0 | R144: 0 | T144: 0 | V144: 0 | X144: 0 | Z144: 0 | AB144: 0 | AD144: 100 | AF144: No
A145: Dallas Area Rapid Transit | B145: Dallas | C145: TX | D145: 6056 | E145: 60056 | F145: Independent Public Agency or Authority of Transit Service | G145: Full Reporter | H145: 5121892 | I145: 1062 | J145: SR | K145: DO | L145: At-Grade/Ballast (including expressway) | M145: Percent | N145: 0 | P145: 0 | R145: 0 | T145: 0 | V145: 0 | X145: 0 | Z145: 0 | AB145: 0 | AD145: 100 | AF145: No
A146: Dallas Area Rapid Transit | B146: Dallas | C146: TX | D146: 6056 | E146: 60056 | F146: Independent Public Agency or Authority of Transit Service | G146: Full Reporter | H146: 5121892 | I146: 1062 | J146: SR | K146: DO | L146: Elevated/Concrete | M146: Percent | N146: 0 | P146: 0 | R146: 0 | T146: 0 | V146: 0 | X146: 0 | Z146: 0 | AB146: 0 | AD146: 100 | AF146: No
A147: Dallas Area Rapid Transit | B147: Dallas | C147: TX | D147: 6056 | E147: 60056 | F147: Independent Public Agency or Authority of Transit Service | G147: Full Reporter | H147: 5121892 | I147: 1062 | J147: LR | K147: DO | L147: Elevated/Steel Viaduct or Bridge | M147: Percent | N147: 0 | P147: 0 | R147: 0 | T147: 0 | V147: 0 | X147: 0 | Z147: 22 | AB147: 30 | AD147: 48 | AF147: No
A148: Dallas Area Rapid Transit | B148: Dallas | C148: TX | D148: 6056 | E148: 60056 | F148: Independent Public Agency or Authority of Transit Service | G148: Full Reporter | H148: 5121892 | I148: 1062 | J148: LR | K148: DO | L148: At-Grade/Ballast (including expressway) | M148: Percent | N148: 0 | P148: 0 | R148: 0 | T148: 0 | V148: 0 | X148: 0 | Z148: 22 | AB148: 30 | AD148: 48 | AF148: No
A149: Dallas Area Rapid Transit | B149: Dallas | C149: TX | D149: 6056 | E149: 60056 | F149: Independent Public Agency or Authority of Transit Service | G149: Full Reporter | H149: 5121892 | I149: 1062 | J149: LR | K149: DO | L149: Below-Grade/Bored or Blasted Tunnel | M149: Percent | N149: 0 | P149: 0 | R149: 0 | T149: 0 | V149: 0 | X149: 0 | Z149: 22 | AB149: 30 | AD149: 48 | AF149: No
A150: Dallas Area Rapid Transit | B150: Dallas | C150: TX | D150: 6056 | E150: 60056 | F150: Independent Public Agency or Authority of Transit Service | G150: Full Reporter | H150: 5121892 | I150: 1062 | J150: LR | K150: DO | L150: Elevated/Concrete | M150: Percent | N150: 0 | P150: 0 | R150: 0 | T150: 0 | V150: 0 | X150: 0 | Z150: 22 | AB150: 30 | AD150: 48 | AF150: No
A151: Dallas Area Rapid Transit | B151: Dallas | C151: TX | D151: 6056 | E151: 60056 | F151: Independent Public Agency or Authority of Transit Service | G151: Full Reporter | H151: 5121892 | I151: 1062 | J151: LR | K151: DO | L151: At-Grade/In-Street/Embedded | M151: Percent | N151: 0 | P151: 0 | R151: 0 | T151: 0 | V151: 0 | X151: 0 | Z151: 22 | AB151: 30 | AD151: 48 | AF151: No
A152: MTA Long Island Rail Road | B152: Jamaica | C152: NY | D152: 2100 | E152: 20100 | F152: Subsidiary Unit of a Transit Agency, Reporting Separately | G152: Full Reporter | H152: 18351295 | I152: 1026 | J152: CR | K152: DO | L152: At-Grade/Ballast (including expressway) | M152: Linear Miles | N152: 199.32 | P152: 5.44 | R152: 13.61 | T152: 15.65 | V152: 11.72 | X152: 0 | Z152: 110.61 | AB152: 0 | AD152: 0 | AF152: No
A153: MTA Long Island Rail Road | B153: Jamaica | C153: NY | D153: 2100 | E153: 20100 | F153: Subsidiary Unit of a Transit Agency, Reporting Separately | G153: Full Reporter | H153: 18351295 | I153: 1026 | J153: CR | K153: DO | L153: Below-Grade/Retained Cut | M153: Linear Miles | N153: 4.32 | P153: 0 | R153: 0 | T153: 0 | V153: 0 | X153: 0 | Z153: 0 | AB153: 0 | AD153: 0 | AF153: No
A154: MTA Long Island Rail Road | B154: Jamaica | C154: NY | D154: 2100 | E154: 20100 | F154: Subsidiary Unit of a Transit Agency, Reporting Separately | G154: Full Reporter | H154: 18351295 | I154: 1026 | J154: CR | K154: DO | L154: Elevated/Retained Fill | M154: Linear Miles | N154: 5.4 | P154: 0 | R154: 0 | T154: 0 | V154: 0 | X154: 0 | Z154: 0 | AB154: 0 | AD154: 0 | AF154: No
A155: MTA Long Island Rail Road | B155: Jamaica | C155: NY | D155: 2100 | E155: 20100 | F155: Subsidiary Unit of a Transit Agency, Reporting Separately | G155: Full Reporter | H155: 18351295 | I155: 1026 | J155: CR | K155: DO | L155: Elevated/Steel Viaduct or Bridge | M155: Linear Miles | N155: 3.9 | P155: 0.25 | R155: 0.93 | T155: 0.82 | V155: 0.05 | X155: 0.07 | Z155: 0.02 | AB155: 0 | AD155: 0.81 | AF155: No
A156: MTA Long Island Rail Road | B156: Jamaica | C156: NY | D156: 2100 | E156: 20100 | F156: Subsidiary Unit of a Transit Agency, Reporting Separately | G156: Full Reporter | H156: 18351295 | I156: 1026 | J156: CR | K156: DO | L156: Below-Grade/Cut-and-Cover Tunnel | M156: Linear Miles | N156: 3.78 | P156: 0 | R156: 0 | T156: 0 | V156: 0 | X156: 0 | Z156: 0 | AB156: 0 | AD156: 0 | AF156: No
A157: MTA Long Island Rail Road | B157: Jamaica | C157: NY | D157: 2100 | E157: 20100 | F157: Subsidiary Unit of a Transit Agency, Reporting Separately | G157: Full Reporter | H157: 18351295 | I157: 1026 | J157: CR | K157: DO | L157: Elevated/Concrete | M157: Linear Miles | N157: 0.06 | P157: 0.01 | R157: 0.29 | T157: 0.56 | V157: 2.57 | X157: 0.28 | Z157: 0.01 | AB157: 0 | AD157: 0 | AF157: No
A158: City and County of San Francisco, dba: San Francisco Municipal Transportation Agency | B158: San Francisco | C158: CA | D158: 9015 | E158: 90015 | F158: City, County or Local Government Unit or Department of Transportation | G158: Full Reporter | H158: 3281212 | I158: 1014 | J158: LR | K158: DO | L158: At-Grade/In-Street/Embedded | M158: Percent | N158: 0 | P158: 0 | R158: 0 | T158: 0 | V158: 0 | X158: 40 | Z158: 40 | AB158: 10 | AD158: 10 | AF158: No
A159: City and County of San Francisco, dba: San Francisco Municipal Transportation Agency | B159: San Francisco | C159: CA | D159: 9015 | E159: 90015 | F159: City, County or Local Government Unit or Department of Transportation | G159: Full Reporter | H159: 3281212 | I159: 1014 | J159: LR | K159: DO | L159: Below-Grade/Cut-and-Cover Tunnel | M159: Percent | N159: 0 | P159: 0 | R159: 0 | T159: 0 | V159: 0 | X159: 50 | Z159: 0 | AB159: 50 | AD159: 0 | AF159: No
A160: City and County of San Francisco, dba: San Francisco Municipal Transportation Agency | B160: San Francisco | C160: CA | D160: 9015 | E160: 90015 | F160: City, County or Local Government Unit or Department of Transportation | G160: Full Reporter | H160: 3281212 | I160: 1014 | J160: LR | K160: DO | L160: At-Grade/Ballast (including expressway) | M160: Percent | N160: 0 | P160: 0 | R160: 0 | T160: 0 | V160: 0 | X160: 60 | Z160: 20 | AB160: 10 | AD160: 10 | AF160: No
A161: City and County of San Francisco, dba: San Francisco Municipal Transportation Agency | B161: San Francisco | C161: CA | D161: 9015 | E161: 90015 | F161: City, County or Local Government Unit or Department of Transportation | G161: Full Reporter | H161: 3281212 | I161: 1014 | J161: LR | K161: DO | L161: Below-Grade/Bored or Blasted Tunnel | M161: Percent | N161: 0 | P161: 0 | R161: 0 | T161: 0 | V161: 0 | X161: 50 | Z161: 0 | AB161: 50 | AD161: 0 | AF161: No
A162: City and County of San Francisco, dba: San Francisco Municipal Transportation Agency | B162: San Francisco | C162: CA | D162: 9015 | E162: 90015 | F162: City, County or Local Government Unit or Department of Transportation | G162: Full Reporter | H162: 3281212 | I162: 1014 | J162: LR | K162: DO | L162: Below-Grade/Retained Cut | M162: Percent | N162: 0 | P162: 0 | R162: 0 | T162: 0 | V162: 0 | X162: 0 | Z162: 0 | AB162: 100 | AD162: 0 | AF162: No
A163: City and County of San Francisco, dba: San Francisco Municipal Transportation Agency | B163: San Francisco | C163: CA | D163: 9015 | E163: 90015 | F163: City, County or Local Government Unit or Department of Transportation | G163: Full Reporter | H163: 3281212 | I163: 1014 | J163: CC | K163: DO | L163: At-Grade/In-Street/Embedded | M163: Percent | N163: 0 | P163: 0 | R163: 0 | T163: 0 | V163: 0 | X163: 100 | Z163: 0 | AB163: 0 | AD163: 0 | AF163: No
A164: City and County of San Francisco, dba: San Francisco Municipal Transportation Agency | B164: San Francisco | C164: CA | D164: 9015 | E164: 90015 | F164: City, County or Local Government Unit or Department of Transportation | G164: Full Reporter | H164: 3281212 | I164: 1014 | J164: SR | K164: DO | L164: At-Grade/In-Street/Embedded | M164: Percent | N164: 0 | P164: 0 | R164: 0 | T164: 0 | V164: 0 | X164: 60 | Z164: 20 | AB164: 20 | AD164: 0 | AF164: No
A165: Tri-County Metropolitan Transportation District of Oregon | B165: Portland | C165: OR | D165: 8 | E165: 8 | F165: Independent Public Agency or Authority of Transit Service | G165: Full Reporter | H165: 1849898 | I165: 961 | J165: LR | K165: DO | L165: Elevated/Steel Viaduct or Bridge | M165: Linear Miles | N165: 0 | P165: 0 | R165: 0 | T165: 0 | V165: 0 | X165: 0.21 | Z165: 0 | AB165: 0 | AD165: 0.33 | AF165: No
A166: Tri-County Metropolitan Transportation District of Oregon | B166: Portland | C166: OR | D166: 8 | E166: 8 | F166: Independent Public Agency or Authority of Transit Service | G166: Full Reporter | H166: 1849898 | I166: 961 | J166: LR | K166: DO | L166: At-Grade/In-Street/Embedded | M166: Linear Miles | N166: 0 | P166: 0 | R166: 0 | T166: 0 | V166: 0 | X166: 2.36 | Z166: 1.37 | AB166: 5.12 | AD166: 0.77 | AF166: No
A167: Tri-County Metropolitan Transportation District of Oregon | B167: Portland | C167: OR | D167: 8 | E167: 8 | F167: Independent Public Agency or Authority of Transit Service | G167: Full Reporter | H167: 1849898 | I167: 961 | J167: LR | K167: DO | L167: Below-Grade/Cut-and-Cover Tunnel | M167: Linear Miles | N167: 0 | P167: 0 | R167: 0 | T167: 0 | V167: 0 | X167: 0.17 | Z167: 0.27 | AB167: 0 | AD167: 0 | AF167: No
A168: Tri-County Metropolitan Transportation District of Oregon | B168: Portland | C168: OR | D168: 8 | E168: 8 | F168: Independent Public Agency or Authority of Transit Service | G168: Full Reporter | H168: 1849898 | I168: 961 | J168: LR | K168: DO | L168: Elevated/Concrete | M168: Linear Miles | N168: 0 | P168: 0 | R168: 0 | T168: 0 | V168: 0.06 | X168: 0.48 | Z168: 0.4 | AB168: 1.45 | AD168: 1.36 | AF168: No
A169: Tri-County Metropolitan Transportation District of Oregon | B169: Portland | C169: OR | D169: 8 | E169: 8 | F169: Independent Public Agency or Authority of Transit Service | G169: Full Reporter | H169: 1849898 | I169: 961 | J169: LR | K169: DO | L169: Elevated/Retained Fill | M169: Linear Miles | N169: 0 | P169: 0 | R169: 0 | T169: 0 | V169: 0 | X169: 0.76 | Z169: 0.88 | AB169: 1.09 | AD169: 0.37 | AF169: No
A170: Tri-County Metropolitan Transportation District of Oregon | B170: Portland | C170: OR | D170: 8 | E170: 8 | F170: Independent Public Agency or Authority of Transit Service | G170: Full Reporter | H170: 1849898 | I170: 961 | J170: LR | K170: DO | L170: At-Grade/Ballast (including expressway) | M170: Track Miles | N170: 0 | P170: 0 | R170: 0 | T170: 0 | V170: 0 | X170: 22.19 | Z170: 24.6 | AB170: 30.18 | AD170: 11.56 | AF170: No
A171: Tri-County Metropolitan Transportation District of Oregon | B171: Portland | C171: OR | D171: 8 | E171: 8 | F171: Independent Public Agency or Authority of Transit Service | G171: Full Reporter | H171: 1849898 | I171: 961 | J171: LR | K171: DO | L171: Below-Grade/Bored or Blasted Tunnel | M171: Linear Miles | N171: 0 | P171: 0 | R171: 0 | T171: 0 | V171: 0 | X171: 0 | Z171: 2.93 | AB171: 0 | AD171: 0 | AF171: No
A172: Tri-County Metropolitan Transportation District of Oregon | B172: Portland | C172: OR | D172: 8 | E172: 8 | F172: Independent Public Agency or Authority of Transit Service | G172: Full Reporter | H172: 1849898 | I172: 961 | J172: LR | K172: DO | L172: Below-Grade/Retained Cut | M172: Linear Miles | N172: 0 | P172: 0 | R172: 0 | T172: 0 | V172: 0 | X172: 0.03 | Z172: 0.29 | AB172: 0 | AD172: 0 | AF172: No
A173: Tri-County Metropolitan Transportation District of Oregon | B173: Portland | C173: OR | D173: 8 | E173: 8 | F173: Independent Public Agency or Authority of Transit Service | G173: Full Reporter | H173: 1849898 | I173: 961 | J173: YR | K173: PT | L173: At-Grade/In-Street/Embedded | M173: Percent | N173: 0 | P173: 0 | R173: 0 | T173: 0 | V173: 0 | X173: 0 | Z173: 0 | AB173: 100 | AD173: 0 | AF173: No
A174: Tri-County Metropolitan Transportation District of Oregon | B174: Portland | C174: OR | D174: 8 | E174: 8 | F174: Independent Public Agency or Authority of Transit Service | G174: Full Reporter | H174: 1849898 | I174: 961 | J174: YR | K174: PT | L174: Elevated/Steel Viaduct or Bridge | M174: Percent | N174: 0 | P174: 0 | R174: 0 | T174: 0 | V174: 0 | X174: 0 | Z174: 0 | AB174: 100 | AD174: 0 | AF174: No
A175: Tri-County Metropolitan Transportation District of Oregon | B175: Portland | C175: OR | D175: 8 | E175: 8 | F175: Independent Public Agency or Authority of Transit Service | G175: Full Reporter | H175: 1849898 | I175: 961 | J175: YR | K175: PT | L175: At-Grade/Ballast (including expressway) | M175: Percent | N175: 0 | P175: 0 | R175: 0 | T175: 0 | V175: 0 | X175: 0 | Z175: 0 | AB175: 100 | AD175: 0 | AF175: No
A176: Tri-County Metropolitan Transportation District of Oregon | B176: Portland | C176: OR | D176: 8 | E176: 8 | F176: Independent Public Agency or Authority of Transit Service | G176: Full Reporter | H176: 1849898 | I176: 961 | J176: YR | K176: PT | L176: Elevated/Concrete | M176: Percent | N176: 0 | P176: 0 | R176: 0 | T176: 0 | V176: 0 | X176: 0 | Z176: 0 | AB176: 100 | AD176: 0 | AF176: No
A177: Port Authority of Allegheny County | B177: Pittsburgh | C177: PA | D177: 3022 | E177: 30022 | F177: Independent Public Agency or Authority of Transit Service | G177: Full Reporter | H177: 1733853 | I177: 933 | J177: LR | K177: DO | L177: At-Grade/In-Street/Embedded | M177: Linear Miles | N177: 0.1 | P177: 0 | R177: 0 | T177: 0 | V177: 0 | X177: 1.85 | Z177: 1.73 | AB177: 0.15 | AD177: 0 | AF177: No
A178: Port Authority of Allegheny County | B178: Pittsburgh | C178: PA | D178: 3022 | E178: 30022 | F178: Independent Public Agency or Authority of Transit Service | G178: Full Reporter | H178: 1733853 | I178: 933 | J178: LR | K178: DO | L178: Below-Grade/Cut-and-Cover Tunnel | M178: Linear Miles | N178: 0 | P178: 0 | R178: 0 | T178: 0 | V178: 0 | X178: 1.44 | Z178: 0 | AB178: 0 | AD178: 0 | AF178: No
A179: Port Authority of Allegheny County | B179: Pittsburgh | C179: PA | D179: 3022 | E179: 30022 | F179: Independent Public Agency or Authority of Transit Service | G179: Full Reporter | H179: 1733853 | I179: 933 | J179: LR | K179: DO | L179: Elevated/Concrete | M179: Linear Miles | N179: 0.03 | P179: 0 | R179: 0 | T179: 0 | V179: 0 | X179: 0 | Z179: 0 | AB179: 0 | AD179: 0.42 | AF179: No
A180: Port Authority of Allegheny County | B180: Pittsburgh | C180: PA | D180: 3022 | E180: 30022 | F180: Independent Public Agency or Authority of Transit Service | G180: Full Reporter | H180: 1733853 | I180: 933 | J180: LR | K180: DO | L180: Elevated/Steel Viaduct or Bridge | M180: Linear Miles | N180: 0 | P180: 0 | R180: 0 | T180: 0 | V180: 0 | X180: 0.88 | Z180: 0 | AB180: 0.56 | AD180: 0 | AF180: No
A181: Port Authority of Allegheny County | B181: Pittsburgh | C181: PA | D181: 3022 | E181: 30022 | F181: Independent Public Agency or Authority of Transit Service | G181: Full Reporter | H181: 1733853 | I181: 933 | J181: LR | K181: DO | L181: At-Grade/Ballast (including expressway) | M181: Linear Miles | N181: 4.65 | P181: 0 | R181: 0 | T181: 0 | V181: 0 | X181: 1.86 | Z181: 0 | AB181: 0.38 | AD181: 0 | AF181: No
A182: Port Authority of Allegheny County | B182: Pittsburgh | C182: PA | D182: 3022 | E182: 30022 | F182: Independent Public Agency or Authority of Transit Service | G182: Full Reporter | H182: 1733853 | I182: 933 | J182: LR | K182: DO | L182: Below-Grade/Bored or Blasted Tunnel | M182: Linear Miles | N182: 0 | P182: 0 | R182: 0 | T182: 0 | V182: 0 | X182: 1.79 | Z182: 0 | AB182: 0 | AD182: 0.9 | AF182: No
A183: Port Authority of Allegheny County | B183: Pittsburgh | C183: PA | D183: 3022 | E183: 30022 | F183: Independent Public Agency or Authority of Transit Service | G183: Full Reporter | H183: 1733853 | I183: 933 | J183: LR | K183: DO | L183: Below-Grade/Retained Cut | M183: Linear Miles | N183: 0.16 | P183: 0 | R183: 0 | T183: 0 | V183: 0 | X183: 2.24 | Z183: 0.2 | AB183: 3.29 | AD183: 0 | AF183: No
A184: Port Authority of Allegheny County | B184: Pittsburgh | C184: PA | D184: 3022 | E184: 30022 | F184: Independent Public Agency or Authority of Transit Service | G184: Full Reporter | H184: 1733853 | I184: 933 | J184: LR | K184: DO | L184: Elevated/Retained Fill | M184: Linear Miles | N184: 0.04 | P184: 0 | R184: 0 | T184: 0 | V184: 0 | X184: 2.04 | Z184: 0 | AB184: 0.64 | AD184: 0 | AF184: No
A185: Port Authority of Allegheny County | B185: Pittsburgh | C185: PA | D185: 3022 | E185: 30022 | F185: Independent Public Agency or Authority of Transit Service | G185: Full Reporter | H185: 1733853 | I185: 933 | J185: IP | K185: DO | L185: Elevated/Steel Viaduct or Bridge | M185: Track Miles | N185: 0.2 | P185: 0 | R185: 0 | T185: 0 | V185: 0 | X185: 0 | Z185: 0 | AB185: 0 | AD185: 0 | AF185: No
A186: Metro Transit | B186: Minneapolis | C186: MN | D186: 5027 | E186: 50027 | F186: Subsidiary Unit of a Transit Agency, Reporting Separately | G186: Full Reporter | H186: 2650890 | I186: 854 | J186: LR | K186: DO | L186: At-Grade/In-Street/Embedded | M186: Track Miles | N186: 0 | P186: 0 | R186: 0 | T186: 0 | V186: 0 | X186: 0 | Z186: 0 | AB186: 4.89 | AD186: 17.58 | AF186: No
A187: Metro Transit | B187: Minneapolis | C187: MN | D187: 5027 | E187: 50027 | F187: Subsidiary Unit of a Transit Agency, Reporting Separately | G187: Full Reporter | H187: 2650890 | I187: 854 | J187: LR | K187: DO | L187: Below-Grade/Cut-and-Cover Tunnel | M187: Track Miles | N187: 0 | P187: 0 | R187: 0 | T187: 0 | V187: 0 | X187: 0 | Z187: 0 | AB187: 0.44 | AD187: 0 | AF187: No
A188: Metro Transit | B188: Minneapolis | C188: MN | D188: 5027 | E188: 50027 | F188: Subsidiary Unit of a Transit Agency, Reporting Separately | G188: Full Reporter | H188: 2650890 | I188: 854 | J188: LR | K188: DO | L188: Elevated/Concrete | M188: Track Miles | N188: 0 | P188: 0 | R188: 0 | T188: 0 | V188: 0 | X188: 0 | Z188: 0 | AB188: 1.9 | AD188: 0.2 | AF188: No
A189: Metro Transit | B189: Minneapolis | C189: MN | D189: 5027 | E189: 50027 | F189: Subsidiary Unit of a Transit Agency, Reporting Separately | G189: Full Reporter | H189: 2650890 | I189: 854 | J189: LR | K189: DO | L189: Elevated/Steel Viaduct or Bridge | M189: Track Miles | N189: 0 | P189: 0 | R189: 0 | T189: 0 | V189: 0 | X189: 0 | Z189: 0 | AB189: 0.51 | AD189: 0.51 | AF189: No
A190: Metro Transit | B190: Minneapolis | C190: MN | D190: 5027 | E190: 50027 | F190: Subsidiary Unit of a Transit Agency, Reporting Separately | G190: Full Reporter | H190: 2650890 | I190: 854 | J190: LR | K190: DO | L190: At-Grade/Ballast (including expressway) | M190: Track Miles | N190: 0 | P190: 0 | R190: 0 | T190: 0 | V190: 0 | X190: 0 | Z190: 0 | AB190: 16.06 | AD190: 3.82 | AF190: No
A191: Metro Transit | B191: Minneapolis | C191: MN | D191: 5027 | E191: 50027 | F191: Subsidiary Unit of a Transit Agency, Reporting Separately | G191: Full Reporter | H191: 2650890 | I191: 854 | J191: LR | K191: DO | L191: Below-Grade/Bored or Blasted Tunnel | M191: Track Miles | N191: 0 | P191: 0 | R191: 0 | T191: 0 | V191: 0 | X191: 0 | Z191: 0 | AB191: 3.08 | AD191: 0 | AF191: No
A192: Metro Transit | B192: Minneapolis | C192: MN | D192: 5027 | E192: 50027 | F192: Subsidiary Unit of a Transit Agency, Reporting Separately | G192: Full Reporter | H192: 2650890 | I192: 854 | J192: LR | K192: DO | L192: Below-Grade/Retained Cut | M192: Track Miles | N192: 0 | P192: 0 | R192: 0 | T192: 0 | V192: 0 | X192: 0 | Z192: 0 | AB192: 0.4 | AD192: 0.57 | AF192: No
A193: Metro Transit | B193: Minneapolis | C193: MN | D193: 5027 | E193: 50027 | F193: Subsidiary Unit of a Transit Agency, Reporting Separately | G193: Full Reporter | H193: 2650890 | I193: 854 | J193: LR | K193: DO | L193: Elevated/Retained Fill | M193: Track Miles | N193: 0 | P193: 0 | R193: 0 | T193: 0 | V193: 0 | X193: 0 | Z193: 0 | AB193: 0.4 | AD193: 0.54 | AF193: No
A194: Metro Transit | B194: Minneapolis | C194: MN | D194: 5027 | E194: 50027 | F194: Subsidiary Unit of a Transit Agency, Reporting Separately | G194: Full Reporter | H194: 2650890 | I194: 854 | J194: CR | K194: PT | L194: At-Grade/Ballast (including expressway) | M194: Track Miles | N194: 0 | P194: 0 | R194: 0 | T194: 0 | V194: 0 | X194: 0 | Z194: 0 | AB194: 41.46 | AD194: 0 | AF194: =IF(AE194&AC194&AA194&Y194&W194&U194&S194&Q194&O194<>"","Yes","No") -> No
A195: Metropolitan Atlanta Rapid Transit Authority | B195: Atlanta | C195: GA | D195: 4022 | E195: 40022 | F195: Independent Public Agency or Authority of Transit Service | G195: Full Reporter | H195: 4515419 | I195: 846 | J195: HR | K195: DO | L195: At-Grade/Ballast (including expressway) | M195: Linear Miles | N195: 0 | P195: 0 | R195: 0 | T195: 0 | V195: 6 | X195: 9 | Z195: 8 | AB195: 0 | AD195: 0 | AF195: No
A196: Metropolitan Atlanta Rapid Transit Authority | B196: Atlanta | C196: GA | D196: 4022 | E196: 40022 | F196: Independent Public Agency or Authority of Transit Service | G196: Full Reporter | H196: 4515419 | I196: 846 | J196: HR | K196: DO | L196: Elevated/Concrete | M196: Linear Miles | N196: 0 | P196: 0 | R196: 0 | T196: 0 | V196: 3 | X196: 4 | Z196: 4 | AB196: 1 | AD196: 0 | AF196: No
A197: Metropolitan Atlanta Rapid Transit Authority | B197: Atlanta | C197: GA | D197: 4022 | E197: 40022 | F197: Independent Public Agency or Authority of Transit Service | G197: Full Reporter | H197: 4515419 | I197: 846 | J197: HR | K197: DO | L197: Below-Grade/Cut-and-Cover Tunnel | M197: Track Miles | N197: 0 | P197: 0 | R197: 0 | T197: 0 | V197: 7 | X197: 9 | Z197: 3 | AB197: 2.11 | AD197: 0 | AF197: No
A198: San Diego Metropolitan Transit System | B198: San Diego | C198: CA | D198: 9026 | E198: 90026 | F198: Independent Public Agency or Authority of Transit Service | G198: Full Reporter | H198: 2956746 | I198: 793 | J198: LR | K198: DO | L198: At-Grade/In-Street/Embedded | M198: Track Miles | N198: 0 | P198: 0 | R198: 0 | T198: 0 | V198: 0 | X198: 8.6 | Z198: 4 | AB198: 0 | AD198: 0 | AF198: No
A199: San Diego Metropolitan Transit System | B199: San Diego | C199: CA | D199: 9026 | E199: 90026 | F199: Independent Public Agency or Authority of Transit Service | G199: Full Reporter | H199: 2956746 | I199: 793 | J199: LR | K199: DO | L199: Below-Grade/Cut-and-Cover Tunnel | M199: Track Miles | N199: 0 | P199: 0 | R199: 0 | T199: 0 | V199: 0 | X199: 0 | Z199: 0 | AB199: 3 | AD199: 0 | AF199: No
A200: San Diego Metropolitan Transit System | B200: San Diego | C200: CA | D200: 9026 | E200: 90026 | F200: Independent Public Agency or Authority of Transit Service | G200: Full Reporter | H200: 2956746 | I200: 793 | J200: LR | K200: DO | L200: Elevated/Concrete | M200: Track Miles | N200: 0 | P200: 0 | R200: 0 | T200: 0 | V200: 0 | X200: 0 | Z200: 3.7 | AB200: 2 | AD200: 0 | AF200: No
... 199 more rows

Sheet Track and Roadway by Agency
A1: Agency | B1: City | C1: State | D1: Legacy NTD ID | E1: NTD ID | F1: Organization Type | G1: Reporter Type | H1: Primary UZA Population | I1: Agency Voms | J1: Track Types | K1: Tangent - Revenue Service | L1: Tangen - Revenue Service Questionable | M1: Curve - Revenue Service | N1: Curve - Revenue Service Questionable | O1: Total Revenue Service | P1: Revenue Track - No Capital Replacement Responsibility | Q1: Revenue Track - No Capital Replacement Responsibility Questionable | R1: Non-Revenue Service | S1: Non-Revenue Service Questionable | T1: Track Under Performance Restriction | U1: Track Under Performance Restriction Questionable | V1: Number Of Elements: | W1: Single Turnout | X1: Single Turnout Questionable | Y1: Grade Crossings | Z1: Grade Crossings Questionable | AA1: Single Crossover | AB1: Single Crossover Questionable | AC1: Double Diamond Crossover | AD1: Double Diamond Crossover Questionable | AE1: Half Grand Unions | AF1: Half Grand Unions Questionable | AG1: Miles Of Roadway: | AH1: Exclusive Fixed Guideway | AI1: Exclusive Fixed Guideway Questionable | AJ1: Exclusive High-Intensity Busway | AK1: Exclusive High-Intensity Busway Questionable | AL1: Controlled Access High Intensity Busway | AM1: Controlled Access High Intensity Busway Questionable | AN1: Total Miles | AO1: Any data questionable? | AR1: =2-AR4 -> 1
A2: MTA New York City Transit | B2: New York | C2: NY | D2: 2008 | E2: 20008 | F2: Subsidiary Unit of a Transit Agency, Reporting Separately | G2: Full Reporter | H2: 18351295 | I2: 10856 | K2: 453 | M2: 184 | O2: 637 | P2: 0 | R2: 141 | T2: 14.44 | W2: 1040 | Y2: 5 | AA2: 387 | AC2: 0 | AE2: 0 | AH2: 104.4 | AJ2: 11.3 | AL2: 92.4 | AN2: 208.1 | AO2: =IF(AF2&AD2&AB2&Z2&X2&L2&N2&Q2&S2&U2&AI2&AK2&AM2<>"","Yes","No") -> No | AR2: Hide questionable data tags
A3: New Jersey Transit Corporation | B3: Newark | C3: NJ | D3: 2080 | E3: 20080 | F3: Other Publicly-Owned or Privately Chartered Corporation | G3: Full Reporter | H3: 18351295 | I3: 3873 | K3: 691.13 | M3: 299.59 | O3: 990.72 | P3: 346.7 | R3: 65.32 | T3: 6.12 | W3: 469 | Y3: 417 | AA3: 312 | AC3: 20 | AE3: 1 | AH3: 0.5 | AJ3: 0 | AL3: 35.8 | AN3: 36.3 | AO3: =IF(AF3&AD3&AB3&Z3&X3&L3&N3&Q3&S3&U3&AI3&AK3&AM3<>"","Yes","No") -> No | AR3: Show questionable data tags
A4: Los Angeles County Metropolitan Transportation Authority , dba: Metro | B4: Los Angeles | C4: CA | D4: 9154 | E4: 90154 | F4: Independent Public Agency or Authority of Transit Service | G4: Full Reporter | H4: 12150996 | I4: 3458 | K4: 131.4 | M4: 72.17 | O4: 203.57 | P4: 0 | R4: 38.49 | T4: 3.88 | W4: 292 | Y4: 197 | AA4: 78 | AC4: 25 | AE4: 0 | AH4: 40.5 | AJ4: 125.8 | AL4: 13.5 | AN4: 179.8 | AO4: No | AR4: 1 | BG4: 1
A5: King County Department of Metro Transit, dba: King County Metro | B5: Seattle | C5: WA | D5: 1 | E5: 1 | F5: City, County or Local Government Unit or Department of Transportation | G5: Full Reporter | H5: 3059393 | I5: 3150 | K5: 7.85 | M5: 0 | N5: W | O5: 7.85 | P5: 7.85 | R5: 0.9 | T5: 0 | W5: 0 | Y5: 55 | AA5: 0 | AC5: 0 | AE5: 0 | AH5: 134.8 | AJ5: 192.9 | AL5: 78.7 | AN5: 406.4 | AO5: Yes
A6: Washington Metropolitan Area Transit Authority | B6: Washington | C6: DC | D6: 3030 | E6: 30030 | F6: Independent Public Agency or Authority of Transit Service | G6: Full Reporter | H6: 4586770 | I6: 3139 | K6: 139.9 | M6: 94.3 | O6: 234.2 | P6: 0 | R6: 61.1 | T6: 11.7 | W6: 109 | Y6: 0 | AA6: 33 | AC6: 74 | AE6: 0 | AH6: 2.6 | AJ6: 10.4 | AL6: 62.7 | AN6: 75.7 | AO6: No
A7: Chicago Transit Authority | B7: Chicago | C7: IL | D7: 5066 | E7: 50066 | F7: Independent Public Agency or Authority of Transit Service | G7: Full Reporter | H7: 8608208 | I7: 2711 | K7: 171.04 | M7: 53.51 | O7: 224.55 | P7: 0 | R7: 40.59 | T7: 25.37 | W7: 313 | Y7: 33 | AA7: 150 | AC7: 112 | AE7: 3 | AH7: 4.1 | AJ7: 0 | AL7: 0 | AN7: 4.1 | AO7: No
A8: Metropolitan Transit Authority of Harris County, Texas | B8: Houston | C8: TX | D8: 6008 | E8: 60008 | F8: Independent Public Agency or Authority of Transit Service | G8: Full Reporter | H8: 4944332 | I8: 2659 | K8: 35.73 | M8: 13.54 | O8: 49.27 | P8: 0 | R8: 8.69 | T8: 0.35 | W8: 20 | Y8: 165 | AA8: 18 | AC8: 16 | AE8: 1 | AH8: 0 | AJ8: 44.6 | AL8: 48.9 | AN8: 93.5 | AO8: No
A9: Massachusetts Bay Transportation Authority | B9: Boston | C9: MA | D9: 1003 | E9: 10003 | F9: Independent Public Agency or Authority of Transit Service | G9: Full Reporter | H9: 4181019 | I9: 2423 | K9: 790.82 | M9: 62.11 | O9: 852.93 | P9: 0 | R9: 56.48 | T9: 19.39 | W9: 974 | Y9: 357 | AA9: 206 | AC9: 23 | AE9: 15 | AH9: 40.8 | AJ9: 0 | AL9: 0 | AN9: 40.8 | AO9: No
A10: Southeastern Pennsylvania Transportation Authority | B10: Philadelphia | C10: PA | D10: 3019 | E10: 30019 | F10: Independent Public Agency or Authority of Transit Service | G10: Full Reporter | H10: 5441567 | I10: 2372 | K10: 628.04 | M10: 19.68 | O10: 647.72 | P10: 238.01 | R10: 277.49 | T10: 35.8 | W10: 93 | Y10: 336 | AA10: 212 | AC10: 0 | AE10: 0 | AH10: 33 | AJ10: 0 | AL10: 0 | AN10: 33 | AO10: No
A11: Maryland Transit Administration | B11: Baltimore | C11: MD | D11: 3034 | E11: 30034 | F11: State Government Unit or Department of Transportation | G11: Full Reporter | H11: 2203663 | I11: 1683 | K11: 430.95 | M11: 135.83 | O11: 566.78 | P11: 0 | R11: 19.91 | T11: 243 | W11: 66 | Y11: 46 | AA11: 102 | AC11: 28 | AE11: 0 | AH11: 0 | AJ11: 0 | AL11: 37.8 | AN11: 37.8 | AO11: No
A12: Orange County Transportation Authority | B12: Orange | C12: CA | D12: 9036 | E12: 90036 | F12: Independent Public Agency or Authority of Transit Service | G12: Full Reporter | H12: 12150996 | I12: 1495 | K12: 0 | M12: 0 | O12: 0 | P12: 0 | R12: 0 | T12: 0 | W12: 0 | Y12: 0 | AA12: 0 | AC12: 0 | AE12: 0 | AH12: 0 | AJ12: 0 | AL12: 250.3 | AN12: 250.3 | AO12: No
A13: Denver Regional Transportation District | B13: Denver | C13: CO | D13: 8006 | E13: 80006 | F13: Independent Public Agency or Authority of Transit Service | G13: Full Reporter | H13: 2374203 | I13: 1457 | K13: 107.66 | M13: 62.57 | O13: 170.23 | P13: 0 | R13: 15.74 | T13: 1.58 | W13: 159 | Y13: 68 | AA13: 71 | AC13: 8 | AE13: 0 | AH13: 1.9 | AJ13: 0 | AL13: 50.6 | AN13: 52.5 | AO13: No
A14: County of Miami-Dade , dba: Transportation & Public Work | B14: Miami | C14: FL | D14: 4034 | E14: 40034 | F14: City, County or Local Government Unit or Department of Transportation | G14: Full Reporter | H14: 5502379 | I14: 1396 | K14: 41.39 | M14: 18.19 | O14: 59.58 | P14: 0 | R14: 8.84 | T14: 0 | W14: 51 | Y14: 47 | AA14: 16 | AC14: 56 | AE14: 0 | AH14: 48.2 | AJ14: 0 | AL14: 52.4 | AN14: 100.6 | AO14: No
A15: Metro-North Commuter Railroad Company, dba: MTA Metro-North Railroad | B15: New York | C15: NY | D15: 2078 | E15: 20078 | F15: Subsidiary Unit of a Transit Agency, Reporting Separately | G15: Full Reporter | H15: 18351295 | I15: 1168 | K15: 452 | M15: 307 | O15: 759 | P15: 296 | R15: 108 | T15: 13 | W15: 1323 | Y15: 133 | AA15: 1269 | AC15: 0 | AE15: 0 | AH15: 0 | AJ15: 0 | AL15: 0 | AN15: 0 | AO15: No
A16: Utah Transit Authority | B16: Salt Lake City | C16: UT | D16: 8001 | E16: 80001 | F16: Independent Public Agency or Authority of Transit Service | G16: Full Reporter | H16: 1021243 | I16: 1113 | K16: 129 | M16: 66 | O16: 195 | P16: 0 | R16: 41 | T16: 1.55 | W16: 104 | Y16: 210 | AA16: 41 | AC16: 10 | AE16: 2 | AH16: 2.1 | AJ16: 0 | AL16: 0 | AN16: 2.1 | AO16: No
A17: MTA Bus Company | B17: New York | C17: NY | D17: 2188 | E17: 20188 | F17: Subsidiary Unit of a Transit Agency, Reporting Separately | G17: Full Reporter | H17: 18351295 | I17: 1111 | K17: 0 | M17: 0 | O17: 0 | P17: 0 | R17: 0 | T17: 0 | W17: 0 | Y17: 0 | AA17: 0 | AC17: 0 | AE17: 0 | AH17: 12.3 | AJ17: 0 | AL17: 14.8 | AN17: 27.1 | AO17: No
A18: Regional Public Transportation Authority, dba: Valley Metro | B18: Phoenix | C18: AZ | D18: 9136 | E18: 90136 | F18: Independent Public Agency or Authority of Transit Service | G18: Full Reporter | H18: 3629114 | I18: 1070 | K18: 0 | M18: 0 | O18: 0 | P18: 0 | R18: 0 | T18: 0 | W18: 0 | Y18: 0 | AA18: 0 | AC18: 0 | AE18: 0 | AH18: 0 | AJ18: 0 | AL18: 238.1 | AN18: 238.1 | AO18: No
A19: Dallas Area Rapid Transit | B19: Dallas | C19: TX | D19: 6056 | E19: 60056 | F19: Independent Public Agency or Authority of Transit Service | G19: Full Reporter | H19: 5121892 | I19: 1062 | K19: 211.13 | M19: 28 | O19: 239.13 | P19: 0 | R19: 18.49 | T19: 0.41 | W19: 122 | Y19: 187 | AA19: 88 | AC19: 22 | AE19: 0 | AH19: 0 | AJ19: 5.4 | AL19: 25.6 | AN19: 31 | AO19: No
A20: Northeast Illinois Regional Commuter Railroad Corporation, dba: Metra | B20: Chicago | C20: IL | D20: 5118 | E20: 50118 | F20: Independent Public Agency or Authority of Transit Service | G20: Full Reporter | H20: 8608208 | I20: 1062 | K20: 930 | M20: 169 | O20: 1099 | P20: 0 | R20: 93 | T20: 21.16 | W20: 1600 | Y20: 503 | AA20: 110 | AC20: 0 | AE20: 0 | AH20: 0 | AJ20: 0 | AL20: 0 | AN20: 0 | AO20: No
A21: MTA Long Island Rail Road | B21: Jamaica | C21: NY | D21: 2100 | E21: 20100 | F21: Subsidiary Unit of a Transit Agency, Reporting Separately | G21: Full Reporter | H21: 18351295 | I21: 1026 | K21: 389.2 | M21: 112.65 | O21: 501.85 | P21: 0 | R21: 110.61 | T21: 61 | W21: 232 | Y21: 365 | AA21: 196 | AC21: 2 | AE21: 0 | AH21: 0 | AJ21: 0 | AL21: 0 | AN21: 0 | AO21: No
A22: City and County of San Francisco, dba: San Francisco Municipal Transportation Agency | B22: San Francisco | C22: CA | D22: 9015 | E22: 90015 | F22: City, County or Local Government Unit or Department of Transportation | G22: Full Reporter | H22: 3281212 | I22: 1014 | K22: 80.93 | M22: 2.8 | O22: 83.73 | P22: 0 | R22: 0.04 | T22: 81.05 | W22: 77 | Y22: 36 | AA22: 50 | AC22: 7 | AE22: 8 | AH22: 163.4 | AJ22: 12.6 | AL22: 6.7 | AN22: 182.7 | AO22: No
A23: Tri-County Metropolitan Transportation District of Oregon | B23: Portland | C23: OR | D23: 8 | E23: 8 | F23: Independent Public Agency or Authority of Transit Service | G23: Full Reporter | H23: 1849898 | I23: 961 | K23: 91.23 | M23: 47.98 | O23: 139.21 | P23: 0 | R23: 9.53 | T23: 6.19 | W23: 154 | Y23: 239 | AA23: 44 | AC23: 6 | AE23: 0 | AH23: 6.3 | AJ23: 0 | AL23: 0.6 | AN23: 6.9 | AO23: No
A24: Port Authority of Allegheny County | B24: Pittsburgh | C24: PA | D24: 3022 | E24: 30022 | F24: Independent Public Agency or Authority of Transit Service | G24: Full Reporter | H24: 1733853 | I24: 933 | K24: 25.5 | M24: 22.9 | O24: 48.4 | P24: 0 | R24: 2.51 | T24: 0 | W24: 202 | Y24: 51 | AA24: 46 | AC24: 4 | AE24: 1 | AH24: 43.1 | AJ24: 13.4 | AL24: 0 | AN24: 56.5 | AO24: No
A25: Metro Transit | B25: Minneapolis | C25: MN | D25: 5027 | E25: 50027 | F25: Subsidiary Unit of a Transit Agency, Reporting Separately | G25: Full Reporter | H25: 2650890 | I25: 854 | K25: 69.75 | M25: 14.2 | O25: 83.95 | P25: 38.45 | R25: 8.51 | T25: 0 | W25: 58 | Y25: 145 | AA25: 31 | AC25: 6 | AE25: 0 | AH25: 4.7 | AJ25: 175.8 | AL25: 0 | AN25: 180.5 | AO25: No
A26: Metropolitan Atlanta Rapid Transit Authority | B26: Atlanta | C26: GA | D26: 4022 | E26: 40022 | F26: Independent Public Agency or Authority of Transit Service | G26: Full Reporter | H26: 4515419 | I26: 846 | K26: 103.74 | M26: 0 | O26: 103.74 | P26: 0 | R26: 0 | T26: 3.5 | W26: 195 | Y26: 0 | AA26: 22 | AC26: 15 | AE26: 0 | AH26: 0.2 | AJ26: 0 | AL26: 13.5 | AN26: 13.7 | AO26: No
A27: City and County of Honolulu, dba: City & County of Honolulu DTS | B27: Honolulu | C27: HI | D27: 9002 | E27: 90002 | F27: City, County or Local Government Unit or Department of Transportation | G27: Full Reporter | H27: 802459 | I27: 817 | K27: 0 | M27: 0 | O27: 0 | P27: 0 | R27: 0 | T27: 0 | W27: 0 | Y27: 0 | AA27: 0 | AC27: 0 | AE27: 0 | AH27: 1.2 | AJ27: 0 | AL27: 20.5 | AN27: 21.7 | AO27: No
A28: Alameda-Contra Costa Transit District | B28: Oakland | C28: CA | D28: 9014 | E28: 90014 | F28: Independent Public Agency or Authority of Transit Service | G28: Full Reporter | H28: 3281212 | I28: 794 | K28: 0 | M28: 0 | O28: 0 | P28: 0 | R28: 0 | T28: 0 | W28: 0 | Y28: 0 | AA28: 0 | AC28: 0 | AE28: 0 | AH28: 0 | AJ28: 54.2 | AL28: 0 | AN28: 54.2 | AO28: No
A29: San Diego Metropolitan Transit System | B29: San Diego | C29: CA | D29: 9026 | E29: 90026 | F29: Independent Public Agency or Authority of Transit Service | G29: Full Reporter | H29: 2956746 | I29: 793 | K29: 53 | M29: 51 | O29: 104 | P29: 0 | R29: 6.7 | T29: 1.39 | W29: 28 | Y29: 96 | AA29: 61 | AC29: 7 | AE29: 0 | AH29: 3 | AJ29: 30.8 | AL29: 0.1 | AN29: 33.9 | AO29: No
A30: Capital Metropolitan Transportation Authority, dba: Capital Metro | B30: Austin | C30: TX | D30: 6048 | E30: 60048 | F30: Independent Public Agency or Authority of Transit Service | G30: Full Reporter | H30: 1362416 | I30: 758 | K30: 45.5 | M30: 18.88 | O30: 64.38 | P30: 0 | R30: 0.2 | T30: 0.8 | W30: 8 | Y30: 79 | AA30: 3 | AC30: 0 | AE30: 0 | AH30: 0 | AJ30: 0 | AL30: 0 | AN30: 0 | AO30: No
A31: Regional Transportation Commission of Southern Nevada | B31: Las Vegas | C31: NV | D31: 9045 | E31: 90045 | F31: Independent Public Agency or Authority of Transit Service | G31: Full Reporter | H31: 1886011 | I31: 707 | K31: 0 | M31: 0 | O31: 0 | P31: 0 | R31: 0 | T31: 0 | W31: 0 | Y31: 0 | AA31: 0 | AC31: 0 | AE31: 0 | AH31: 71.2 | AJ31: 0 | AL31: 22.6 | AN31: 93.8 | AO31: No
A32: Potomac and Rappahannock Transportation Commission | B32: Woodbridge | C32: VA | D32: 3070 | E32: 30070 | F32: Independent Public Agency or Authority of Transit Service | G32: Full Reporter | H32: 4586770 | I32: 659 | K32: 0 | M32: 0 | O32: 0 | P32: 0 | R32: 0 | T32: 0 | W32: 0 | Y32: 0 | AA32: 0 | AC32: 0 | AE32: 0 | AH32: 0 | AJ32: 0 | AL32: 74.7 | AN32: 74.7 | AO32: No
A33: Snohomish County Public Transportation Benefit Area Corporation | B33: Everett | C33: WA | D33: 29 | E33: 29 | F33: Independent Public Agency or Authority of Transit Service | G33: Full Reporter | H33: 3059393 | I33: 648 | K33: 0 | M33: 0 | O33: 0 | P33: 0 | R33: 0 | T33: 0 | W33: 0 | Y33: 0 | AA33: 0 | AC33: 0 | AE33: 0 | AH33: 0 | AJ33: 138.7 | AL33: 17 | AN33: 155.7 | AO33: No
A34: Santa Clara Valley Transportation Authority | B34: San Jose | C34: CA | D34: 9013 | E34: 90013 | F34: Independent Public Agency or Authority of Transit Service | G34: Full Reporter | H34: 1664496 | I34: 642 | K34: 72.95 | M34: 7.07 | O34: 80.02 | P34: 0 | R34: 3.5 | T34: 5.1 | W34: 75 | Y34: 11 | AA34: 25 | AC34: 15 | AE34: 3 | AH34: 1.1 | AJ34: 33.1 | AL34: 214.7 | AN34: 248.9 | AO34: No
A35: Central Florida Regional Transportation Authority | B35: Orlando | C35: FL | D35: 4035 | E35: 40035 | F35: Independent Public Agency or Authority of Transit Service | G35: Full Reporter | H35: 1510516 | I35: 603 | K35: 0 | M35: 0 | O35: 0 | P35: 0 | R35: 0 | T35: 0 | W35: 0 | Y35: 0 | AA35: 0 | AC35: 0 | AE35: 0 | AH35: 5.5 | AJ35: 0 | AL35: 0 | AN35: 5.5 | AO35: No
A36: San Francisco Bay Area Rapid Transit District | B36: Oakland | C36: CA | D36: 9003 | E36: 90003 | F36: Independent Public Agency or Authority of Transit Service | G36: Full Reporter | H36: 3281212 | I36: 566 | K36: 139.09 | M36: 104.09 | O36: 243.18 | P36: 0 | R36: 38.19 | T36: 1.95 | W36: 302 | Y36: 13 | AA36: 104 | AC36: 9 | AE36: 0 | AH36: 0 | AJ36: 0 | AL36: 0 | AN36: 0 | AO36: No
A37: Pierce County Transportation Benefit Area Authority | B37: Tacoma | C37: WA | D37: 3 | E37: 3 | F37: Independent Public Agency or Authority of Transit Service | G37: Full Reporter | H37: 3059393 | I37: 531 | K37: 0 | M37: 0 | O37: 0 | P37: 0 | R37: 0 | T37: 0 | W37: 0 | Y37: 0 | AA37: 0 | AC37: 0 | AE37: 0 | AH37: 0 | AJ37: 16.9 | AL37: 0 | AN37: 16.9 | AO37: No
A38: City of Phoenix Public Transit Department , dba: Valley Metro | B38: Phoenix | C38: AZ | D38: 9032 | E38: 90032 | F38: City, County or Local Government Unit or Department of Transportation | G38: Full Reporter | H38: 3629114 | I38: 526 | K38: 0 | M38: 0 | O38: 0 | P38: 0 | R38: 0 | T38: 0 | W38: 0 | Y38: 0 | AA38: 0 | AC38: 0 | AE38: 0 | AH38: 0 | AJ38: 0 | AL38: 117.7 | AN38: 117.7 | AO38: No
A39: Bi-State Development Agency of the Missouri-Illinois Metropolitan District, dba: d.b.a. (St. Louis) Metro | B39: St. Louis | C39: MO | D39: 7006 | E39: 70006 | F39: Independent Public Agency or Authority of Transit Service | G39: Full Reporter | H39: 2150706 | I39: 493 | K39: 59.18 | M39: 32.45 | O39: 91.63 | P39: 0 | R39: 4.76 | T39: 1.6 | W39: 58 | Y39: 39 | AA39: 47 | AC39: 5 | AE39: 0 | AH39: 0 | AJ39: 0 | AL39: 0 | AN39: 0 | AO39: No
A40: The Greater Cleveland Regional Transit Authority | B40: Cleveland | C40: OH | D40: 5015 | E40: 50015 | F40: Independent Public Agency or Authority of Transit Service | G40: Full Reporter | H40: 1780673 | I40: 472 | K40: 43.27 | M40: 20.3 | O40: 63.57 | P40: 0 | R40: 9.64 | T40: 0.89 | W40: 79 | Y40: 25 | AA40: 109 | AC40: 1 | AE40: 0 | AH40: 8.7 | AJ40: 0 | AL40: 8.6 | AN40: 17.3 | AO40: No
A41: City of Charlotte North Carolina, dba: Charlotte Area Transit System | B41: Charlotte | C41: NC | D41: 4008 | E41: 40008 | F41: City, County or Local Government Unit or Department of Transportation | G41: Full Reporter | H41: 1249442 | I41: 404 | K41: 24.11 | M41: 15.81 | O41: 39.92 | P41: 0 | R41: 3.78 | T41: 0 | W41: 26 | Y41: 39 | AA41: 18 | AC41: 5 | AE41: 1 | AH41: 15.4 | AJ41: 28.8 | AL41: 0 | AN41: 44.2 | AO41: No
A42: Transportation District Commission of Hampton Roads, dba: Hampton Roads Transit | B42: Hampton | C42: VA | D42: 3083 | E42: 30083 | F42: Independent Public Agency or Authority of Transit Service | G42: Full Reporter | H42: 1439666 | I42: 397 | K42: 10.12 | M42: 4.34 | O42: 14.46 | P42: 0 | R42: 1.21 | T42: 0 | W42: 14 | Y42: 40 | AA42: 5 | AC42: 0 | AE42: 0 | AH42: 0 | AJ42: 0 | AL42: 72.8 | AN42: 72.8 | AO42: No
A43: Central Puget Sound Regional Transit Authority, dba: Sound Transit | B43: Seattle | C43: WA | D43: 40 | E43: 40 | F43: Independent Public Agency or Authority of Transit Service | G43: Full Reporter | H43: 3059393 | I43: 384 | K43: 121.05 | M43: 81.39 | O43: 202.44 | P43: 149.32 | R43: 7.25 | T43: 0.07 | W43: 21 | Y43: 114 | AA43: 45 | AC43: 10 | AE43: 0 | AH43: 2.9 | AJ43: 174.4 | AL43: 86.1 | AN43: 263.4 | AO43: No
A44: City of Los Angeles, dba: City of Los Angeles Department of Transportation | B44: Los Angeles | C44: CA | D44: 9147 | E44: 90147 | F44: City, County or Local Government Unit or Department of Transportation | G44: Full Reporter | H44: 12150996 | I44: 359 | K44: 0 | M44: 0 | O44: 0 | P44: 0 | R44: 0 | T44: 0 | W44: 0 | Y44: 0 | AA44: 0 | AC44: 0 | AE44: 0 | AH44: 0 | AJ44: 35.1 | AL44: 0 | AN44: 35.1 | AO44: No
A45: Niagara Frontier Transportation Authority | B45: Buffalo | C45: NY | D45: 2004 | E45: 20004 | F45: Independent Public Agency or Authority of Transit Service | G45: Full Reporter | H45: 935906 | I45: 358 | K45: 12 | M45: 0.8 | O45: 12.8 | P45: 0 | R45: 1 | T45: 0.84 | W45: 0 | Y45: 8 | AA45: 1 | AC45: 4 | AE45: 0 | AH45: 0 | AJ45: 0 | AL45: 0 | AN45: 0 | AO45: No
A46: Southwest Ohio Regional Transit Authority, dba: Metro / Access | B46: Cincinnati | C46: OH | D46: 5012 | E46: 50012 | F46: Independent Public Agency or Authority of Transit Service | G46: Full Reporter | H46: 1624827 | I46: 348 | K46: 3.6 | M46: 0 | O46: 3.6 | P46: 3.6 | R46: 0 | T46: 0 | W46: 0 | Y46: 42 | AA46: 0 | AC46: 0 | AE46: 0 | AH46: 0.1 | AJ46: 0 | AL46: 0 | AN46: 0.1 | AO46: No
A47: Pinellas Suncoast Transit Authority | B47: St. Petersburg | C47: FL | D47: 4027 | E47: 40027 | F47: Independent Public Agency or Authority of Transit Service | G47: Full Reporter | H47: 2441770 | I47: 345 | K47: 0 | M47: 0 | O47: 0 | P47: 0 | R47: 0 | T47: 0 | W47: 0 | Y47: 0 | AA47: 0 | AC47: 0 | AE47: 0 | AH47: 0 | AJ47: 0 | AL47: 1.1 | AN47: 1.1 | AO47: No
A48: City of Tucson | B48: Tucson | C48: AZ | D48: 9033 | E48: 90033 | F48: City, County or Local Government Unit or Department of Transportation | G48: Full Reporter | H48: 843168 | I48: 336 | K48: 4.09 | M48: 3.55 | O48: 7.64 | P48: 0 | R48: 0.16 | T48: 0 | W48: 10 | Y48: 42 | AA48: 2 | AC48: 1 | AE48: 0 | AH48: 0 | AJ48: 0 | AL48: 0 | AN48: 0 | AO48: No
A49: Greater Richmond Transit Company | B49: Richmond | C49: VA | D49: 3006 | E49: 30006 | F49: Other Publicly-Owned or Privately Chartered Corporation | G49: Full Reporter | H49: 953556 | I49: 330 | K49: 0 | M49: 0 | O49: 0 | P49: 0 | R49: 0 | T49: 0 | W49: 0 | Y49: 0 | AA49: 0 | AC49: 0 | AE49: 0 | AH49: 6.6 | AJ49: 0 | AL49: 0 | AN49: 6.6 | AO49: No
A50: Kansas City Area Transportation Authority | B50: Kansas City | C50: MO | D50: 7005 | E50: 70005 | F50: Independent Public Agency or Authority of Transit Service | G50: Full Reporter | H50: 1519417 | I50: 311 | K50: 0 | M50: 0 | O50: 0 | P50: 0 | R50: 0 | T50: 0 | W50: 0 | Y50: 0 | AA50: 0 | AC50: 0 | AE50: 0 | AH50: 12.1 | AJ50: 0 | AL50: 3 | AN50: 15.1 | AO50: No
A51: Port Authority Trans-Hudson Corporation | B51: Jersey City | C51: NJ | D51: 2098 | E51: 20098 | F51: Independent Public Agency or Authority of Transit Service | G51: Full Reporter | H51: 18351295 | I51: 304 | K51: 29.95 | M51: 18.56 | O51: 48.51 | P51: 0 | R51: 10 | T51: 1 | W51: 123 | Y51: 2 | AA51: 37 | AC51: 0 | AE51: 0 | AH51: 0 | AJ51: 0 | AL51: 0 | AN51: 0 | AO51: No
A52: Rhode Island Public Transit Authority | B52: Providence | C52: RI | D52: 1001 | E52: 10001 | F52: Independent Public Agency or Authority of Transit Service | G52: Full Reporter | H52: 1190956 | I52: 299 | K52: 0 | M52: 0 | O52: 0 | P52: 0 | R52: 0 | T52: 0 | W52: 0 | Y52: 0 | AA52: 0 | AC52: 0 | AE52: 0 | AH52: 0.8 | AJ52: 0 | AL52: 0 | AN52: 0.8 | AO52: No
A53: Foothill Transit | B53: West Covina | C53: CA | D53: 9146 | E53: 90146 | F53: Independent Public Agency or Authority of Transit Service | G53: Full Reporter | H53: 12150996 | I53: 296 | K53: 0 | M53: 0 | O53: 0 | P53: 0 | R53: 0 | T53: 0 | W53: 0 | Y53: 0 | AA53: 0 | AC53: 0 | AE53: 0 | AH53: 1.5 | AJ53: 0 | AL53: 62.3 | AN53: 63.8 | AO53: No
A54: Suffolk County , dba: Dept of Public Works - Transportation Division | B54: Yaphank | C54: NY | D54: 2072 | E54: 20072 | F54: City, County or Local Government Unit or Department of Transportation | G54: Full Reporter | H54: 18351295 | I54: 290 | K54: 0 | M54: 0 | O54: 0 | P54: 0 | R54: 0 | T54: 0 | W54: 0 | Y54: 0 | AA54: 0 | AC54: 0 | AE54: 0 | AH54: 0 | AJ54: 0 | AL54: 46.9 | AN54: 46.9 | AO54: No
A55: Regional Transportation Commission of Washoe County | B55: Reno | C55: NV | D55: 9001 | E55: 90001 | F55: Independent Public Agency or Authority of Transit Service | G55: Full Reporter | H55: 392141 | I55: 264 | K55: 0 | M55: 0 | O55: 0 | P55: 0 | R55: 0 | T55: 0 | W55: 0 | Y55: 0 | AA55: 0 | AC55: 0 | AE55: 0 | AH55: 0.5 | AJ55: 0 | AL55: 0 | AN55: 0.5 | AO55: No
A56: City of Madison | B56: Madison | C56: WI | D56: 5005 | E56: 50005 | F56: City, County or Local Government Unit or Department of Transportation | G56: Full Reporter | H56: 401661 | I56: 254 | K56: 0 | M56: 0 | O56: 0 | P56: 0 | R56: 0 | T56: 0 | W56: 0 | Y56: 0 | AA56: 0 | AC56: 0 | AE56: 0 | AH56: 12.5 | AJ56: 0 | AL56: 0 | AN56: 12.5 | AO56: No
A57: Jacksonville Transportation Authority | B57: Jacksonville | C57: FL | D57: 4040 | E57: 40040 | F57: Independent Public Agency or Authority of Transit Service | G57: Full Reporter | H57: 1065219 | I57: 253 | K57: 3.46 | M57: 1.71 | O57: 5.17 | P57: 0 | R57: 0.23 | T57: 0.42 | W57: 0 | Y57: 0 | AA57: 0 | AC57: 0 | AE57: 0 | AH57: 0 | AJ57: 0 | AL57: 0 | AN57: 0 | AO57: No
A58: Omnitrans | B58: San Bernardino | C58: CA | D58: 9029 | E58: 90029 | F58: Independent Public Agency or Authority of Transit Service | G58: Full Reporter | H58: 1932666 | I58: 250 | K58: 0 | M58: 0 | O58: 0 | P58: 0 | R58: 0 | T58: 0 | W58: 0 | Y58: 0 | AA58: 0 | AC58: 0 | AE58: 0 | AH58: 5.4 | AJ58: 0 | AL58: 0 | AN58: 5.4 | AO58: No
A59: Fairfax County, VA, dba: Fairfax Connector Bus System | B59: Fairfax | C59: VA | D59: 3068 | E59: 30068 | F59: City, County or Local Government Unit or Department of Transportation | G59: Full Reporter | H59: 4586770 | I59: 245 | K59: 0 | M59: 0 | O59: 0 | P59: 0 | R59: 0 | T59: 0 | W59: 0 | Y59: 0 | AA59: 0 | AC59: 0 | AE59: 0 | AH59: 0 | AJ59: 0 | AL59: 34.8 | AN59: 34.8 | AO59: No
A60: Lane Transit District | B60: Eugene | C60: OR | D60: 7 | E60: 7 | F60: Independent Public Agency or Authority of Transit Service | G60: Full Reporter | H60: 247421 | I60: 242 | K60: 0 | M60: 0 | O60: 0 | P60: 0 | R60: 0 | T60: 0 | W60: 0 | Y60: 0 | AA60: 0 | AC60: 0 | AE60: 0 | AH60: 15.4 | AJ60: 0 | AL60: 0 | AN60: 15.4 | AO60: No
A61: Connecticut Department of Transportation - CTTRANSIT - Hartford Division | B61: Hartford | C61: CT | D61: 1048 | E61: 10048 | F61: State Government Unit or Department of Transportation | G61: Full Reporter | H61: 924859 | I61: 236 | K61: 0 | M61: 0 | O61: 0 | P61: 0 | R61: 0 | T61: 0 | W61: 0 | Y61: 0 | AA61: 0 | AC61: 0 | AE61: 0 | AH61: 36.4 | AJ61: 28.8 | AL61: 0 | AN61: 65.2 | AO61: No
A62: North County Transit District | B62: Oceanside | C62: CA | D62: 9030 | E62: 90030 | F62: Independent Public Agency or Authority of Transit Service | G62: Full Reporter | H62: 2956746 | I62: 233 | K62: 78.17 | M62: 43.93 | O62: 122.1 | P62: 0 | R62: 10.01 | T62: 0.9 | W62: 104 | Y62: 68 | AA62: 24 | AC62: 0 | AE62: 0 | AH62: 0 | AJ62: 0 | AL62: 0 | AN62: 0 | AO62: No
A63: Sacramento Regional Transit District | B63: Sacramento | C63: CA | D63: 9019 | E63: 90019 | F63: Independent Public Agency or Authority of Transit Service | G63: Full Reporter | H63: 1723634 | I63: 232 | K63: 54 | M63: 28.9 | O63: 82.9 | P63: 0 | R63: 1 | T63: 4.09 | W63: 1 | Y63: 137 | AA63: 15 | AC63: 5 | AE63: 0 | AH63: 0 | AJ63: 0 | AL63: 0 | AN63: 0 | AO63: No
A64: Interurban Transit Partnership | B64: Grand Rapids | C64: MI | D64: 5033 | E64: 50033 | F64: Independent Public Agency or Authority of Transit Service | G64: Full Reporter | H64: 569935 | I64: 229 | K64: 0 | M64: 0 | O64: 0 | P64: 0 | R64: 0 | T64: 0 | W64: 0 | Y64: 0 | AA64: 0 | AC64: 0 | AE64: 0 | AH64: 19 | AJ64: 0 | AL64: 0 | AN64: 19 | AO64: No
A65: Academy Lines, Inc. | B65: Hoboken | C65: NJ | D65: 2122 | E65: 20122 | F65: Private-For-Profit Corporation | G65: Full Reporter | H65: 18351295 | I65: 225 | K65: 0 | M65: 0 | O65: 0 | P65: 0 | R65: 0 | T65: 0 | W65: 0 | Y65: 0 | AA65: 0 | AC65: 0 | AE65: 0 | AH65: 0 | AJ65: 0 | AL65: 2.9 | AN65: 2.9 | AO65: No
A66: Metropolitan Council | B66: St. Paul | C66: MN | D66: 5154 | E66: 50154 | F66: City, County or Local Government Unit or Department of Transportation | G66: Full Reporter | H66: 2650890 | I66: 218 | K66: 0 | M66: 0 | O66: 0 | P66: 0 | R66: 0 | T66: 0 | W66: 0 | Y66: 0 | AA66: 0 | AC66: 0 | AE66: 0 | AH66: 1.4 | AJ66: 57.1 | AL66: 17.6 | AN66: 76.1 | AO66: No
A67: Toledo Area Regional Transit Authority | B67: Toledo | C67: OH | D67: 5022 | E67: 50022 | F67: Independent Public Agency or Authority of Transit Service | G67: Full Reporter | H67: 507643 | I67: 207 | K67: 0 | M67: 0 | O67: 0 | P67: 0 | R67: 0 | T67: 0 | W67: 0 | Y67: 0 | AA67: 0 | AC67: 0 | AE67: 0 | AH67: 1 | AJ67: 0 | AL67: 0 | AN67: 1 | AO67: =IF(AF67&AD67&AB67&Z67&X67&L67&N67&Q67&S67&U67&AI67&AK67&AM67<>"","Yes","No") -> No
A68: Long Beach Transit | B68: Long Beach | C68: CA | D68: 9023 | E68: 90023 | F68: Other Publicly-Owned or Privately Chartered Corporation | G68: Full Reporter | H68: 12150996 | I68: 197 | K68: 0 | M68: 0 | O68: 0 | P68: 0 | R68: 0 | T68: 0 | W68: 0 | Y68: 0 | AA68: 0 | AC68: 0 | AE68: 0 | AH68: 0.5 | AJ68: 0 | AL68: 0 | AN68: 0.5 | AO68: No
A69: Southern California Regional Rail Authority, dba: Metrolink | B69: Los Angeles | C69: CA | D69: 9151 | E69: 90151 | F69: Independent Public Agency or Authority of Transit Service | G69: Full Reporter | H69: 12150996 | I69: 195 | K69: 365.03 | M69: 98.4 | O69: 463.43 | P69: 0 | R69: 238.3 | T69: 2.55 | W69: 553 | Y69: 458 | AA69: 0 | AC69: 9 | AE69: 0 | AH69: 0 | AJ69: 0 | AL69: 0 | AN69: 0 | AO69: No
A70: Hudson Transit Lines, Inc. | B70: Mahwah | C70: NJ | D70: 2126 | E70: 20126 | F70: Private-For-Profit Corporation | G70: Full Reporter | H70: 18351295 | I70: 184 | K70: 0 | M70: 0 | O70: 0 | P70: 0 | R70: 0 | T70: 0 | W70: 0 | Y70: 0 | AA70: 0 | AC70: 0 | AE70: 0 | AH70: 0 | AJ70: 0 | AL70: 2.9 | AN70: 2.9 | AO70: No
A71: Clark County Public Transportation Benefit Area Authority | B71: Vancouver | C71: WA | D71: 24 | E71: 24 | F71: Independent Public Agency or Authority of Transit Service | G71: Full Reporter | H71: 1849898 | I71: 180 | K71: 0 | M71: 0 | O71: 0 | P71: 0 | R71: 0 | T71: 0 | W71: 0 | Y71: 0 | AA71: 0 | AC71: 0 | AE71: 0 | AH71: 0 | AJ71: 0 | AL71: 3.4 | AN71: 3.4 | AO71: No
A72: Greater Dayton Regional Transit Authority | B72: Dayton | C72: OH | D72: 5017 | E72: 50017 | F72: Independent Public Agency or Authority of Transit Service | G72: Full Reporter | H72: 724091 | I72: 178 | K72: 0 | M72: 0 | O72: 0 | P72: 0 | R72: 0 | T72: 0 | W72: 0 | Y72: 0 | AA72: 0 | AC72: 0 | AE72: 0 | AH72: 125.7 | AJ72: 0 | AL72: 0 | AN72: 125.7 | AO72: No
A73: Hillsborough Area Regional Transit Authority | B73: Tampa | C73: FL | D73: 4041 | E73: 40041 | F73: Independent Public Agency or Authority of Transit Service | G73: Full Reporter | H73: 2441770 | I73: 172 | K73: 2.63 | M73: 0.83 | O73: 3.46 | P73: 0 | R73: 0.04 | T73: 0 | W73: 14 | Y73: 23 | AA73: 1 | AC73: 0 | AE73: 0 | AH73: 0 | AJ73: 0 | AL73: 1.1 | AN73: 1.1 | AO73: No
A74: City of Santa Monica, dba: Big Blue Bus | B74: Santa Monica | C74: CA | D74: 9008 | E74: 90008 | F74: City, County or Local Government Unit or Department of Transportation | G74: Full Reporter | H74: 12150996 | I74: 172 | K74: 0 | M74: 0 | O74: 0 | P74: 0 | R74: 0 | T74: 0 | W74: 0 | Y74: 0 | AA74: 0 | AC74: 0 | AE74: 0 | AH74: 0.6 | AJ74: 0 | AL74: 0 | AN74: 0.6 | AO74: No
A75: New Orleans Regional Transit Authority | B75: New Orleans | C75: LA | D75: 6032 | E75: 60032 | F75: Independent Public Agency or Authority of Transit Service | G75: Full Reporter | H75: 899703 | I75: 165 | K75: 33 | M75: 1 | O75: 34 | P75: 0 | R75: 5 | T75: 1 | W75: 4 | Y75: 266 | AA75: 18 | AC75: 1 | AE75: 1 | AH75: 0 | AJ75: 7 | AL75: 0 | AN75: 7 | AO75: No
A76: City of Memphis, dba: Memphis Area Transit Authority | B76: Memphis | C76: TN | D76: 4003 | E76: 40003 | F76: City, County or Local Government Unit or Department of Transportation | G76: Full Reporter | H76: 1060061 | I76: 145 | K76: 9.65 | M76: 0.37 | O76: 10.02 | P76: 0 | R76: 0.48 | T76: 0 | W76: 19 | Y76: 41 | AA76: 9 | AC76: 0 | AE76: 0 | AH76: 0 | AJ76: 0 | AL76: 0 | AN76: 0 | AO76: No
A77: Peninsula Corridor Joint Powers Board, dba: Caltrain | B77: San Carlos | C77: CA | D77: 9134 | E77: 90134 | F77: Independent Public Agency or Authority of Transit Service | G77: Full Reporter | H77: 3281212 | I77: 141 | K77: 89 | M77: 32.11 | O77: 121.11 | P77: 35.1 | R77: 20.1 | T77: 4.37 | W77: 134 | Y77: 54 | AA77: 60 | AC77: 1 | AE77: 0 | AH77: 0 | AJ77: 0 | AL77: 0 | AN77: 0 | AO77: No
A78: Minnesota Valley Transit Authority | B78: Burnsville | C78: MN | D78: 5222 | E78: 50519 | F78: Independent Public Agency or Authority of Transit Service | G78: Full Reporter | H78: 2650890 | I78: 140 | K78: 0 | M78: 0 | O78: 0 | P78: 0 | R78: 0 | T78: 0 | W78: 0 | Y78: 0 | AA78: 0 | AC78: 0 | AE78: 0 | AH78: 2.5 | AJ78: 43 | AL78: 45 | AN78: 90.5 | AO78: No
A79: Metropolitan Bus Authority | B79: San Juan | C79: PR | D79: 4086 | E79: 40086 | F79: Independent Public Agency or Authority of Transit Service | G79: Full Reporter | H79: 2148346 | I79: 124 | K79: 0 | M79: 0 | O79: 0 | P79: 0 | R79: 0 | T79: 0 | W79: 0 | Y79: 0 | AA79: 0 | AC79: 0 | AE79: 0 | AH79: 16.3 | AJ79: 0 | AL79: 0 | AN79: 16.3 | AO79: No
A80: Georgia State Road and Tollway Authority | B80: Atlanta | C80: GA | E80: 40264 | F80: State Government Unit or Department of Transportation | G80: Full Reporter | H80: 4515419 | I80: 121 | K80: 0 | M80: 0 | O80: 0 | P80: 0 | R80: 0 | T80: 0 | W80: 0 | Y80: 0 | AA80: 0 | AC80: 0 | AE80: 0 | AH80: 0 | AJ80: 91.2 | AL80: 0 | AN80: 91.2 | AO80: No
A81: City of Alexandria | B81: Alexandria | C81: VA | D81: 3071 | E81: 30071 | F81: City, County or Local Government Unit or Department of Transportation | G81: Full Reporter | H81: 4586770 | I81: 105 | K81: 0 | M81: 0 | O81: 0 | P81: 0 | R81: 0 | T81: 0 | W81: 0 | Y81: 0 | AA81: 0 | AC81: 0 | AE81: 0 | AH81: 0 | AJ81: 0 | AL81: 3.7 | AN81: 3.7 | AO81: No
A82: Denton County Transportation Authority | B82: Lewisville | C82: TX | D82: 6101 | E82: 60101 | F82: Independent Public Agency or Authority of Transit Service | G82: Full Reporter | H82: 366174 | I82: 104 | K82: 14.54 | M82: 10.8 | O82: 25.34 | P82: 0 | R82: 3.36 | T82: 0.52 | W82: 27 | Y82: 43 | AA82: 0 | AC82: 0 | AE82: 0 | AH82: 0 | AJ82: 0 | AL82: 0 | AN82: 0 | AO82: No
A83: Virginia Railway Express | B83: Alexandria | C83: VA | D83: 3073 | E83: 30073 | F83: Independent Public Agency or Authority of Transit Service | G83: Full Reporter | H83: 4586770 | I83: 99 | K83: 108.99 | M83: 80.51 | O83: 189.5 | P83: 189.5 | R83: 3.79 | T83: 0 | W83: 55 | Y83: 19 | AA83: 35 | AC83: 0 | AE83: 0 | AH83: 0 | AJ83: 0 | AL83: 0 | AN83: 0 | AO83: No
A84: Suburban Transit Corporation | B84: New Brunswick | C84: NJ | D84: 2128 | E84: 20128 | F84: Private-For-Profit Corporation | G84: Full Reporter | H84: 18351295 | I84: 98 | K84: 0 | M84: 0 | O84: 0 | P84: 0 | R84: 0 | T84: 0 | W84: 0 | Y84: 0 | AA84: 0 | AC84: 0 | AE84: 0 | AH84: 0 | AJ84: 0 | AL84: 2.9 | AN84: 2.9 | AO84: No
A85: Cobb County, dba: CobbLinc | B85: Marietta | C85: GA | D85: 4078 | E85: 40078 | F85: City, County or Local Government Unit or Department of Transportation | G85: Full Reporter | H85: 4515419 | I85: 97 | K85: 0 | M85: 0 | O85: 0 | P85: 0 | R85: 0 | T85: 0 | W85: 0 | Y85: 0 | AA85: 0 | AC85: 0 | AE85: 0 | AH85: 0 | AJ85: 0 | AL85: 19.5 | AN85: 19.5 | AO85: No
A86: Loudoun County, dba: Loudoun County Transit | B86: Leesburg | C86: VA | D86: 3081 | E86: 30081 | F86: City, County or Local Government Unit or Department of Transportation | G86: Full Reporter | H86: 4586770 | I86: 91 | K86: 0 | M86: 0 | O86: 0 | P86: 0 | R86: 0 | T86: 0 | W86: 0 | Y86: 0 | AA86: 0 | AC86: 0 | AE86: 0 | AH86: 0 | AJ86: 0 | AL86: 1.9 | AN86: 1.9 | AO86: No
A87: Westmoreland County , dba: Westmoreland County Transit Authority | B87: Greensburg | C87: PA | D87: 3044 | E87: 30044 | F87: City, County or Local Government Unit or Department of Transportation | G87: Full Reporter | H87: 1733853 | I87: 85 | K87: 0 | M87: 0 | O87: 0 | P87: 0 | R87: 0 | T87: 0 | W87: 0 | Y87: 0 | AA87: 0 | AC87: 0 | AE87: 0 | AH87: 13.6 | AJ87: 0 | AL87: 0 | AN87: 13.6 | AO87: No
A88: City of Torrance, dba: Torrance Transit System | B88: Torrance | C88: CA | D88: 9010 | E88: 90010 | F88: City, County or Local Government Unit or Department of Transportation | G88: Full Reporter | H88: 12150996 | I88: 84 | K88: 0 | M88: 0 | O88: 0 | P88: 0 | R88: 0 | T88: 0 | W88: 0 | Y88: 0 | AA88: 0 | AC88: 0 | AE88: 0 | AH88: 0 | AJ88: 0 | AL88: 0 | AN88: 0 | AO88: No
A89: The Eastern Contra Costa Transit Authority | B89: Antioch | C89: CA | D89: 9162 | E89: 90162 | F89: Independent Public Agency or Authority of Transit Service | G89: Full Reporter | H89: 277634 | I89: 78 | K89: 0 | M89: 0 | O89: 0 | P89: 0 | R89: 0 | T89: 0 | W89: 0 | Y89: 0 | AA89: 0 | AC89: 0 | AE89: 0 | AH89: 0 | AJ89: 0 | AL89: 19.4 | AN89: 19.4 | AO89: No
A90: Chattanooga Area Regional Transportation Authority | B90: Chattanooga | C90: TN | D90: 4001 | E90: 40001 | F90: City, County or Local Government Unit or Department of Transportation | G90: Full Reporter | H90: 381112 | I90: 77 | K90: 0.86 | M90: 0 | O90: 0.86 | P90: 0 | R90: 0 | T90: 0 | W90: 0 | Y90: 0 | AA90: 0 | AC90: 0 | AE90: 0 | AH90: 0 | AJ90: 0 | AL90: 0 | AN90: 0 | AO90: No
A91: Rockland Coaches, Inc. | B91: Westwood | C91: NJ | D91: 2149 | E91: 20149 | F91: Private-For-Profit Corporation | G91: Full Reporter | H91: 18351295 | I91: 75 | K91: 0 | M91: 0 | O91: 0 | P91: 0 | R91: 0 | T91: 0 | W91: 0 | Y91: 0 | AA91: 0 | AC91: 0 | AE91: 0 | AH91: 0.5 | AJ91: 0 | AL91: 2.9 | AN91: 3.4 | AO91: No
A92: Gwinnett County Board of Commissioners, dba: Gwinnett County Transit | B92: Lawrenceville | C92: GA | D92: 4138 | E92: 40138 | F92: City, County or Local Government Unit or Department of Transportation | G92: Full Reporter | H92: 4515419 | I92: 74 | K92: 0 | M92: 0 | O92: 0 | P92: 0 | R92: 0 | T92: 0 | W92: 0 | Y92: 0 | AA92: 0 | AC92: 0 | AE92: 0 | AH92: 0 | AJ92: 59.2 | AL92: 0 | AN92: 59.2 | AO92: No
A93: Antelope Valley Transit Authority | B93: Lancaster | C93: CA | D93: 9121 | E93: 90121 | F93: Independent Public Agency or Authority of Transit Service | G93: Full Reporter | H93: 341219 | I93: 74 | K93: 0 | M93: 0 | O93: 0 | P93: 0 | R93: 0 | T93: 0 | W93: 0 | Y93: 0 | AA93: 0 | AC93: 0 | AE93: 0 | AH93: 0 | AJ93: 0 | AL93: 92.5 | AN93: 92.5 | AO93: No
A94: Central Arkansas Transit Authority, dba: Rock Region METRO | B94: North Little Rock | C94: AR | D94: 6033 | E94: 60033 | F94: Independent Public Agency or Authority of Transit Service | G94: Full Reporter | H94: 431388 | I94: 73 | K94: 2.99 | M94: 0.35 | O94: 3.34 | P94: 0 | R94: 0.16 | T94: 0 | W94: 17 | Y94: 25 | AA94: 1 | AC94: 0 | AE94: 0 | AH94: 0 | AJ94: 0 | AL94: 0 | AN94: 0 | AO94: No
A95: Rio Metro Regional Transit District | B95: Albuquerque | C95: NM | D95: 6111 | E95: 60111 | F95: Independent Public Agency or Authority of Transit Service | G95: Full Reporter | H95: 741318 | I95: 73 | K95: 80.24 | M95: 20.16 | O95: 100.4 | P95: 0 | R95: 12.01 | T95: 2.67 | W95: 90 | Y95: 95 | AA95: 6 | AC95: 0 | AE95: 0 | AH95: 0 | AJ95: 0 | AL95: 0 | AN95: 0 | AO95: No
A96: Port Authority Transit Corporation | B96: Lindenwold | C96: NJ | D96: 2075 | E96: 20075 | F96: Independent Public Agency or Authority of Transit Service | G96: Full Reporter | H96: 5441567 | I96: 72 | K96: 22 | M96: 11 | O96: 33 | P96: 0 | R96: 5.4 | T96: 0 | W96: 78 | Y96: 5 | AA96: 6 | AC96: 6 | AE96: 0 | AH96: 0 | AJ96: 0 | AL96: 0 | AN96: 0 | AO96: No
A97: Northern Indiana Commuter Transportation District | B97: Chesterton | C97: IN | D97: 5104 | E97: 50104 | F97: Independent Public Agency or Authority of Transit Service | G97: Full Reporter | H97: 8608208 | I97: 70 | K97: 105.1 | M97: 21.9 | O97: 127 | P97: 0 | R97: 3.4 | T97: 1.74 | W97: 86 | Y97: 138 | AA97: 10 | AC97: 0 | AE97: 0 | AH97: 0 | AJ97: 0 | AL97: 0 | AN97: 0 | AO97: No
A98: South Florida Regional Transportation Authority | B98: Pompano Beach | C98: FL | D98: 4077 | E98: 40077 | F98: Independent Public Agency or Authority of Transit Service | G98: Full Reporter | H98: 5502379 | I98: 65 | K98: 141.3 | M98: 0 | O98: 141.3 | P98: 0 | R98: 8.2 | T98: 0.25 | W98: 175 | Y98: 0 | AA98: 0 | AC98: 0 | AE98: 0 | AH98: 0 | AJ98: 0 | AL98: 0 | AN98: 0 | AO98: No
A99: SouthWest Transit | B99: Eden Prairie | C99: MN | D99: 5221 | E99: 50518 | F99: Independent Public Agency or Authority of Transit Service | G99: Full Reporter | H99: 2650890 | I99: 64 | K99: 0 | M99: 0 | O99: 0 | P99: 0 | R99: 0 | T99: 0 | W99: 0 | Y99: 0 | AA99: 0 | AC99: 0 | AE99: 0 | AH99: 2.5 | AJ99: 22.8 | AL99: 14.5 | AN99: 39.8 | AO99: No
A100: City of Kenosha, dba: Kenosha Area Transit | B100: Kenosha | C100: WI | D100: 5003 | E100: 50003 | F100: City, County or Local Government Unit or Department of Transportation | G100: Full Reporter | H100: 124064 | I100: 58 | K100: 1.45 | M100: 0.25 | O100: 1.7 | P100: 0 | R100: 0.2 | T100: 0 | W100: 4 | Y100: 14 | AA100: 0 | AC100: 0 | AE100: 0 | AH100: 0 | AJ100: 0 | AL100: 0 | AN100: 0 | AO100: No
A101: DDOT - Progressive Transportation Services Administration | B101: Washington | C101: DC | D101: 3112 | E101: 30112 | F101: State Government Unit or Department of Transportation | G101: Full Reporter | H101: 4586770 | I101: 57 | K101: 4.9 | M101: 0.7 | O101: 5.6 | P101: 0 | R101: 0 | T101: 0.3 | W101: 2 | Y101: 31 | AA101: 2 | AC101: 0 | AE101: 0 | AH101: 0 | AJ101: 0 | AL101: 0 | AN101: 0 | AO101: No
A102: DeCamp Bus Lines | B102: Montclair | C102: NJ | D102: 2161 | E102: 20161 | F102: Private-For-Profit Corporation | G102: Full Reporter | H102: 18351295 | I102: 57 | K102: 0 | M102: 0 | O102: 0 | P102: 0 | R102: 0 | T102: 0 | W102: 0 | Y102: 0 | AA102: 0 | AC102: 0 | AE102: 0 | AH102: 0 | AJ102: 2.9 | AL102: 0 | AN102: 2.9 | AO102: No
A103: Alternativa de Transporte Integrado -ATI | B103: San Juan | C103: PR | D103: 4094 | E103: 40094 | F103: State Government Unit or Department of Transportation | G103: Full Reporter | H103: 2148346 | I103: 57 | K103: 11.63 | M103: 8.98 | O103: 20.61 | P103: 0 | R103: 4.32 | T103: 0.34 | W103: 33 | Y103: 0 | AA103: 2 | AC103: 7 | AE103: 0 | AH103: 15.3 | AJ103: 0 | AL103: 0 | AN103: 15.3 | AO103: No
A104: Regional Transportation Authority | B104: Nashville | C104: TN | D104: 4159 | E104: 40159 | F104: Independent Public Agency or Authority of Transit Service | G104: Full Reporter | H104: 969587 | I104: 57 | K104: 25.53 | M104: 5.67 | O104: 31.2 | P104: 0 | R104: 0.7 | T104: 4.3 | W104: 25 | Y104: 48 | AA104: 0 | AC104: 0 | AE104: 0 | AH104: 0 | AJ104: 0 | AL104: 0 | AN104: 0 | AO104: No
A105: Lakeland Bus Lines, Inc. | B105: Dover | C105: NJ | D105: 2163 | E105: 20163 | F105: Private-For-Profit Corporation | G105: Full Reporter | H105: 18351295 | I105: 55 | K105: 0 | M105: 0 | O105: 0 | P105: 0 | R105: 0 | T105: 0 | W105: 0 | Y105: 0 | AA105: 0 | AC105: 0 | AE105: 0 | AH105: 0 | AJ105: 0 | AL105: 2.9 | AN105: 2.9 | AO105: No
A106: Cambria County Transit Authority | B106: Johnstown | C106: PA | D106: 3012 | E106: 30012 | F106: Independent Public Agency or Authority of Transit Service | G106: Full Reporter | H106: 69014 | I106: 53 | K106: 0.34 | M106: 0 | O106: 0.34 | P106: 0 | R106: 0 | T106: 0 | W106: 0 | Y106: 0 | AA106: 0 | AC106: 0 | AE106: 0 | AH106: 0 | AJ106: 0 | AL106: 0 | AN106: 0 | AO106: No
A107: Trans-Bridge Lines, Inc. | B107: Bethlehem | C107: PA | D107: 2169 | E107: 20169 | F107: Private-For-Profit Corporation | G107: Full Reporter | H107: 18351295 | I107: 52 | K107: 0 | M107: 0 | O107: 0 | P107: 0 | R107: 0 | T107: 0 | W107: 0 | Y107: 0 | AA107: 0 | AC107: 0 | AE107: 0 | AH107: 0 | AJ107: 2.9 | AL107: 235 | AN107: 237.9 | AO107: No
A108: City of Fort Collins, dba: Transfort | B108: Fort Collins | C108: CO | D108: 8011 | E108: 80011 | F108: City, County or Local Government Unit or Department of Transportation | G108: Full Reporter | H108: 264465 | I108: 52 | K108: 0 | M108: 0 | O108: 0 | P108: 0 | R108: 0 | T108: 0 | W108: 0 | Y108: 0 | AA108: 0 | AC108: 0 | AE108: 0 | AH108: 5.9 | AJ108: 0 | AL108: 0 | AN108: 5.9 | AO108: No
A109: City of Gardena, dba: GTrans | B109: Gardena | C109: CA | D109: 9042 | E109: 90042 | F109: City, County or Local Government Unit or Department of Transportation | G109: Full Reporter | H109: 12150996 | I109: 49 | K109: 0 | M109: 0 | O109: 0 | P109: 0 | R109: 0 | T109: 0 | W109: 0 | Y109: 0 | AA109: 0 | AC109: 0 | AE109: 0 | AH109: 0 | AJ109: 0 | AL109: 0 | AN109: 0 | AO109: No
A110: Jefferson Parish, dba: Jefferson Transit | B110: Gretna | C110: LA | D110: 6088 | E110: 60088 | F110: City, County or Local Government Unit or Department of Transportation | G110: Full Reporter | H110: 899703 | I110: 46 | K110: 0 | M110: 0 | O110: 0 | P110: 0 | R110: 0 | T110: 0 | W110: 0 | Y110: 0 | AA110: 0 | AC110: 0 | AE110: 0 | AH110: 0 | AJ110: 0 | AL110: 7 | AN110: 7 | AO110: No
A111: Fort Bend County, Texas, dba: Fort Bend County Public Transportation | B111: Sugar Land | C111: TX | D111: 6103 | E111: 60103 | F111: City, County or Local Government Unit or Department of Transportation | G111: Full Reporter | H111: 4944332 | I111: 44 | K111: 0 | M111: 0 | O111: 0 | P111: 0 | R111: 0 | T111: 0 | W111: 0 | Y111: 0 | AA111: 0 | AC111: 0 | AE111: 0 | AH111: 0 | AJ111: 0 | AL111: 1.4 | AN111: 1.4 | AO111: No
A112: Staten Island Rapid Transit Operating Authority, dba: MTA Staten Island Railway | B112: Staten Island | C112: NY | D112: 2099 | E112: 20099 | F112: Independent Public Agency or Authority of Transit Service | G112: Full Reporter | H112: 18351295 | I112: 44 | K112: 16.2 | M112: 12.5 | O112: 28.7 | P112: 0 | R112: 3 | T112: 0 | W112: 17 | Y112: 0 | AA112: 33 | AC112: 4 | AE112: 0 | AH112: 0 | AJ112: 0 | AL112: 0 | AN112: 0 | AO112: No
A113: Connecticut Department of Transportation | B113: Newington | C113: CT | D113: 1102 | E113: 10102 | F113: State Government Unit or Department of Transportation | G113: Full Reporter | H113: 924859 | I113: 43 | K113: 0 | M113: 0 | O113: 0 | P113: 0 | R113: 0 | T113: 0 | W113: 0 | Y113: 0 | AA113: 0 | AC113: 0 | AE113: 0 | AH113: 0 | AJ113: 23.6 | AL113: 0 | AN113: 23.6 | AO113: No
A114: West Virginia University - Morgantown Personal Rapid Transit | B114: Morgantown | C114: WV | D114: 3107 | E114: 30107 | F114: University | G114: Full Reporter | H114: 70350 | I114: 43 | K114: 0 | M114: 0 | O114: 0 | P114: 0 | R114: 0 | T114: 0 | W114: 0 | Y114: 0 | AA114: 0 | AC114: 0 | AE114: 0 | AH114: 0 | AJ114: 0 | AL114: 0 | AN114: 0 | AO114: No
A115: City of Waukesha , dba: Waukesha Metro Transit | B115: Waukesha | C115: WI | D115: 5096 | E115: 50096 | F115: City, County or Local Government Unit or Department of Transportation | G115: Full Reporter | H115: 1376476 | I115: 41 | K115: 0 | M115: 0 | O115: 0 | P115: 0 | R115: 0 | T115: 0 | W115: 0 | Y115: 0 | AA115: 0 | AC115: 0 | AE115: 0 | AH115: 10.7 | AJ115: 0 | AL115: 0 | AN115: 10.7 | AO115: No
A116: Pennsylvania Department of Transportation | B116: Harrisburg | C116: PA | D116: 3057 | E116: 30057 | F116: State Government Unit or Department of Transportation | G116: Full Reporter | H116: 5441567 | I116: 40 | K116: 0 | M116: 0 | O116: 0 | P116: 0 | R116: 0 | T116: 0 | W116: 0 | Y116: 0 | AA116: 0 | AC116: 0 | AE116: 0 | AH116: 0 | AJ116: 0 | AL116: 0 | AN116: 0 | AO116: No
A117: Valley Metro Rail, Inc. | B117: Phoenix | C117: AZ | D117: 9209 | E117: 90209 | F117: Other Publicly-Owned or Privately Chartered Corporation | G117: Full Reporter | H117: 3629114 | I117: 38 | K117: 51 | M117: 0.96 | O117: 51.96 | P117: 0 | R117: 3.64 | T117: 0.15 | W117: 21 | Y117: 192 | AA117: 33 | AC117: 1 | AE117: 0 | AH117: 0 | AJ117: 0 | AL117: 0 | AN117: 0 | AO117: No
A118: City of Plymouth | B118: City of Plymouth | C118: MN | D118: 5219 | E118: 50516 | F118: City, County or Local Government Unit or Department of Transportation | G118: Full Reporter | H118: 2650890 | I118: 37 | K118: 0 | M118: 0 | O118: 0 | P118: 0 | R118: 0 | T118: 0 | W118: 0 | Y118: 0 | AA118: 0 | AC118: 0 | AE118: 0 | AH118: 2.2 | AJ118: 29.3 | AL118: 0 | AN118: 31.5 | AO118: No
A119: Alaska Railroad Corporation | B119: Anchorage | C119: AK | D119: 41 | E119: 41 | F119: State Government Unit or Department of Transportation | G119: Full Reporter | H119: 251243 | I119: 37 | K119: 306.84 | M119: 191.42 | O119: 498.26 | P119: 0 | R119: 76.27 | T119: 9.08 | W119: 541 | Y119: 147 | AA119: 23 | AC119: 3 | AE119: 0 | AH119: 0 | AJ119: 0 | AL119: 0 | AN119: 0 | AO119: No
A120: Altamont Corridor Express | B120: Stockton | C120: CA | D120: 9182 | E120: 90182 | F120: Independent Public Agency or Authority of Transit Service | G120: Full Reporter | H120: 370583 | I120: 34 | K120: 142.4 | M120: 0 | O120: 142.4 | P120: 142.4 | R120: 0 | T120: 0 | W120: 0 | Y120: 175 | AA120: 0 | AC120: 0 | AE120: 0 | AH120: 0 | AJ120: 0 | AL120: 0 | AN120: 0 | AO120: No
A121: Beaver County Transit Authority | B121: Rochester | C121: PA | D121: 3023 | E121: 30023 | F121: Independent Public Agency or Authority of Transit Service | G121: Full Reporter | H121: 1733853 | I121: 34 | K121: 0 | M121: 0 | O121: 0 | P121: 0 | R121: 0 | T121: 0 | W121: 0 | Y121: 0 | AA121: 0 | AC121: 0 | AE121: 0 | AH121: 10.1 | AJ121: 0 | AL121: 0 | AN121: 10.1 | AO121: No
A122: Monsey New Square Trails Corporation | B122: Spring Valley | C122: NY | D122: 2135 | E122: 20135 | F122: Private-For-Profit Corporation | G122: Full Reporter | H122: 18351295 | I122: 32 | K122: 0 | M122: 0 | O122: 0 | P122: 0 | R122: 0 | T122: 0 | W122: 0 | Y122: 0 | AA122: 0 | AC122: 0 | AE122: 0 | AH122: 0 | AJ122: 0 | AL122: 2.9 | AN122: 2.9 | AO122: No
A123: County of Fayette, dba: Fayette Area Coordinated Transportation | B123: Lemont Furnace | C123: PA | D123: 3087 | E123: 30087 | F123: City, County or Local Government Unit or Department of Transportation | G123: Full Reporter | H123: 51370 | I123: 31 | K123: 0 | M123: 0 | O123: 0 | P123: 0 | R123: 0 | T123: 0 | W123: 0 | Y123: 0 | AA123: 0 | AC123: 0 | AE123: 0 | AH123: 1.1 | AJ123: 0 | AL123: 0 | AN123: 1.1 | AO123: No
A124: Adirondack Transit Lines, Inc, | B124: Hurley | C124: NY | D124: 2177 | E124: 20177 | F124: Private-For-Profit Corporation | G124: Full Reporter | H124: 18351295 | I124: 26 | K124: 0 | M124: 0 | O124: 0 | P124: 0 | R124: 0 | T124: 0 | W124: 0 | Y124: 0 | AA124: 0 | AC124: 0 | AE124: 0 | AH124: 0 | AJ124: 2.9 | AL124: 0 | AN124: 2.9 | AO124: No
A125: University of Minnesota Transit | B125: Minneapolis | C125: MN | D125: 5218 | E125: 50515 | F125: University | G125: Full Reporter | H125: 2650890 | I125: 25 | K125: 0 | M125: 0 | O125: 0 | P125: 0 | R125: 0 | T125: 0 | W125: 0 | Y125: 0 | AA125: 0 | AC125: 0 | AE125: 0 | AH125: 5.2 | AJ125: 0 | AL125: 0 | AN125: 5.2 | AO125: No
A126: Connecticut Department of Transportation - CTTransit New Britain -Dattco. | B126: New Britain | C126: CT | D126: 1045 | E126: 10045 | F126: Private Provider Reporting on Behalf of a Public Entity | G126: Full Reporter | H126: 924859 | I126: 23 | K126: 0 | M126: 0 | O126: 0 | P126: 0 | R126: 0 | T126: 0 | W126: 0 | Y126: 0 | AA126: 0 | AC126: 0 | AE126: 0 | AH126: 18.2 | AJ126: 0 | AL126: 0 | AN126: 18.2 | AO126: No
A127: Mid Mon Valley Transit Authority | B127: Charleroi | C127: PA | D127: 3061 | E127: 30061 | F127: Independent Public Agency or Authority of Transit Service | G127: Full Reporter | H127: 66086 | I127: 23 | K127: 0 | M127: 0 | O127: 0 | P127: 0 | R127: 0 | T127: 0 | W127: 0 | Y127: 0 | AA127: 0 | AC127: 0 | AE127: 0 | AH127: 7.8 | AJ127: 0 | AL127: 0 | AN127: 7.8 | AO127: No
A128: Northern New England Passenger Rail Authority | B128: Portland | C128: ME | D128: 1115 | E128: 10115 | F128: Independent Public Agency or Authority of Transit Service | G128: Full Reporter | H128: 203914 | I128: 21 | K128: 150 | M128: 45 | O128: 195 | P128: 195 | R128: 2.7 | T128: 0 | W128: 0 | Y128: 103 | AA128: 0 | AC128: 0 | AE128: 0 | AH128: 0 | AJ128: 0 | AL128: 0 | AN128: 0 | AO128: No
A129: City of Baltimore | B129: Baltimore | C129: MD | E129: 30201 | F129: City, County or Local Government Unit or Department of Transportation | G129: Full Reporter | H129: 2203663 | I129: 19 | K129: 0 | M129: 0 | O129: 0 | P129: 0 | R129: 0 | T129: 0 | W129: 0 | Y129: 0 | AA129: 0 | AC129: 0 | AE129: 0 | AH129: 1.4 | AJ129: 0 | AL129: 0 | AN129: 1.4 | AO129: No
A130: Central Florida Commuter Rail | B130: Sanford | C130: FL | D130: 4232 | E130: 40232 | F130: State Government Unit or Department of Transportation | G130: Full Reporter | H130: 1510516 | I130: 17 | K130: 39.5 | M130: 22.6 | O130: 62.1 | P130: 0 | R130: 2.9 | T130: 0.3 | W130: 45 | Y130: 94 | AA130: 16 | AC130: 0 | AE130: 0 | AH130: 0 | AJ130: 0 | AL130: 0 | AN130: 0 | AO130: No
A131: City of Portland | B131: Portland | C131: OR | D131: 58 | E131: 58 | F131: City, County or Local Government Unit or Department of Transportation | G131: Full Reporter | H131: 1849898 | I131: 16 | K131: 10.5 | M131: 1.8 | O131: 12.3 | P131: 1.9 | R131: 0.3 | T131: 0 | W131: 23 | Y131: 15 | AA131: 3 | AC131: 6 | AE131: 0 | AH131: 0 | AJ131: 0 | AL131: 0 | AN131: 0 | AO131: =IF(AF131&AD131&AB131&Z131&X131&L131&N131&Q131&S131&U131&AI131&AK131&AM131<>"","Yes","No") -> No
A132: Sonoma-Marin Area Rail Transit District | B132: Petaluma | C132: CA | E132: 90299 | F132: Independent Public Agency or Authority of Transit Service | G132: Full Reporter | H132: 308231 | I132: 11 | K132: 37.3 | M132: 11.66 | O132: 48.96 | P132: 0 | R132: 1.17 | T132: 0 | W132: 43 | Y132: 73 | AA132: 0 | AC132: 0 | AE132: 0 | AH132: 0 | AJ132: 0 | AL132: 0 | AN132: 0 | AO132: No
A133: Detroit Transportation Corporation | B133: Detroit | C133: MI | D133: 5141 | E133: 50141 | F133: Independent Public Agency or Authority of Transit Service | G133: Full Reporter | H133: 3734090 | I133: 10 | K133: 2.42 | M133: 0.48 | O133: 2.9 | P133: 0 | R133: 0.27 | T133: 0 | W133: 9 | Y133: 0 | AA133: 0 | AC133: 0 | AE133: 0 | AH133: 0 | AJ133: 0 | AL133: 0 | AN133: 0 | AO133: No
A134: City of Seattle, dba: Seattle Center Monorail | B134: Seattle | C134: WA | D134: 23 | E134: 23 | F134: City, County or Local Government Unit or Department of Transportation | G134: Full Reporter | H134: 3059393 | I134: 8 | K134: 1.3 | M134: 0.5 | O134: 1.8 | P134: 0 | R134: 0 | T134: 0 | W134: 0 | Y134: 0 | AA134: 0 | AC134: 0 | AE134: 0 | AH134: 0 | AJ134: 0 | AL134: 0 | AN134: 0 | AO134: No
A135: M-1 Rail, dba: QLINE Detroit | B135: Detroit | C135: MI | D135: 5213 | E135: 50213 | F135: Private-Non-Profit Corporation | G135: Full Reporter | H135: 3734090 | I135: 5 | K135: 6.51 | M135: 0.29 | O135: 6.8 | P135: 0 | R135: 0.11 | T135: 0 | W135: 0 | Y135: 40 | AA135: 2 | AC135: 0 | AE135: 0 | AH135: 0 | AJ135: 0 | AL135: 0 | AN135: 0 | AO135: No
A136: Kansas City, City of Missouri, dba: Kansas City Streetcar | B136: Kansas City | C136: MO | E136: 70271 | F136: City, County or Local Government Unit or Department of Transportation | G136: Full Reporter | H136: 1519417 | I136: 4 | K136: 3.65 | M136: 0.25 | O136: 3.9 | P136: 0 | R136: 0.5 | T136: 0 | W136: 1 | Y136: 0 | AA136: 0 | AC136: 0 | AE136: 0 | AH136: 0 | AJ136: 0 | AL136: 0 | AN136: 0 | AO136: No
A137: City of Atlanta, dba: Atlanta Streetcar - Department of Public Works | B137: Atlanta | C137: GA | D137: 4230 | E137: 40230 | F137: City, County or Local Government Unit or Department of Transportation | G137: Full Reporter | H137: 4515419 | I137: 3 | K137: 2.13 | M137: 0.56 | O137: 2.69 | P137: 0 | R137: 0.1 | T137: 0 | W137: 8 | Y137: 33 | AA137: 0 | AC137: 0 | AE137: 0 | AH137: 0 | AJ137: 0 | AL137: 0 | AN137: 0 | AO137: No
A138: McKinney Avenue Transit Authority | B138: Dallas | C138: TX | D138: 6133 | E138: 60133 | F138: Private-Non-Profit Corporation | G138: Full Reporter | H138: 5121892 | I138: 3 | K138: 4.03 | M138: 0.5 | O138: 4.53 | P138: 0 | R138: 0.37 | T138: 0 | W138: 1 | Y138: 55 | AA138: 6 | AC138: 0 | AE138: 0 | AH138: 0 | AJ138: 0 | AL138: 0 | AN138: 0 | AO138: No
A139: City of Milwaukee | B139: Milwaukee | C139: WI | E139: 55312 | F139: City, County or Local Government Unit or Department of Transportation | G139: Full Reporter | H139: 1376476 | I139: 3 | K139: 3.4 | M139: 0.5 | O139: 3.9 | P139: 0 | R139: 0.24 | T139: 0 | W139: 11 | Y139: 48 | AA139: 0 | AC139: 0 | AE139: 0 | AH139: 0 | AJ139: 0 | AL139: 0 | AN139: 0 | AO139: No
A140: Loop Trolley Transportation Development District | B140: St. Louis | C140: MO | D140: 7057 | E140: 70057 | F140: Independent Public Agency or Authority of Transit Service | G140: Reduced Asset Reporter | H140: 2150706 | I140: 0 | K140: 2.75 | M140: 0.2 | O140: 2.95 | P140: 0 | R140: 0.15 | T140: 0.4 | W140: 8 | Y140: 0 | AA140: 0 | AC140: 0 | AE140: 0 | AH140: 0 | AJ140: 0 | AL140: 0 | AN140: 0 | AO140: No

Sheet Summary Tables
A1: To bring up the accessible control panel, press ctrl + a. Some screen reading functionality will not work while the sheet is protected. To unprotect the sheet press alt h o p and enter the password ntd. | E1: National Totals | F1: At Grade: Restricted Right-of-Way | G1: Street Running | H1: Elevated on Structure | I1: Elevated on Fill | J1: Open Cut | K1: Subway | L1: Subway | M1: At Grade: Restricted Right-of-Way | N1: Street Running | O1: Total Crossings | Q1: Permanent Busway | R1: Permanent HOV | S1: Part-Time Busway or HOV | T1: Total Roadway Miles
F2: Miles of Track | L2: Number of Elements | Q2: Miles of Roadway | X2: =IF(X5=1,0,1) -> 0
E3: VOMS | F3: Tangent - Revenue Service | G3: Curve - Revenue Service | H3: Total Revenue Service | I3: Revenue Track - No Capital Replacement Responsibility | J3: Non-Revenue Service | K3: Track Under Performance Restriction | L3: Single Turnouts | M3: Grade Crossings | N3: Single Crossovers | O3: Double Diamond Crossovers | P3: Half Grand Unions | Q3: Exclusive Fixed Guideway | R3: Exclusive High-Intensity Busway | S3: Controlled Access High Intensity Busway | T3: Total Roadway Miles | X3: Include questionable data
E4: =IF($X$2,SUMIFS('Track by Mode'!L:L,'Track by Mode'!AJ:AJ,"=No")+SUMIFS('Roadway by Mode'!L:L,'Roadway by Mode'!V:V,"=No"),SUM('Track by Mode'!L:L)+SUM('Roadway by Mode'!L:L)) -> 69221 | F4: =IF($X$2,SUMIFS('Track by Mode'!N:N,'Track by Mode'!$AJ:$AJ,"=No"),SUM('Track by Mode'!N:N)) -> 8664.04 | G4: =IF($X$2,SUMIFS('Track by Mode'!P:P,'Track by Mode'!$AJ:$AJ,"=No"),SUM('Track by Mode'!P:P)) -> 2801.05 | H4: =IF($X$2,SUMIFS('Track by Mode'!R:R,'Track by Mode'!$AJ:$AJ,"=No"),SUM('Track by Mode'!R:R)) -> 11465.09 | I4: =IF($X$2,SUMIFS('Track by Mode'!S:S,'Track by Mode'!$AJ:$AJ,"=No"),SUM('Track by Mode'!S:S)) -> 1643.83 | J4: =IF($X$2,SUMIFS('Track by Mode'!U:U,'Track by Mode'!$AJ:$AJ,"=No"),SUM('Track by Mode'!U:U)) -> 1621.05 | K4: =IF($X$2,SUMIFS('Track by Mode'!W:W,'Track by Mode'!$AJ:$AJ,"=No"),SUM('Track by Mode'!W:W)) -> 596.51 | L4: =IF($X$2,SUMIFS('Track by Mode'!Z:Z,'Track by Mode'!$AJ:$AJ,"=No"),SUM('Track by Mode'!Z:Z)) -> 10546 | M4: =IF($X$2,SUMIFS('Track by Mode'!AB:AB,'Track by Mode'!$AJ:$AJ,"=No"),SUM('Track by Mode'!AB:AB)) -> 6585 | N4: =IF($X$2,SUMIFS('Track by Mode'!AD:AD,'Track by Mode'!$AJ:$AJ,"=No"),SUM('Track by Mode'!AD:AD)) -> 4244 | O4: =IF($X$2,SUMIFS('Track by Mode'!AF:AF,'Track by Mode'!$AJ:$AJ,"=No"),SUM('Track by Mode'!AF:AF)) -> 534 | P4: =IF($X$2,SUMIFS('Track by Mode'!AH:AH,'Track by Mode'!$AJ:$AJ,"=No"),SUM('Track by Mode'!AH:AH)) -> 36 | Q4: =IF($X$2,SUMIFS('Roadway by Mode'!N:N,'Roadway by Mode'!$V:$V,"=No"),SUM('Roadway by Mode'!N:N)) -> 1104.7 | R4: =IF($X$2,SUMIFS('Roadway by Mode'!P:P,'Roadway by Mode'!$V:$V,"=No"),SUM('Roadway by Mode'!P:P)) -> 1474.9 | S4: =IF($X$2,SUMIFS('Roadway by Mode'!R:R,'Roadway by Mode'!$V:$V,"=No"),SUM('Roadway by Mode'!R:R)) -> 2284.7 | T4: =IF($X$2,SUMIFS('Roadway by Mode'!T:T,'Roadway by Mode'!$V:$V,"=No"),SUM('Roadway by Mode'!T:T)) -> 4864.3 | X4: Exclude questionable data
E5: =IFERROR(F5&CHAR(10)&G5&CHAR(10)&H5&CHAR(10)&I5&CHAR(10)&J5&CHAR(10)&K5,"") -> At Grade: Restricted Right-of-Way: 32% Street Running: 10% Elevated on Structure: 43% Elevated on Fill: 6% Open Cut: 6% Subway: 2% | F5: =F1&": "&FIXED(100*F4/SUM($F$4:$K$4),0,0)&"%" -> At Grade: Restricted Right-of-Way: 32% | G5: =G1&": "&FIXED(100*G4/SUM($F$4:$K$4),0,0)&"%" -> Street Running: 10% | H5: Elevated on Structure: 43% | I5: Elevated on Fill: 6% | J5: Open Cut: 6% | K5: Subway: 2% | X5: 1
A6: By Urbanized Area Size
F7: Miles of Track | L7: Number of Elements | Q7: Miles of Roadway
D8: enter bins below | E8: VOMS | F8: Tangent - Revenue Service | G8: Curve - Revenue Service | H8: Total Revenue Service | I8: Revenue Track - No Capital Replacement Responsibility | J8: Non-Revenue Service | K8: Track Under Performance Restriction | L8: Single Turnout | M8: Grade Crossings | N8: Single Crossover | O8: Double Diamond Crossover | P8: Half Grand Unions | Q8: Exclusive Fixed Guideway | R8: Exclusive High-Intensity Busway | S8: Controlled Access High Intensity Busway | T8: Total Roadway Miles
A9: Under | B9: =D9 -> 200000 | D9: 200000 | E9: =IF($X$2,SUMIFS('Track by Mode'!L:L,'Track by Mode'!$H:$H,"<"&$D9,'Track by Mode'!AJ:AJ,"=No"),SUMIFS('Track by Mode'!L:L,'Track by Mode'!$H:$H,"<"&$D9))+IF($X$2,SUMIFS('Roadway by Mode'!L:L,'Roadway by Mode'!$H:$H,"<"&$D9,'Roadway by Mode'!$V:$V,"=No"),SUMIFS('Roadway by Mode'!L:L,'Roadway by Mode'!$H:$H,"<"&$D9)) -> 3567 | F9: =IF($X$2,SUMIFS('Track by Mode'!N:N,'Track by Mode'!$H:$H,"<"&$D9,'Track by Mode'!AJ:AJ,"=No"),SUMIFS('Track by Mode'!N:N,'Track by Mode'!$H:$H,"<"&$D9)) -> 1.79 | G9: =IF($X$2,SUMIFS('Track by Mode'!P:P,'Track by Mode'!$H:$H,"<"&$D9,'Track by Mode'!AJ:AJ,"=No"),SUMIFS('Track by Mode'!P:P,'Track by Mode'!$H:$H,"<"&$D9)) -> 0.25 | H9: =IF($X$2,SUMIFS('Track by Mode'!R:R,'Track by Mode'!$H:$H,"<"&$D9,'Track by Mode'!AJ:AJ,"=No"),SUMIFS('Track by Mode'!R:R,'Track by Mode'!$H:$H,"<"&$D9)) -> 2.04 | I9: =IF($X$2,SUMIFS('Track by Mode'!S:S,'Track by Mode'!$H:$H,"<"&$D9,'Track by Mode'!AJ:AJ,"=No"),SUMIFS('Track by Mode'!S:S,'Track by Mode'!$H:$H,"<"&$D9)) -> 0 | J9: =IF($X$2,SUMIFS('Track by Mode'!U:U,'Track by Mode'!$H:$H,"<"&$D9,'Track by Mode'!AJ:AJ,"=No"),SUMIFS('Track by Mode'!U:U,'Track by Mode'!$H:$H,"<"&$D9)) -> 0.2 | K9: =IF($X$2,SUMIFS('Track by Mode'!W:W,'Track by Mode'!$H:$H,"<"&$D9,'Track by Mode'!AJ:AJ,"=No"),SUMIFS('Track by Mode'!W:W,'Track by Mode'!$H:$H,"<"&$D9)) -> 0 | L9: =IF($X$2,SUMIFS('Track by Mode'!$Z:$Z,'Track by Mode'!$H:$H,"<"&$D9,'Track by Mode'!$AJ:$AJ,"=No"),SUMIFS('Track by Mode'!$Z:$Z,'Track by Mode'!$H:$H,"<"&$D9)) -> 4 | M9: =IF($X$2,SUMIFS('Track by Mode'!$AB:$AB,'Track by Mode'!$H:$H,"<"&$D9,'Track by Mode'!$AJ:$AJ,"=No"),SUMIFS('Track by Mode'!$AB:$AB,'Track by Mode'!$H:$H,"<"&$D9)) -> 14 | N9: =IF($X$2,SUMIFS('Track by Mode'!AD:AD,'Track by Mode'!$H:$H,"<"&$D9,'Track by Mode'!$AJ:$AJ,"=No"),SUMIFS('Track by Mode'!AD:AD,'Track by Mode'!$H:$H,"<"&$D9)) -> 0 | O9: =IF($X$2,SUMIFS('Track by Mode'!AF:AF,'Track by Mode'!$H:$H,"<"&$D9,'Track by Mode'!$AJ:$AJ,"=No"),SUMIFS('Track by Mode'!AF:AF,'Track by Mode'!$H:$H,"<"&$D9)) -> 0 | P9: =IF($X$2,SUMIFS('Track by Mode'!AH:AH,'Track by Mode'!$H:$H,"<"&$D9,'Track by Mode'!$AJ:$AJ,"=No"),SUMIFS('Track by Mode'!AH:AH,'Track by Mode'!$H:$H,"<"&$D9)) -> 0 | Q9: =IF($X$2,SUMIFS('Roadway by Mode'!N:N,'Roadway by Mode'!$H:$H,"<"&$D9,'Roadway by Mode'!$V:$V,"=No"),SUMIFS('Roadway by Mode'!N:N,'Roadway by Mode'!$H:$H,"<"&$D9)) -> 8.9 | R9: =IF($X$2,SUMIFS('Roadway by Mode'!P:P,'Roadway by Mode'!$H:$H,"<"&$D9,'Roadway by Mode'!$V:$V,"=No"),SUMIFS('Roadway by Mode'!P:P,'Roadway by Mode'!$H:$H,"<"&$D9)) -> 0 | S9: =IF($X$2,SUMIFS('Roadway by Mode'!R:R,'Roadway by Mode'!$H:$H,"<"&$D9,'Roadway by Mode'!$V:$V,"=No"),SUMIFS('Roadway by Mode'!R:R,'Roadway by Mode'!$H:$H,"<"&$D9)) -> 0 | T9: =IF($X$2,SUMIFS('Roadway by Mode'!T:T,'Roadway by Mode'!$H:$H,"<"&$D9,'Roadway by Mode'!$V:$V,"=No"),SUMIFS('Roadway by Mode'!T:T,'Roadway by Mode'!$H:$H,"<"&$D9)) -> 8.9
A10: =IF(D10<>"","Between","Over") -> Between | B10: =D9 -> 200000 | C10: =IF(D10<>"","and","") -> and | D10: 1000000 | E10: =IF($X$2,IF($A10="Between",SUMIFS('Track by Mode'!L:L,'Track by Mode'!$H:$H,">="&$B10,'Track by Mode'!$H:$H,"<"&$D10,'Track by Mode'!AJ:AJ,"=No"),SUMIFS('Track by Mode'!L:L,'Track by Mode'!$H:$H,">="&$B10,'Track by Mode'!AJ:AJ,"=No")),IF($A10="Between",SUMIFS('Track by Mode'!L:L,'Track by Mode'!$H:$H,">="&$B10,'Track by Mode'!$H:$H,"<"&$D10),SUMIFS('Track by Mode'!L:L,'Track by Mode'!$H:$H,">="&$B10)))+IF($X$2,IF($A10="Between",SUMIFS('Roadway by Mode'!L:L,'Roadway by Mode'!$H:$H,">="&$B10,'Roadway by Mode'!$H:$H,"<"&$D10,'Roadway by Mode'!$V:$V,"=No"),SUMIFS('Roadway by Mode'!L:L,'Roadway by Mode'!$H:$H,">="&$B10,'Roadway by Mode'!$V:$V,"=No")),IF($A10="Between",SUMIFS('Roadway by Mode'!L:L,'Roadway by Mode'!$H:$H,">="&$B10,'Roadway by Mode'!$H:$H,"<"&$D10),SUMIFS('Roadway by Mode'!L:L,'Roadway by Mode'!$H:$H,">="&$B10))) -> 9035 | F10: =IF($X$2,IF($A10="Between",SUMIFS('Track by Mode'!N:N,'Track by Mode'!$H:$H,">="&$B10,'Track by Mode'!$H:$H,"<"&$D10,'Track by Mode'!AJ:AJ,"=No"),SUMIFS('Track by Mode'!N:N,'Track by Mode'!$H:$H,">="&$B10,'Track by Mode'!AJ:AJ,"=No")),IF($A10="Between",SUMIFS('Track by Mode'!N:N,'Track by Mode'!$H:$H,">="&$B10,'Track by Mode'!$H:$H,"<"&$D10),SUMIFS('Track by Mode'!N:N,'Track by Mode'!$H:$H,">="&$B10))) -> 809.79 | G10: =IF($X$2,IF($A10="Between",SUMIFS('Track by Mode'!P:P,'Track by Mode'!$H:$H,">="&$B10,'Track by Mode'!$H:$H,"<"&$D10,'Track by Mode'!AJ:AJ,"=No"),SUMIFS('Track by Mode'!P:P,'Track by Mode'!$H:$H,">="&$B10,'Track by Mode'!AJ:AJ,"=No")),IF($A10="Between",SUMIFS('Track by Mode'!P:P,'Track by Mode'!$H:$H,">="&$B10,'Track by Mode'!$H:$H,"<"&$D10),SUMIFS('Track by Mode'!P:P,'Track by Mode'!$H:$H,">="&$B10))) -> 290.41 | H10: =IF($X$2,IF($A10="Between",SUMIFS('Track by Mode'!R:R,'Track by Mode'!$H:$H,">="&$B10,'Track by Mode'!$H:$H,"<"&$D10,'Track by Mode'!AJ:AJ,"=No"),SUMIFS('Track by Mode'!R:R,'Track by Mode'!$H:$H,">="&$B10,'Track by Mode'!AJ:AJ,"=No")),IF($A10="Between",SUMIFS('Track by Mode'!R:R,'Track by Mode'!$H:$H,">="&$B10,'Track by Mode'!$H:$H,"<"&$D10),SUMIFS('Track by Mode'!R:R,'Track by Mode'!$H:$H,">="&$B10))) -> 1100.2 | I10: =IF($X$2,IF($A10="Between",SUMIFS('Track by Mode'!S:S,'Track by Mode'!$H:$H,">="&$B10,'Track by Mode'!$H:$H,"<"&$D10,'Track by Mode'!AJ:AJ,"=No"),SUMIFS('Track by Mode'!S:S,'Track by Mode'!$H:$H,">="&$B10,'Track by Mode'!AJ:AJ,"=No")),IF($A10="Between",SUMIFS('Track by Mode'!S:S,'Track by Mode'!$H:$H,">="&$B10,'Track by Mode'!$H:$H,"<"&$D10),SUMIFS('Track by Mode'!S:S,'Track by Mode'!$H:$H,">="&$B10))) -> 337.4 | J10: =IF($X$2,IF($A10="Between",SUMIFS('Track by Mode'!U:U,'Track by Mode'!$H:$H,">="&$B10,'Track by Mode'!$H:$H,"<"&$D10,'Track by Mode'!AJ:AJ,"=No"),SUMIFS('Track by Mode'!U:U,'Track by Mode'!$H:$H,">="&$B10,'Track by Mode'!AJ:AJ,"=No")),IF($A10="Between",SUMIFS('Track by Mode'!U:U,'Track by Mode'!$H:$H,">="&$B10,'Track by Mode'!$H:$H,"<"&$D10),SUMIFS('Track by Mode'!U:U,'Track by Mode'!$H:$H,">="&$B10))) -> 102.53 | K10: =IF($X$2,IF($A10="Between",SUMIFS('Track by Mode'!W:W,'Track by Mode'!$H:$H,">="&$B10,'Track by Mode'!$H:$H,"<"&$D10,'Track by Mode'!AJ:AJ,"=No"),SUMIFS('Track by Mode'!W:W,'Track by Mode'!$H:$H,">="&$B10,'Track by Mode'!AJ:AJ,"=No")),IF($A10="Between",SUMIFS('Track by Mode'!W:W,'Track by Mode'!$H:$H,">="&$B10,'Track by Mode'!$H:$H,"<"&$D10),SUMIFS('Track by Mode'!W:W,'Track by Mode'!$H:$H,">="&$B10))) -> 18.41 | L10: =IF($X$2,IF($A10="Between",SUMIFS('Track by Mode'!$Z:$Z,'Track by Mode'!$H:$H,">="&$B10,'Track by Mode'!$H:$H,"<"&$D10,'Track by Mode'!$AJ:$AJ,"=No"),SUMIFS('Track by Mode'!$Z:$Z,'Track by Mode'!$H:$H,">="&$B10,'Track by Mode'!$AJ:$AJ,"=No")),IF($A10="Between",SUMIFS('Track by Mode'!$Z:$Z,'Track by Mode'!$H:$H,">="&$B10,'Track by Mode'!$H:$H,"<"&$D10),SUMIFS('Track by Mode'!$Z:$Z,'Track by Mode'!$H:$H,">="&$B10))) -> 757 | M10: =IF($X$2,IF($A10="Between",SUMIFS('Track by Mode'!$AB:$AB,'Track by Mode'!$H:$H,">="&$B10,'Track by Mode'!$H:$H,"<"&$D10,'Track by Mode'!$AJ:$AJ,"=No"),SUMIFS('Track by Mode'!$AB:$AB,'Track by Mode'!$H:$H,">="&$B10,'Track by Mode'!$AJ:$AJ,"=No")),IF($A10="Between",SUMIFS('Track by Mode'!$AB:$AB,'Track by Mode'!$H:$H,">="&$B10,'Track by Mode'!$H:$H,"<"&$D10),SUMIFS('Track by Mode'!$AB:$AB,'Track by Mode'!$H:$H,">="&$B10))) -> 1025 | N10: =IF($X$2,IF($A10="Between",SUMIFS('Track by Mode'!AD:AD,'Track by Mode'!$H:$H,">="&$B10,'Track by Mode'!$H:$H,"<"&$D10,'Track by Mode'!$AJ:$AJ,"=No"),SUMIFS('Track by Mode'!AD:AD,'Track by Mode'!$H:$H,">="&$B10,'Track by Mode'!$AJ:$AJ,"=No")),IF($A10="Between",SUMIFS('Track by Mode'!AD:AD,'Track by Mode'!$H:$H,">="&$B10,'Track by Mode'!$H:$H,"<"&$D10),SUMIFS('Track by Mode'!AD:AD,'Track by Mode'!$H:$H,">="&$B10))) -> 51 | O10: =IF($X$2,IF($A10="Between",SUMIFS('Track by Mode'!AF:AF,'Track by Mode'!$H:$H,">="&$B10,'Track by Mode'!$H:$H,"<"&$D10,'Track by Mode'!$AJ:$AJ,"=No"),SUMIFS('Track by Mode'!AF:AF,'Track by Mode'!$H:$H,">="&$B10,'Track by Mode'!$AJ:$AJ,"=No")),IF($A10="Between",SUMIFS('Track by Mode'!AF:AF,'Track by Mode'!$H:$H,">="&$B10,'Track by Mode'!$H:$H,"<"&$D10),SUMIFS('Track by Mode'!AF:AF,'Track by Mode'!$H:$H,">="&$B10))) -> 9 | P10: =IF($X$2,IF($A10="Between",SUMIFS('Track by Mode'!AH:AH,'Track by Mode'!$H:$H,">="&$B10,'Track by Mode'!$H:$H,"<"&$D10,'Track by Mode'!$AJ:$AJ,"=No"),SUMIFS('Track by Mode'!AH:AH,'Track by Mode'!$H:$H,">="&$B10,'Track by Mode'!$AJ:$AJ,"=No")),IF($A10="Between",SUMIFS('Track by Mode'!AH:AH,'Track by Mode'!$H:$H,">="&$B10,'Track by Mode'!$H:$H,"<"&$D10),SUMIFS('Track by Mode'!AH:AH,'Track by Mode'!$H:$H,">="&$B10))) -> 1 | Q10: =IF($N$2,IF($A10="Between",SUMIFS('Roadway by Mode'!N:N,'Roadway by Mode'!$H:$H,">="&$B10,'Roadway by Mode'!$H:$H,"<"&$D10,'Roadway by Mode'!$V:$V,"=No"),SUMIFS('Roadway by Mode'!N:N,'Roadway by Mode'!$H:$H,">="&$B10,'Roadway by Mode'!$V:$V,"=No")),IF($A10="Between",SUMIFS('Roadway by Mode'!N:N,'Roadway by Mode'!$H:$H,">="&$B10,'Roadway by Mode'!$H:$H,"<"&$D10),SUMIFS('Roadway by Mode'!N:N,'Roadway by Mode'!$H:$H,">="&$B10))) -> 242.4 | R10: =IF($N$2,IF($A10="Between",SUMIFS('Roadway by Mode'!P:P,'Roadway by Mode'!$H:$H,">="&$B10,'Roadway by Mode'!$H:$H,"<"&$D10,'Roadway by Mode'!$V:$V,"=No"),SUMIFS('Roadway by Mode'!P:P,'Roadway by Mode'!$H:$H,">="&$B10,'Roadway by Mode'!$V:$V,"=No")),IF($A10="Between",SUMIFS('Roadway by Mode'!P:P,'Roadway by Mode'!$H:$H,">="&$B10,'Roadway by Mode'!$H:$H,"<"&$D10),SUMIFS('Roadway by Mode'!P:P,'Roadway by Mode'!$H:$H,">="&$B10))) -> 59.4 | S10: =IF($N$2,IF($A10="Between",SUMIFS('Roadway by Mode'!R:R,'Roadway by Mode'!$H:$H,">="&$B10,'Roadway by Mode'!$H:$H,"<"&$D10,'Roadway by Mode'!$V:$V,"=No"),SUMIFS('Roadway by Mode'!R:R,'Roadway by Mode'!$H:$H,">="&$B10,'Roadway by Mode'!$V:$V,"=No")),IF($A10="Between",SUMIFS('Roadway by Mode'!R:R,'Roadway by Mode'!$H:$H,">="&$B10,'Roadway by Mode'!$H:$H,"<"&$D10),SUMIFS('Roadway by Mode'!R:R,'Roadway by Mode'!$H:$H,">="&$B10))) -> 139.4 | T10: =IF($N$2,IF($A10="Between",SUMIFS('Roadway by Mode'!T:T,'Roadway by Mode'!$H:$H,">="&$B10,'Roadway by Mode'!$H:$H,"<"&$D10,'Roadway by Mode'!$V:$V,"=No"),SUMIFS('Roadway by Mode'!T:T,'Roadway by Mode'!$H:$H,">="&$B10,'Roadway by Mode'!$V:$V,"=No")),IF($A10="Between",SUMIFS('Roadway by Mode'!T:T,'Roadway by Mode'!$H:$H,">="&$B10,'Roadway by Mode'!$H:$H,"<"&$D10),SUMIFS('Roadway by Mode'!T:T,'Roadway by Mode'!$H:$H,">="&$B10))) -> 441.2
A11: =IF(OR(A10="Over",A10=""),"",IF(D11="","Over","Between")) -> Over | B11: =IF(D10="","",D10) -> 1000000 | C11: =IF(D11<>"","and","") ->  | E11: =IFERROR(IF($X$2,IF($A11="","",IF($A11="Between",SUMIFS('Track by Mode'!L:L,'Track by Mode'!$H:$H,">="&$B11,'Track by Mode'!$H:$H,"<"&$D11,'Track by Mode'!AJ:AJ,"=No"),SUMIFS('Track by Mode'!L:L,'Track by Mode'!$H:$H,">="&$B11,'Track by Mode'!AJ:AJ,"=No"))),IF($A11="","",IF($A11="Between",SUMIFS('Track by Mode'!L:L,'Track by Mode'!$H:$H,">="&$B11,'Track by Mode'!$H:$H,"<"&$D11),SUMIFS('Track by Mode'!L:L,'Track by Mode'!$H:$H,">="&$B11))))+IF($X$2,IF($A11="","",IF($A11="Between",SUMIFS('Roadway by Mode'!L:L,'Roadway by Mode'!$H:$H,">="&$B11,'Roadway by Mode'!$H:$H,"<"&$D11,'Roadway by Mode'!$V:$V,"=No"),SUMIFS('Roadway by Mode'!L:L,'Roadway by Mode'!$H:$H,">="&$B11,'Roadway by Mode'!$V:$V,"=No"))),IF($A11="","",IF($A11="Between",SUMIFS('Roadway by Mode'!L:L,'Roadway by Mode'!$H:$H,">="&$B11,'Roadway by Mode'!$H:$H,"<"&$D11),SUMIFS('Roadway by Mode'!L:L,'Roadway by Mode'!$H:$H,">="&$B11)))),"") -> 56619 | F11: =IFERROR(IF($X$2,IF($A11="","",IF($A11="Between",SUMIFS('Track by Mode'!N:N,'Track by Mode'!$H:$H,">="&$B11,'Track by Mode'!$H:$H,"<"&$D11,'Track by Mode'!AJ:AJ,"=No"),SUMIFS('Track by Mode'!N:N,'Track by Mode'!$H:$H,">="&$B11,'Track by Mode'!AJ:AJ,"=No"))),IF($A11="","",IF($A11="Between",SUMIFS('Track by Mode'!N:N,'Track by Mode'!$H:$H,">="&$B11,'Track by Mode'!$H:$H,"<"&$D11),SUMIFS('Track by Mode'!N:N,'Track by Mode'!$H:$H,">="&$B11)))),"") -> 7852.46 | G11: =IFERROR(IF($X$2,IF($A11="","",IF($A11="Between",SUMIFS('Track by Mode'!P:P,'Track by Mode'!$H:$H,">="&$B11,'Track by Mode'!$H:$H,"<"&$D11,'Track by Mode'!AJ:AJ,"=No"),SUMIFS('Track by Mode'!P:P,'Track by Mode'!$H:$H,">="&$B11,'Track by Mode'!AJ:AJ,"=No"))),IF($A11="","",IF($A11="Between",SUMIFS('Track by Mode'!P:P,'Track by Mode'!$H:$H,">="&$B11,'Track by Mode'!$H:$H,"<"&$D11),SUMIFS('Track by Mode'!P:P,'Track by Mode'!$H:$H,">="&$B11)))),"") -> 2510.39 | H11: =IFERROR(IF($X$2,IF($A11="","",IF($A11="Between",SUMIFS('Track by Mode'!R:R,'Track by Mode'!$H:$H,">="&$B11,'Track by Mode'!$H:$H,"<"&$D11,'Track by Mode'!AJ:AJ,"=No"),SUMIFS('Track by Mode'!R:R,'Track by Mode'!$H:$H,">="&$B11,'Track by Mode'!AJ:AJ,"=No"))),IF($A11="","",IF($A11="Between",SUMIFS('Track by Mode'!R:R,'Track by Mode'!$H:$H,">="&$B11,'Track by Mode'!$H:$H,"<"&$D11),SUMIFS('Track by Mode'!R:R,'Track by Mode'!$H:$H,">="&$B11)))),"") -> 10362.85 | I11: =IFERROR(IF($X$2,IF($A11="","",IF($A11="Between",SUMIFS('Track by Mode'!S:S,'Track by Mode'!$H:$H,">="&$B11,'Track by Mode'!$H:$H,"<"&$D11,'Track by Mode'!AJ:AJ,"=No"),SUMIFS('Track by Mode'!S:S,'Track by Mode'!$H:$H,">="&$B11,'Track by Mode'!AJ:AJ,"=No"))),IF($A11="","",IF($A11="Between",SUMIFS('Track by Mode'!S:S,'Track by Mode'!$H:$H,">="&$B11,'Track by Mode'!$H:$H,"<"&$D11),SUMIFS('Track by Mode'!S:S,'Track by Mode'!$H:$H,">="&$B11)))),"") -> 1306.43 | J11: =IFERROR(IF($X$2,IF($A11="","",IF($A11="Between",SUMIFS('Track by Mode'!U:U,'Track by Mode'!$H:$H,">="&$B11,'Track by Mode'!$H:$H,"<"&$D11,'Track by Mode'!AJ:AJ,"=No"),SUMIFS('Track by Mode'!U:U,'Track by Mode'!$H:$H,">="&$B11,'Track by Mode'!AJ:AJ,"=No"))),IF($A11="","",IF($A11="Between",SUMIFS('Track by Mode'!U:U,'Track by Mode'!$H:$H,">="&$B11,'Track by Mode'!$H:$H,"<"&$D11),SUMIFS('Track by Mode'!U:U,'Track by Mode'!$H:$H,">="&$B11)))),"") -> 1518.32 | K11: =IFERROR(IF($X$2,IF($A11="","",IF($A11="Between",SUMIFS('Track by Mode'!W:W,'Track by Mode'!$H:$H,">="&$B11,'Track by Mode'!$H:$H,"<"&$D11,'Track by Mode'!AJ:AJ,"=No"),SUMIFS('Track by Mode'!W:W,'Track by Mode'!$H:$H,">="&$B11,'Track by Mode'!AJ:AJ,"=No"))),IF($A11="","",IF($A11="Between",SUMIFS('Track by Mode'!W:W,'Track by Mode'!$H:$H,">="&$B11,'Track by Mode'!$H:$H,"<"&$D11),SUMIFS('Track by Mode'!W:W,'Track by Mode'!$H:$H,">="&$B11)))),"") -> 578.1 | L11: =IF($X$2,IF($A11="Between",SUMIFS('Track by Mode'!$Z:$Z,'Track by Mode'!$H:$H,">="&$B11,'Track by Mode'!$H:$H,"<"&$D11,'Track by Mode'!$AJ:$AJ,"=No"),SUMIFS('Track by Mode'!$Z:$Z,'Track by Mode'!$H:$H,">="&$B11,'Track by Mode'!$AJ:$AJ,"=No")),IF($A11="Between",SUMIFS('Track by Mode'!$Z:$Z,'Track by Mode'!$H:$H,">="&$B11,'Track by Mode'!$H:$H,"<"&$D11),SUMIFS('Track by Mode'!$Z:$Z,'Track by Mode'!$H:$H,">="&$B11))) -> 9785 | M11: =IFERROR(IF($X$2,IF($A11="","",IF($A11="Between",SUMIFS('Track by Mode'!$AB:$AB,'Track by Mode'!$H:$H,">="&$B11,'Track by Mode'!$H:$H,"<"&$D11,'Track by Mode'!$AJ:$AJ,"=No"),SUMIFS('Track by Mode'!$AB:$AB,'Track by Mode'!$H:$H,">="&$B11,'Track by Mode'!$AJ:$AJ,"=No"))),IF($A11="","",IF($A11="Between",SUMIFS('Track by Mode'!$AB:$AB,'Track by Mode'!$H:$H,">="&$B11,'Track by Mode'!$H:$H,"<"&$D11),SUMIFS('Track by Mode'!$AB:$AB,'Track by Mode'!$H:$H,">="&$B11)))),"") -> 5546 | N11: =IFERROR(IF($X$2,IF($A11="","",IF($A11="Between",SUMIFS('Track by Mode'!AD:AD,'Track by Mode'!$H:$H,">="&$B11,'Track by Mode'!$H:$H,"<"&$D11,'Track by Mode'!$AJ:$AJ,"=No"),SUMIFS('Track by Mode'!AD:AD,'Track by Mode'!$H:$H,">="&$B11,'Track by Mode'!$AJ:$AJ,"=No"))),IF($A11="","",IF($A11="Between",SUMIFS('Track by Mode'!AD:AD,'Track by Mode'!$H:$H,">="&$B11,'Track by Mode'!$H:$H,"<"&$D11),SUMIFS('Track by Mode'!AD:AD,'Track by Mode'!$H:$H,">="&$B11)))),"") -> 4193 | O11: =IFERROR(IF($X$2,IF($A11="","",IF($A11="Between",SUMIFS('Track by Mode'!AF:AF,'Track by Mode'!$H:$H,">="&$B11,'Track by Mode'!$H:$H,"<"&$D11,'Track by Mode'!$AJ:$AJ,"=No"),SUMIFS('Track by Mode'!AF:AF,'Track by Mode'!$H:$H,">="&$B11,'Track by Mode'!$AJ:$AJ,"=No"))),IF($A11="","",IF($A11="Between",SUMIFS('Track by Mode'!AF:AF,'Track by Mode'!$H:$H,">="&$B11,'Track by Mode'!$H:$H,"<"&$D11),SUMIFS('Track by Mode'!AF:AF,'Track by Mode'!$H:$H,">="&$B11)))),"") -> 525 | P11: =IFERROR(IF($X$2,IF($A11="","",IF($A11="Between",SUMIFS('Track by Mode'!AH:AH,'Track by Mode'!$H:$H,">="&$B11,'Track by Mode'!$H:$H,"<"&$D11,'Track by Mode'!$AJ:$AJ,"=No"),SUMIFS('Track by Mode'!AH:AH,'Track by Mode'!$H:$H,">="&$B11,'Track by Mode'!$AJ:$AJ,"=No"))),IF($A11="","",IF($A11="Between",SUMIFS('Track by Mode'!AH:AH,'Track by Mode'!$H:$H,">="&$B11,'Track by Mode'!$H:$H,"<"&$D11),SUMIFS('Track by Mode'!AH:AH,'Track by Mode'!$H:$H,">="&$B11)))),"") -> 35 | Q11: =IFERROR(IF($N$2,IF($A11="","",IF($A11="Between",SUMIFS('Roadway by Mode'!N:N,'Roadway by Mode'!$H:$H,">="&$B11,'Roadway by Mode'!$H:$H,"<"&$D11,'Roadway by Mode'!$V:$V,"=No"),SUMIFS('Roadway by Mode'!N:N,'Roadway by Mode'!$H:$H,">="&$B11,'Roadway by Mode'!$V:$V,"=No"))),IF($A11="","",IF($A11="Between",SUMIFS('Roadway by Mode'!N:N,'Roadway by Mode'!$H:$H,">="&$B11,'Roadway by Mode'!$H:$H,"<"&$D11),SUMIFS('Roadway by Mode'!N:N,'Roadway by Mode'!$H:$H,">="&$B11)))),"") -> 853.4 | R11: =IFERROR(IF($N$2,IF($A11="","",IF($A11="Between",SUMIFS('Roadway by Mode'!P:P,'Roadway by Mode'!$H:$H,">="&$B11,'Roadway by Mode'!$H:$H,"<"&$D11,'Roadway by Mode'!$V:$V,"=No"),SUMIFS('Roadway by Mode'!P:P,'Roadway by Mode'!$H:$H,">="&$B11,'Roadway by Mode'!$V:$V,"=No"))),IF($A11="","",IF($A11="Between",SUMIFS('Roadway by Mode'!P:P,'Roadway by Mode'!$H:$H,">="&$B11,'Roadway by Mode'!$H:$H,"<"&$D11),SUMIFS('Roadway by Mode'!P:P,'Roadway by Mode'!$H:$H,">="&$B11)))),"") -> 1415.5 | S11: =IFERROR(IF($N$2,IF($A11="","",IF($A11="Between",SUMIFS('Roadway by Mode'!R:R,'Roadway by Mode'!$H:$H,">="&$B11,'Roadway by Mode'!$H:$H,"<"&$D11,'Roadway by Mode'!$V:$V,"=No"),SUMIFS('Roadway by Mode'!R:R,'Roadway by Mode'!$H:$H,">="&$B11,'Roadway by Mode'!$V:$V,"=No"))),IF($A11="","",IF($A11="Between",SUMIFS('Roadway by Mode'!R:R,'Roadway by Mode'!$H:$H,">="&$B11,'Roadway by Mode'!$H:$H,"<"&$D11),SUMIFS('Roadway by Mode'!R:R,'Roadway by Mode'!$H:$H,">="&$B11)))),"") -> 2145.3 | T11: =IFERROR(IF($N$2,IF($A11="","",IF($A11="Between",SUMIFS('Roadway by Mode'!T:T,'Roadway by Mode'!$H:$H,">="&$B11,'Roadway by Mode'!$H:$H,"<"&$D11,'Roadway by Mode'!$V:$V,"=No"),SUMIFS('Roadway by Mode'!T:T,'Roadway by Mode'!$H:$H,">="&$B11,'Roadway by Mode'!$V:$V,"=No"))),IF($A11="","",IF($A11="Between",SUMIFS('Roadway by Mode'!T:T,'Roadway by Mode'!$H:$H,">="&$B11,'Roadway by Mode'!$H:$H,"<"&$D11),SUMIFS('Roadway by Mode'!T:T,'Roadway by Mode'!$H:$H,">="&$B11)))),"") -> 4414.2
C12: =IF(D12<>"","and","") ->  | E12: =IFERROR(IF($X$2,IF($A12="","",IF($A12="Between",SUMIFS('Track by Mode'!L:L,'Track by Mode'!$H:$H,">="&$B12,'Track by Mode'!$H:$H,"<"&$D12,'Track by Mode'!AJ:AJ,"=No"),SUMIFS('Track by Mode'!L:L,'Track by Mode'!$H:$H,">="&$B12,'Track by Mode'!AJ:AJ,"=No"))),IF($A12="","",IF($A12="Between",SUMIFS('Track by Mode'!L:L,'Track by Mode'!$H:$H,">="&$B12,'Track by Mode'!$H:$H,"<"&$D12),SUMIFS('Track by Mode'!L:L,'Track by Mode'!$H:$H,">="&$B12))))+IF($X$2,IF($A12="","",IF($A12="Between",SUMIFS('Roadway by Mode'!L:L,'Roadway by Mode'!$H:$H,">="&$B12,'Roadway by Mode'!$H:$H,"<"&$D12,'Roadway by Mode'!$V:$V,"=No"),SUMIFS('Roadway by Mode'!L:L,'Roadway by Mode'!$H:$H,">="&$B12,'Roadway by Mode'!$V:$V,"=No"))),IF($A12="","",IF($A12="Between",SUMIFS('Roadway by Mode'!L:L,'Roadway by Mode'!$H:$H,">="&$B12,'Roadway by Mode'!$H:$H,"<"&$D12),SUMIFS('Roadway by Mode'!L:L,'Roadway by Mode'!$H:$H,">="&$B12)))),"") ->  | F12: =IFERROR(IF($X$2,IF($A12="","",IF($A12="Between",SUMIFS('Track by Mode'!N:N,'Track by Mode'!$H:$H,">="&$B12,'Track by Mode'!$H:$H,"<"&$D12,'Track by Mode'!AJ:AJ,"=No"),SUMIFS('Track by Mode'!N:N,'Track by Mode'!$H:$H,">="&$B12,'Track by Mode'!AJ:AJ,"=No"))),IF($A12="","",IF($A12="Between",SUMIFS('Track by Mode'!N:N,'Track by Mode'!$H:$H,">="&$B12,'Track by Mode'!$H:$H,"<"&$D12),SUMIFS('Track by Mode'!N:N,'Track by Mode'!$H:$H,">="&$B12)))),"") ->  | G12: =IFERROR(IF($X$2,IF($A12="","",IF($A12="Between",SUMIFS('Track by Mode'!P:P,'Track by Mode'!$H:$H,">="&$B12,'Track by Mode'!$H:$H,"<"&$D12,'Track by Mode'!AJ:AJ,"=No"),SUMIFS('Track by Mode'!P:P,'Track by Mode'!$H:$H,">="&$B12,'Track by Mode'!AJ:AJ,"=No"))),IF($A12="","",IF($A12="Between",SUMIFS('Track by Mode'!P:P,'Track by Mode'!$H:$H,">="&$B12,'Track by Mode'!$H:$H,"<"&$D12),SUMIFS('Track by Mode'!P:P,'Track by Mode'!$H:$H,">="&$B12)))),"") ->  | H12: =IFERROR(IF($X$2,IF($A12="","",IF($A12="Between",SUMIFS('Track by Mode'!R:R,'Track by Mode'!$H:$H,">="&$B12,'Track by Mode'!$H:$H,"<"&$D12,'Track by Mode'!AJ:AJ,"=No"),SUMIFS('Track by Mode'!R:R,'Track by Mode'!$H:$H,">="&$B12,'Track by Mode'!AJ:AJ,"=No"))),IF($A12="","",IF($A12="Between",SUMIFS('Track by Mode'!R:R,'Track by Mode'!$H:$H,">="&$B12,'Track by Mode'!$H:$H,"<"&$D12),SUMIFS('Track by Mode'!R:R,'Track by Mode'!$H:$H,">="&$B12)))),"") ->  | I12: =IFERROR(IF($X$2,IF($A12="","",IF($A12="Between",SUMIFS('Track by Mode'!S:S,'Track by Mode'!$H:$H,">="&$B12,'Track by Mode'!$H:$H,"<"&$D12,'Track by Mode'!AJ:AJ,"=No"),SUMIFS('Track by Mode'!S:S,'Track by Mode'!$H:$H,">="&$B12,'Track by Mode'!AJ:AJ,"=No"))),IF($A12="","",IF($A12="Between",SUMIFS('Track by Mode'!S:S,'Track by Mode'!$H:$H,">="&$B12,'Track by Mode'!$H:$H,"<"&$D12),SUMIFS('Track by Mode'!S:S,'Track by Mode'!$H:$H,">="&$B12)))),"") ->  | J12: =IFERROR(IF($X$2,IF($A12="","",IF($A12="Between",SUMIFS('Track by Mode'!U:U,'Track by Mode'!$H:$H,">="&$B12,'Track by Mode'!$H:$H,"<"&$D12,'Track by Mode'!AJ:AJ,"=No"),SUMIFS('Track by Mode'!U:U,'Track by Mode'!$H:$H,">="&$B12,'Track by Mode'!AJ:AJ,"=No"))),IF($A12="","",IF($A12="Between",SUMIFS('Track by Mode'!U:U,'Track by Mode'!$H:$H,">="&$B12,'Track by Mode'!$H:$H,"<"&$D12),SUMIFS('Track by Mode'!U:U,'Track by Mode'!$H:$H,">="&$B12)))),"") ->  | K12: =IFERROR(IF($X$2,IF($A12="","",IF($A12="Between",SUMIFS('Track by Mode'!W:W,'Track by Mode'!$H:$H,">="&$B12,'Track by Mode'!$H:$H,"<"&$D12,'Track by Mode'!AJ:AJ,"=No"),SUMIFS('Track by Mode'!W:W,'Track by Mode'!$H:$H,">="&$B12,'Track by Mode'!AJ:AJ,"=No"))),IF($A12="","",IF($A12="Between",SUMIFS('Track by Mode'!W:W,'Track by Mode'!$H:$H,">="&$B12,'Track by Mode'!$H:$H,"<"&$D12),SUMIFS('Track by Mode'!W:W,'Track by Mode'!$H:$H,">="&$B12)))),"") ->  | L12: =IFERROR(IF($X$2,IF($A12="","",IF($A12="Between",SUMIFS('Track by Mode'!$Z:$Z,'Track by Mode'!$H:$H,">="&$B12,'Track by Mode'!$H:$H,"<"&$D12,'Track by Mode'!$AJ:$AJ,"=No"),SUMIFS('Track by Mode'!$Z:$Z,'Track by Mode'!$H:$H,">="&$B12,'Track by Mode'!$AJ:$AJ,"=No"))),IF($A12="","",IF($A12="Between",SUMIFS('Track by Mode'!$Z:$Z,'Track by Mode'!$H:$H,">="&$B12,'Track by Mode'!$H:$H,"<"&$D12),SUMIFS('Track by Mode'!$Z:$Z,'Track by Mode'!$H:$H,">="&$B12)))),"") ->  | M12: =IFERROR(IF($X$2,IF($A12="","",IF($A12="Between",SUMIFS('Track by Mode'!$AB:$AB,'Track by Mode'!$H:$H,">="&$B12,'Track by Mode'!$H:$H,"<"&$D12,'Track by Mode'!$AJ:$AJ,"=No"),SUMIFS('Track by Mode'!$AB:$AB,'Track by Mode'!$H:$H,">="&$B12,'Track by Mode'!$AJ:$AJ,"=No"))),IF($A12="","",IF($A12="Between",SUMIFS('Track by Mode'!$AB:$AB,'Track by Mode'!$H:$H,">="&$B12,'Track by Mode'!$H:$H,"<"&$D12),SUMIFS('Track by Mode'!$AB:$AB,'Track by Mode'!$H:$H,">="&$B12)))),"") ->  | N12: =IFERROR(IF($X$2,IF($A12="","",IF($A12="Between",SUMIFS('Track by Mode'!AD:AD,'Track by Mode'!$H:$H,">="&$B12,'Track by Mode'!$H:$H,"<"&$D12,'Track by Mode'!$AJ:$AJ,"=No"),SUMIFS('Track by Mode'!AD:AD,'Track by Mode'!$H:$H,">="&$B12,'Track by Mode'!$AJ:$AJ,"=No"))),IF($A12="","",IF($A12="Between",SUMIFS('Track by Mode'!AD:AD,'Track by Mode'!$H:$H,">="&$B12,'Track by Mode'!$H:$H,"<"&$D12),SUMIFS('Track by Mode'!AD:AD,'Track by Mode'!$H:$H,">="&$B12)))),"") ->  | O12: =IFERROR(IF($X$2,IF($A12="","",IF($A12="Between",SUMIFS('Track by Mode'!AF:AF,'Track by Mode'!$H:$H,">="&$B12,'Track by Mode'!$H:$H,"<"&$D12,'Track by Mode'!$AJ:$AJ,"=No"),SUMIFS('Track by Mode'!AF:AF,'Track by Mode'!$H:$H,">="&$B12,'Track by Mode'!$AJ:$AJ,"=No"))),IF($A12="","",IF($A12="Between",SUMIFS('Track by Mode'!AF:AF,'Track by Mode'!$H:$H,">="&$B12,'Track by Mode'!$H:$H,"<"&$D12),SUMIFS('Track by Mode'!AF:AF,'Track by Mode'!$H:$H,">="&$B12)))),"") ->  | P12: =IFERROR(IF($X$2,IF($A12="","",IF($A12="Between",SUMIFS('Track by Mode'!AH:AH,'Track by Mode'!$H:$H,">="&$B12,'Track by Mode'!$H:$H,"<"&$D12,'Track by Mode'!$AJ:$AJ,"=No"),SUMIFS('Track by Mode'!AH:AH,'Track by Mode'!$H:$H,">="&$B12,'Track by Mode'!$AJ:$AJ,"=No"))),IF($A12="","",IF($A12="Between",SUMIFS('Track by Mode'!AH:AH,'Track by Mode'!$H:$H,">="&$B12,'Track by Mode'!$H:$H,"<"&$D12),SUMIFS('Track by Mode'!AH:AH,'Track by Mode'!$H:$H,">="&$B12)))),"") ->  | Q12: =IFERROR(IF($N$2,IF($A12="","",IF($A12="Between",SUMIFS('Roadway by Mode'!N:N,'Roadway by Mode'!$H:$H,">="&$B12,'Roadway by Mode'!$H:$H,"<"&$D12,'Roadway by Mode'!$V:$V,"=No"),SUMIFS('Roadway by Mode'!N:N,'Roadway by Mode'!$H:$H,">="&$B12,'Roadway by Mode'!$V:$V,"=No"))),IF($A12="","",IF($A12="Between",SUMIFS('Roadway by Mode'!N:N,'Roadway by Mode'!$H:$H,">="&$B12,'Roadway by Mode'!$H:$H,"<"&$D12),SUMIFS('Roadway by Mode'!N:N,'Roadway by Mode'!$H:$H,">="&$B12)))),"") ->  | R12: =IFERROR(IF($N$2,IF($A12="","",IF($A12="Between",SUMIFS('Roadway by Mode'!P:P,'Roadway by Mode'!$H:$H,">="&$B12,'Roadway by Mode'!$H:$H,"<"&$D12,'Roadway by Mode'!$V:$V,"=No"),SUMIFS('Roadway by Mode'!P:P,'Roadway by Mode'!$H:$H,">="&$B12,'Roadway by Mode'!$V:$V,"=No"))),IF($A12="","",IF($A12="Between",SUMIFS('Roadway by Mode'!P:P,'Roadway by Mode'!$H:$H,">="&$B12,'Roadway by Mode'!$H:$H,"<"&$D12),SUMIFS('Roadway by Mode'!P:P,'Roadway by Mode'!$H:$H,">="&$B12)))),"") ->  | S12: =IFERROR(IF($N$2,IF($A12="","",IF($A12="Between",SUMIFS('Roadway by Mode'!R:R,'Roadway by Mode'!$H:$H,">="&$B12,'Roadway by Mode'!$H:$H,"<"&$D12,'Roadway by Mode'!$V:$V,"=No"),SUMIFS('Roadway by Mode'!R:R,'Roadway by Mode'!$H:$H,">="&$B12,'Roadway by Mode'!$V:$V,"=No"))),IF($A12="","",IF($A12="Between",SUMIFS('Roadway by Mode'!R:R,'Roadway by Mode'!$H:$H,">="&$B12,'Roadway by Mode'!$H:$H,"<"&$D12),SUMIFS('Roadway by Mode'!R:R,'Roadway by Mode'!$H:$H,">="&$B12)))),"") ->  | T12: =IFERROR(IF($N$2,IF($A12="","",IF($A12="Between",SUMIFS('Roadway by Mode'!T:T,'Roadway by Mode'!$H:$H,">="&$B12,'Roadway by Mode'!$H:$H,"<"&$D12,'Roadway by Mode'!$V:$V,"=No"),SUMIFS('Roadway by Mode'!T:T,'Roadway by Mode'!$H:$H,">="&$B12,'Roadway by Mode'!$V:$V,"=No"))),IF($A12="","",IF($A12="Between",SUMIFS('Roadway by Mode'!T:T,'Roadway by Mode'!$H:$H,">="&$B12,'Roadway by Mode'!$H:$H,"<"&$D12),SUMIFS('Roadway by Mode'!T:T,'Roadway by Mode'!$H:$H,">="&$B12)))),"") -> 
E13: =IFERROR(IF($X$2,IF($A13="","",IF($A13="Between",SUMIFS('Track by Mode'!L:L,'Track by Mode'!$H:$H,">="&$B13,'Track by Mode'!$H:$H,"<"&$D13,'Track by Mode'!AJ:AJ,"=No"),SUMIFS('Track by Mode'!L:L,'Track by Mode'!$H:$H,">="&$B13,'Track by Mode'!AJ:AJ,"=No"))),IF($A13="","",IF($A13="Between",SUMIFS('Track by Mode'!L:L,'Track by Mode'!$H:$H,">="&$B13,'Track by Mode'!$H:$H,"<"&$D13),SUMIFS('Track by Mode'!L:L,'Track by Mode'!$H:$H,">="&$B13))))+IF($X$2,IF($A13="","",IF($A13="Between",SUMIFS('Roadway by Mode'!L:L,'Roadway by Mode'!$H:$H,">="&$B13,'Roadway by Mode'!$H:$H,"<"&$D13,'Roadway by Mode'!$V:$V,"=No"),SUMIFS('Roadway by Mode'!L:L,'Roadway by Mode'!$H:$H,">="&$B13,'Roadway by Mode'!$V:$V,"=No"))),IF($A13="","",IF($A13="Between",SUMIFS('Roadway by Mode'!L:L,'Roadway by Mode'!$H:$H,">="&$B13,'Roadway by Mode'!$H:$H,"<"&$D13),SUMIFS('Roadway by Mode'!L:L,'Roadway by Mode'!$H:$H,">="&$B13)))),"") ->  | F13: =IFERROR(IF($X$2,IF($A13="","",IF($A13="Between",SUMIFS('Track by Mode'!N:N,'Track by Mode'!$H:$H,">="&$B13,'Track by Mode'!$H:$H,"<"&$D13,'Track by Mode'!AJ:AJ,"=No"),SUMIFS('Track by Mode'!N:N,'Track by Mode'!$H:$H,">="&$B13,'Track by Mode'!AJ:AJ,"=No"))),IF($A13="","",IF($A13="Between",SUMIFS('Track by Mode'!N:N,'Track by Mode'!$H:$H,">="&$B13,'Track by Mode'!$H:$H,"<"&$D13),SUMIFS('Track by Mode'!N:N,'Track by Mode'!$H:$H,">="&$B13)))),"") ->  | G13: =IFERROR(IF($X$2,IF($A13="","",IF($A13="Between",SUMIFS('Track by Mode'!P:P,'Track by Mode'!$H:$H,">="&$B13,'Track by Mode'!$H:$H,"<"&$D13,'Track by Mode'!AJ:AJ,"=No"),SUMIFS('Track by Mode'!P:P,'Track by Mode'!$H:$H,">="&$B13,'Track by Mode'!AJ:AJ,"=No"))),IF($A13="","",IF($A13="Between",SUMIFS('Track by Mode'!P:P,'Track by Mode'!$H:$H,">="&$B13,'Track by Mode'!$H:$H,"<"&$D13),SUMIFS('Track by Mode'!P:P,'Track by Mode'!$H:$H,">="&$B13)))),"") ->  | H13: =IFERROR(IF($X$2,IF($A13="","",IF($A13="Between",SUMIFS('Track by Mode'!R:R,'Track by Mode'!$H:$H,">="&$B13,'Track by Mode'!$H:$H,"<"&$D13,'Track by Mode'!AJ:AJ,"=No"),SUMIFS('Track by Mode'!R:R,'Track by Mode'!$H:$H,">="&$B13,'Track by Mode'!AJ:AJ,"=No"))),IF($A13="","",IF($A13="Between",SUMIFS('Track by Mode'!R:R,'Track by Mode'!$H:$H,">="&$B13,'Track by Mode'!$H:$H,"<"&$D13),SUMIFS('Track by Mode'!R:R,'Track by Mode'!$H:$H,">="&$B13)))),"") ->  | I13: =IFERROR(IF($X$2,IF($A13="","",IF($A13="Between",SUMIFS('Track by Mode'!S:S,'Track by Mode'!$H:$H,">="&$B13,'Track by Mode'!$H:$H,"<"&$D13,'Track by Mode'!AJ:AJ,"=No"),SUMIFS('Track by Mode'!S:S,'Track by Mode'!$H:$H,">="&$B13,'Track by Mode'!AJ:AJ,"=No"))),IF($A13="","",IF($A13="Between",SUMIFS('Track by Mode'!S:S,'Track by Mode'!$H:$H,">="&$B13,'Track by Mode'!$H:$H,"<"&$D13),SUMIFS('Track by Mode'!S:S,'Track by Mode'!$H:$H,">="&$B13)))),"") ->  | J13: =IFERROR(IF($X$2,IF($A13="","",IF($A13="Between",SUMIFS('Track by Mode'!U:U,'Track by Mode'!$H:$H,">="&$B13,'Track by Mode'!$H:$H,"<"&$D13,'Track by Mode'!AJ:AJ,"=No"),SUMIFS('Track by Mode'!U:U,'Track by Mode'!$H:$H,">="&$B13,'Track by Mode'!AJ:AJ,"=No"))),IF($A13="","",IF($A13="Between",SUMIFS('Track by Mode'!U:U,'Track by Mode'!$H:$H,">="&$B13,'Track by Mode'!$H:$H,"<"&$D13),SUMIFS('Track by Mode'!U:U,'Track by Mode'!$H:$H,">="&$B13)))),"") ->  | K13: =IFERROR(IF($X$2,IF($A13="","",IF($A13="Between",SUMIFS('Track by Mode'!W:W,'Track by Mode'!$H:$H,">="&$B13,'Track by Mode'!$H:$H,"<"&$D13,'Track by Mode'!AJ:AJ,"=No"),SUMIFS('Track by Mode'!W:W,'Track by Mode'!$H:$H,">="&$B13,'Track by Mode'!AJ:AJ,"=No"))),IF($A13="","",IF($A13="Between",SUMIFS('Track by Mode'!W:W,'Track by Mode'!$H:$H,">="&$B13,'Track by Mode'!$H:$H,"<"&$D13),SUMIFS('Track by Mode'!W:W,'Track by Mode'!$H:$H,">="&$B13)))),"") ->  | L13: =IFERROR(IF($X$2,IF($A13="","",IF($A13="Between",SUMIFS('Track by Mode'!$Z:$Z,'Track by Mode'!$H:$H,">="&$B13,'Track by Mode'!$H:$H,"<"&$D13,'Track by Mode'!$AJ:$AJ,"=No"),SUMIFS('Track by Mode'!$Z:$Z,'Track by Mode'!$H:$H,">="&$B13,'Track by Mode'!$AJ:$AJ,"=No"))),IF($A13="","",IF($A13="Between",SUMIFS('Track by Mode'!$Z:$Z,'Track by Mode'!$H:$H,">="&$B13,'Track by Mode'!$H:$H,"<"&$D13),SUMIFS('Track by Mode'!$Z:$Z,'Track by Mode'!$H:$H,">="&$B13)))),"") ->  | M13: =IFERROR(IF($X$2,IF($A13="","",IF($A13="Between",SUMIFS('Track by Mode'!$AB:$AB,'Track by Mode'!$H:$H,">="&$B13,'Track by Mode'!$H:$H,"<"&$D13,'Track by Mode'!$AJ:$AJ,"=No"),SUMIFS('Track by Mode'!$AB:$AB,'Track by Mode'!$H:$H,">="&$B13,'Track by Mode'!$AJ:$AJ,"=No"))),IF($A13="","",IF($A13="Between",SUMIFS('Track by Mode'!$AB:$AB,'Track by Mode'!$H:$H,">="&$B13,'Track by Mode'!$H:$H,"<"&$D13),SUMIFS('Track by Mode'!$AB:$AB,'Track by Mode'!$H:$H,">="&$B13)))),"") ->  | N13: =IFERROR(IF($X$2,IF($A13="","",IF($A13="Between",SUMIFS('Track by Mode'!AD:AD,'Track by Mode'!$H:$H,">="&$B13,'Track by Mode'!$H:$H,"<"&$D13,'Track by Mode'!$AJ:$AJ,"=No"),SUMIFS('Track by Mode'!AD:AD,'Track by Mode'!$H:$H,">="&$B13,'Track by Mode'!$AJ:$AJ,"=No"))),IF($A13="","",IF($A13="Between",SUMIFS('Track by Mode'!AD:AD,'Track by Mode'!$H:$H,">="&$B13,'Track by Mode'!$H:$H,"<"&$D13),SUMIFS('Track by Mode'!AD:AD,'Track by Mode'!$H:$H,">="&$B13)))),"") ->  | O13: =IFERROR(IF($X$2,IF($A13="","",IF($A13="Between",SUMIFS('Track by Mode'!AF:AF,'Track by Mode'!$H:$H,">="&$B13,'Track by Mode'!$H:$H,"<"&$D13,'Track by Mode'!$AJ:$AJ,"=No"),SUMIFS('Track by Mode'!AF:AF,'Track by Mode'!$H:$H,">="&$B13,'Track by Mode'!$AJ:$AJ,"=No"))),IF($A13="","",IF($A13="Between",SUMIFS('Track by Mode'!AF:AF,'Track by Mode'!$H:$H,">="&$B13,'Track by Mode'!$H:$H,"<"&$D13),SUMIFS('Track by Mode'!AF:AF,'Track by Mode'!$H:$H,">="&$B13)))),"") ->  | P13: =IFERROR(IF($X$2,IF($A13="","",IF($A13="Between",SUMIFS('Track by Mode'!AH:AH,'Track by Mode'!$H:$H,">="&$B13,'Track by Mode'!$H:$H,"<"&$D13,'Track by Mode'!$AJ:$AJ,"=No"),SUMIFS('Track by Mode'!AH:AH,'Track by Mode'!$H:$H,">="&$B13,'Track by Mode'!$AJ:$AJ,"=No"))),IF($A13="","",IF($A13="Between",SUMIFS('Track by Mode'!AH:AH,'Track by Mode'!$H:$H,">="&$B13,'Track by Mode'!$H:$H,"<"&$D13),SUMIFS('Track by Mode'!AH:AH,'Track by Mode'!$H:$H,">="&$B13)))),"") ->  | Q13: =IFERROR(IF($N$2,IF($A13="","",IF($A13="Between",SUMIFS('Roadway by Mode'!N:N,'Roadway by Mode'!$H:$H,">="&$B13,'Roadway by Mode'!$H:$H,"<"&$D13,'Roadway by Mode'!$V:$V,"=No"),SUMIFS('Roadway by Mode'!N:N,'Roadway by Mode'!$H:$H,">="&$B13,'Roadway by Mode'!$V:$V,"=No"))),IF($A13="","",IF($A13="Between",SUMIFS('Roadway by Mode'!N:N,'Roadway by Mode'!$H:$H,">="&$B13,'Roadway by Mode'!$H:$H,"<"&$D13),SUMIFS('Roadway by Mode'!N:N,'Roadway by Mode'!$H:$H,">="&$B13)))),"") ->  | R13: =IFERROR(IF($N$2,IF($A13="","",IF($A13="Between",SUMIFS('Roadway by Mode'!P:P,'Roadway by Mode'!$H:$H,">="&$B13,'Roadway by Mode'!$H:$H,"<"&$D13,'Roadway by Mode'!$V:$V,"=No"),SUMIFS('Roadway by Mode'!P:P,'Roadway by Mode'!$H:$H,">="&$B13,'Roadway by Mode'!$V:$V,"=No"))),IF($A13="","",IF($A13="Between",SUMIFS('Roadway by Mode'!P:P,'Roadway by Mode'!$H:$H,">="&$B13,'Roadway by Mode'!$H:$H,"<"&$D13),SUMIFS('Roadway by Mode'!P:P,'Roadway by Mode'!$H:$H,">="&$B13)))),"") ->  | S13: =IFERROR(IF($N$2,IF($A13="","",IF($A13="Between",SUMIFS('Roadway by Mode'!R:R,'Roadway by Mode'!$H:$H,">="&$B13,'Roadway by Mode'!$H:$H,"<"&$D13,'Roadway by Mode'!$V:$V,"=No"),SUMIFS('Roadway by Mode'!R:R,'Roadway by Mode'!$H:$H,">="&$B13,'Roadway by Mode'!$V:$V,"=No"))),IF($A13="","",IF($A13="Between",SUMIFS('Roadway by Mode'!R:R,'Roadway by Mode'!$H:$H,">="&$B13,'Roadway by Mode'!$H:$H,"<"&$D13),SUMIFS('Roadway by Mode'!R:R,'Roadway by Mode'!$H:$H,">="&$B13)))),"") ->  | T13: =IFERROR(IF($N$2,IF($A13="","",IF($A13="Between",SUMIFS('Roadway by Mode'!T:T,'Roadway by Mode'!$H:$H,">="&$B13,'Roadway by Mode'!$H:$H,"<"&$D13,'Roadway by Mode'!$V:$V,"=No"),SUMIFS('Roadway by Mode'!T:T,'Roadway by Mode'!$H:$H,">="&$B13,'Roadway by Mode'!$V:$V,"=No"))),IF($A13="","",IF($A13="Between",SUMIFS('Roadway by Mode'!T:T,'Roadway by Mode'!$H:$H,">="&$B13,'Roadway by Mode'!$H:$H,"<"&$D13),SUMIFS('Roadway by Mode'!T:T,'Roadway by Mode'!$H:$H,">="&$B13)))),"") -> 
E14: =IFERROR(IF($X$2,IF($A14="","",IF($A14="Between",SUMIFS('Track by Mode'!L:L,'Track by Mode'!$H:$H,">="&$B14,'Track by Mode'!$H:$H,"<"&$D14,'Track by Mode'!AJ:AJ,"=No"),SUMIFS('Track by Mode'!L:L,'Track by Mode'!$H:$H,">="&$B14,'Track by Mode'!AJ:AJ,"=No"))),IF($A14="","",IF($A14="Between",SUMIFS('Track by Mode'!L:L,'Track by Mode'!$H:$H,">="&$B14,'Track by Mode'!$H:$H,"<"&$D14),SUMIFS('Track by Mode'!L:L,'Track by Mode'!$H:$H,">="&$B14))))+IF($X$2,IF($A14="","",IF($A14="Between",SUMIFS('Roadway by Mode'!L:L,'Roadway by Mode'!$H:$H,">="&$B14,'Roadway by Mode'!$H:$H,"<"&$D14,'Roadway by Mode'!$V:$V,"=No"),SUMIFS('Roadway by Mode'!L:L,'Roadway by Mode'!$H:$H,">="&$B14,'Roadway by Mode'!$V:$V,"=No"))),IF($A14="","",IF($A14="Between",SUMIFS('Roadway by Mode'!L:L,'Roadway by Mode'!$H:$H,">="&$B14,'Roadway by Mode'!$H:$H,"<"&$D14),SUMIFS('Roadway by Mode'!L:L,'Roadway by Mode'!$H:$H,">="&$B14)))),"") ->  | F14: =IFERROR(IF($X$2,IF($A14="","",IF($A14="Between",SUMIFS('Track by Mode'!N:N,'Track by Mode'!$H:$H,">="&$B14,'Track by Mode'!$H:$H,"<"&$D14,'Track by Mode'!AJ:AJ,"=No"),SUMIFS('Track by Mode'!N:N,'Track by Mode'!$H:$H,">="&$B14,'Track by Mode'!AJ:AJ,"=No"))),IF($A14="","",IF($A14="Between",SUMIFS('Track by Mode'!N:N,'Track by Mode'!$H:$H,">="&$B14,'Track by Mode'!$H:$H,"<"&$D14),SUMIFS('Track by Mode'!N:N,'Track by Mode'!$H:$H,">="&$B14)))),"") ->  | G14: =IFERROR(IF($X$2,IF($A14="","",IF($A14="Between",SUMIFS('Track by Mode'!P:P,'Track by Mode'!$H:$H,">="&$B14,'Track by Mode'!$H:$H,"<"&$D14,'Track by Mode'!AJ:AJ,"=No"),SUMIFS('Track by Mode'!P:P,'Track by Mode'!$H:$H,">="&$B14,'Track by Mode'!AJ:AJ,"=No"))),IF($A14="","",IF($A14="Between",SUMIFS('Track by Mode'!P:P,'Track by Mode'!$H:$H,">="&$B14,'Track by Mode'!$H:$H,"<"&$D14),SUMIFS('Track by Mode'!P:P,'Track by Mode'!$H:$H,">="&$B14)))),"") ->  | H14: =IFERROR(IF($X$2,IF($A14="","",IF($A14="Between",SUMIFS('Track by Mode'!R:R,'Track by Mode'!$H:$H,">="&$B14,'Track by Mode'!$H:$H,"<"&$D14,'Track by Mode'!AJ:AJ,"=No"),SUMIFS('Track by Mode'!R:R,'Track by Mode'!$H:$H,">="&$B14,'Track by Mode'!AJ:AJ,"=No"))),IF($A14="","",IF($A14="Between",SUMIFS('Track by Mode'!R:R,'Track by Mode'!$H:$H,">="&$B14,'Track by Mode'!$H:$H,"<"&$D14),SUMIFS('Track by Mode'!R:R,'Track by Mode'!$H:$H,">="&$B14)))),"") ->  | I14: =IFERROR(IF($X$2,IF($A14="","",IF($A14="Between",SUMIFS('Track by Mode'!S:S,'Track by Mode'!$H:$H,">="&$B14,'Track by Mode'!$H:$H,"<"&$D14,'Track by Mode'!AJ:AJ,"=No"),SUMIFS('Track by Mode'!S:S,'Track by Mode'!$H:$H,">="&$B14,'Track by Mode'!AJ:AJ,"=No"))),IF($A14="","",IF($A14="Between",SUMIFS('Track by Mode'!S:S,'Track by Mode'!$H:$H,">="&$B14,'Track by Mode'!$H:$H,"<"&$D14),SUMIFS('Track by Mode'!S:S,'Track by Mode'!$H:$H,">="&$B14)))),"") ->  | J14: =IFERROR(IF($X$2,IF($A14="","",IF($A14="Between",SUMIFS('Track by Mode'!U:U,'Track by Mode'!$H:$H,">="&$B14,'Track by Mode'!$H:$H,"<"&$D14,'Track by Mode'!AJ:AJ,"=No"),SUMIFS('Track by Mode'!U:U,'Track by Mode'!$H:$H,">="&$B14,'Track by Mode'!AJ:AJ,"=No"))),IF($A14="","",IF($A14="Between",SUMIFS('Track by Mode'!U:U,'Track by Mode'!$H:$H,">="&$B14,'Track by Mode'!$H:$H,"<"&$D14),SUMIFS('Track by Mode'!U:U,'Track by Mode'!$H:$H,">="&$B14)))),"") ->  | K14: =IFERROR(IF($X$2,IF($A14="","",IF($A14="Between",SUMIFS('Track by Mode'!W:W,'Track by Mode'!$H:$H,">="&$B14,'Track by Mode'!$H:$H,"<"&$D14,'Track by Mode'!AJ:AJ,"=No"),SUMIFS('Track by Mode'!W:W,'Track by Mode'!$H:$H,">="&$B14,'Track by Mode'!AJ:AJ,"=No"))),IF($A14="","",IF($A14="Between",SUMIFS('Track by Mode'!W:W,'Track by Mode'!$H:$H,">="&$B14,'Track by Mode'!$H:$H,"<"&$D14),SUMIFS('Track by Mode'!W:W,'Track by Mode'!$H:$H,">="&$B14)))),"") ->  | L14: =IFERROR(IF($X$2,IF($A14="","",IF($A14="Between",SUMIFS('Track by Mode'!$Z:$Z,'Track by Mode'!$H:$H,">="&$B14,'Track by Mode'!$H:$H,"<"&$D14,'Track by Mode'!$AJ:$AJ,"=No"),SUMIFS('Track by Mode'!$Z:$Z,'Track by Mode'!$H:$H,">="&$B14,'Track by Mode'!$AJ:$AJ,"=No"))),IF($A14="","",IF($A14="Between",SUMIFS('Track by Mode'!$Z:$Z,'Track by Mode'!$H:$H,">="&$B14,'Track by Mode'!$H:$H,"<"&$D14),SUMIFS('Track by Mode'!$Z:$Z,'Track by Mode'!$H:$H,">="&$B14)))),"") ->  | M14: =IFERROR(IF($X$2,IF($A14="","",IF($A14="Between",SUMIFS('Track by Mode'!$AB:$AB,'Track by Mode'!$H:$H,">="&$B14,'Track by Mode'!$H:$H,"<"&$D14,'Track by Mode'!$AJ:$AJ,"=No"),SUMIFS('Track by Mode'!$AB:$AB,'Track by Mode'!$H:$H,">="&$B14,'Track by Mode'!$AJ:$AJ,"=No"))),IF($A14="","",IF($A14="Between",SUMIFS('Track by Mode'!$AB:$AB,'Track by Mode'!$H:$H,">="&$B14,'Track by Mode'!$H:$H,"<"&$D14),SUMIFS('Track by Mode'!$AB:$AB,'Track by Mode'!$H:$H,">="&$B14)))),"") ->  | N14: =IFERROR(IF($X$2,IF($A14="","",IF($A14="Between",SUMIFS('Track by Mode'!AD:AD,'Track by Mode'!$H:$H,">="&$B14,'Track by Mode'!$H:$H,"<"&$D14,'Track by Mode'!$AJ:$AJ,"=No"),SUMIFS('Track by Mode'!AD:AD,'Track by Mode'!$H:$H,">="&$B14,'Track by Mode'!$AJ:$AJ,"=No"))),IF($A14="","",IF($A14="Between",SUMIFS('Track by Mode'!AD:AD,'Track by Mode'!$H:$H,">="&$B14,'Track by Mode'!$H:$H,"<"&$D14),SUMIFS('Track by Mode'!AD:AD,'Track by Mode'!$H:$H,">="&$B14)))),"") ->  | O14: =IFERROR(IF($X$2,IF($A14="","",IF($A14="Between",SUMIFS('Track by Mode'!AF:AF,'Track by Mode'!$H:$H,">="&$B14,'Track by Mode'!$H:$H,"<"&$D14,'Track by Mode'!$AJ:$AJ,"=No"),SUMIFS('Track by Mode'!AF:AF,'Track by Mode'!$H:$H,">="&$B14,'Track by Mode'!$AJ:$AJ,"=No"))),IF($A14="","",IF($A14="Between",SUMIFS('Track by Mode'!AF:AF,'Track by Mode'!$H:$H,">="&$B14,'Track by Mode'!$H:$H,"<"&$D14),SUMIFS('Track by Mode'!AF:AF,'Track by Mode'!$H:$H,">="&$B14)))),"") ->  | P14: =IFERROR(IF($X$2,IF($A14="","",IF($A14="Between",SUMIFS('Track by Mode'!AH:AH,'Track by Mode'!$H:$H,">="&$B14,'Track by Mode'!$H:$H,"<"&$D14,'Track by Mode'!$AJ:$AJ,"=No"),SUMIFS('Track by Mode'!AH:AH,'Track by Mode'!$H:$H,">="&$B14,'Track by Mode'!$AJ:$AJ,"=No"))),IF($A14="","",IF($A14="Between",SUMIFS('Track by Mode'!AH:AH,'Track by Mode'!$H:$H,">="&$B14,'Track by Mode'!$H:$H,"<"&$D14),SUMIFS('Track by Mode'!AH:AH,'Track by Mode'!$H:$H,">="&$B14)))),"") ->  | Q14: =IFERROR(IF($N$2,IF($A14="","",IF($A14="Between",SUMIFS('Roadway by Mode'!N:N,'Roadway by Mode'!$H:$H,">="&$B14,'Roadway by Mode'!$H:$H,"<"&$D14,'Roadway by Mode'!$V:$V,"=No"),SUMIFS('Roadway by Mode'!N:N,'Roadway by Mode'!$H:$H,">="&$B14,'Roadway by Mode'!$V:$V,"=No"))),IF($A14="","",IF($A14="Between",SUMIFS('Roadway by Mode'!N:N,'Roadway by Mode'!$H:$H,">="&$B14,'Roadway by Mode'!$H:$H,"<"&$D14),SUMIFS('Roadway by Mode'!N:N,'Roadway by Mode'!$H:$H,">="&$B14)))),"") ->  | R14: =IFERROR(IF($N$2,IF($A14="","",IF($A14="Between",SUMIFS('Roadway by Mode'!P:P,'Roadway by Mode'!$H:$H,">="&$B14,'Roadway by Mode'!$H:$H,"<"&$D14,'Roadway by Mode'!$V:$V,"=No"),SUMIFS('Roadway by Mode'!P:P,'Roadway by Mode'!$H:$H,">="&$B14,'Roadway by Mode'!$V:$V,"=No"))),IF($A14="","",IF($A14="Between",SUMIFS('Roadway by Mode'!P:P,'Roadway by Mode'!$H:$H,">="&$B14,'Roadway by Mode'!$H:$H,"<"&$D14),SUMIFS('Roadway by Mode'!P:P,'Roadway by Mode'!$H:$H,">="&$B14)))),"") ->  | S14: =IFERROR(IF($N$2,IF($A14="","",IF($A14="Between",SUMIFS('Roadway by Mode'!R:R,'Roadway by Mode'!$H:$H,">="&$B14,'Roadway by Mode'!$H:$H,"<"&$D14,'Roadway by Mode'!$V:$V,"=No"),SUMIFS('Roadway by Mode'!R:R,'Roadway by Mode'!$H:$H,">="&$B14,'Roadway by Mode'!$V:$V,"=No"))),IF($A14="","",IF($A14="Between",SUMIFS('Roadway by Mode'!R:R,'Roadway by Mode'!$H:$H,">="&$B14,'Roadway by Mode'!$H:$H,"<"&$D14),SUMIFS('Roadway by Mode'!R:R,'Roadway by Mode'!$H:$H,">="&$B14)))),"") ->  | T14: =IFERROR(IF($N$2,IF($A14="","",IF($A14="Between",SUMIFS('Roadway by Mode'!T:T,'Roadway by Mode'!$H:$H,">="&$B14,'Roadway by Mode'!$H:$H,"<"&$D14,'Roadway by Mode'!$V:$V,"=No"),SUMIFS('Roadway by Mode'!T:T,'Roadway by Mode'!$H:$H,">="&$B14,'Roadway by Mode'!$V:$V,"=No"))),IF($A14="","",IF($A14="Between",SUMIFS('Roadway by Mode'!T:T,'Roadway by Mode'!$H:$H,">="&$B14,'Roadway by Mode'!$H:$H,"<"&$D14),SUMIFS('Roadway by Mode'!T:T,'Roadway by Mode'!$H:$H,">="&$B14)))),"") -> 
